fonte_recurso,saldo_empenho,esfera,licitacao,ano,data,plano_interno,convenio,valor_anulado,valor_cancelado,programa_trabalho_resumido,documento_associado,observacoes,cod_empenho,natureza_despesa,credor,processo,nome_unidade_gestora,valor_reforcado,valor_empenho,modalidade,id_unidade_gestora
PRÓPRIOS -  PREST.SERVICOS FUB/FUNDO,965.00,FISCAL,PR 34/2021 - UNB,2022,06/05/2022,CRÉDITOS DISTRIBUÍDOS PARA AS UNIDADES ACADÊMICAS,null,null,null,FUNCIONAMENTO DE INSTITUICOES FEDERAI - NO DF,23106.053995/2021-61,"C. CUSTO FCS PROT:11010110{SM1766/2022(965)}MEMORANDO 020 (8041056)  AQUISIÇÃO DE UMA BALANÇA ANTROPOMÉTRICASEI: 23106.047694/2022-80 DEMONSTRATIVO (8083564) PR 34/2021 - UNB",804,EQUIP. MATERIAL PERMANENTE,Matinada Rubbo Rozanski Eliete,null,UNIVERSIDADE DE BRASÍLIA,null,965.00,ordinário,605
RECURSOS ORDINÁRIOS,94380.00,FISCAL,PR 27/2021 - UNB,2022,06/05/2022,REPOSIÇÃO DE MATERIAL DO ALMOXARIFADO,null,null,null,FUNCIONAMENTO DE INSTITUICOES FEDERAI - NO DF,23106.071251/2021-29,"C.CUSTO: ALMOX -AT- ALEXANDRE PEIXOTO BEZERRA - PROT:1101100601{SM1947/202(94380,00)}         MATERIAL DE CONSUMO-PEDIDO:1947/2022 -2022ND001668 -PREG:027/2021GÊNERO ALIMENTÍCIOS - CAFÉ TORRADO MOÍDO - 500GOFÍCIO.009/2021/DAF/DGM/ALM -  S.E.I  23106.050689/2022-54",803,MAT. CONSUMO,Ortenicia Aspasio Sarres,null,UNIVERSIDADE DE BRASÍLIA,null,94380.00,ordinário,605
RECURSOS ORDINÁRIOS,9301.31,FISCAL,PR,2022,05/05/2022,MANUTENCAO DE VEICULOS LEVES E PESADOS DA FUB,null,null,null,FUNCIONAMENTO DE INSTITUICOES FEDERAI - NO DF,23106.016508/2022-61,"C.CUSTO PRC - MANUT.CORRETIVA E PREVENTIVA DE VEICULOS     SEI:23106.016508/2022-61PAGAMENTO DE MATERIAL  DE VEICULO PESADOS - MARCA AGRALE   PROT:110105(9301,31)MEMO.022/2022/PRC/DIMEQ/CMV   2022ND001661  - CONTRATO Nº 1015/2015   PREG:655/2015",799,MAT. CONSUMO,Rabbers Viggiano Bolis Savaro,null,UNIVERSIDADE DE BRASÍLIA,null,9301.31,estimativo,605
RECURSOS ORDINÁRIOS,1718.29,FISCAL,PR,2022,05/05/2022,MANUTENCAO DE VEICULOS LEVES E PESADOS DA FUB,null,null,null,FUNCIONAMENTO DE INSTITUICOES FEDERAI - NO DF,23106.016508/2022-61,"C.CUSTO PRC - MANUT.CORRETIVA E PREVENTIVA DE VEICULOS                SEI:23106.016508/2022-61PAGAMENTO DE MANUT.CONSERVAÇÃO DE VEICULO PESADOS  - MARCA AGRALE     PROT:110105(1718,29)MEMO.022/2022/PRC/DIMEQ/CMV   2022ND001661  - CONTRATO Nº 1015/2015   PREG:655/2015",797,SERV. PESSOA JURÍDICA,Rabbers Viggiano Bolis Savaro,null,UNIVERSIDADE DE BRASÍLIA,null,1718.29,estimativo,605
PRÓPRIOS -  PREST.SERVICOS FUB/FUNDO,3205.24,FISCAL,PR,2022,05/05/2022,CRÉDITOS DISTRIBUÍDOS PARA AS UNIDADES ACADÊMICAS,null,null,null,FUNCIONAMENTO DE INSTITUICOES FEDERAI - NO DF,23106.042785/2022-29,"C. CUSTO: FGA.     PROT:110131(3205,24)     SEI 23106.042785/2022-29.DESEMBARAÇO ADUANEIRO.2022ND001660.",796,SERV. PESSOA JURÍDICA,Hashem Haizer Perosine,null,UNIVERSIDADE DE BRASÍLIA,null,3205.24,estimativo,605
PRÓPRIOS -  PREST.SERVICOS FUB/FUNDO,1236.82,FISCAL,PR,2022,05/05/2022,CRÉDITOS DISTRIBUÍDOS PARA AS UNIDADES ACADÊMICAS,null,null,null,FUNCIONAMENTO DE INSTITUICOES FEDERAI - NO DF,23106.048023/2022-36,"C. CUSTO: IGD               SEI:23106.023926/2022-12TRANSPORTE DE CARGA - INTERNACIONAL -   PROT:11010117(1236,82)MEMO.S.N/2022/IG            2022ND001654FRETES E TRANSPORTES DE ENCOMENDAS",793,SERV. PESSOA JURÍDICA,Hashem Haizer Perosine,null,UNIVERSIDADE DE BRASÍLIA,null,1236.82,estimativo,605
PRÓPRIOS -  PREST.SERVICOS FUB/FUNDO,6500.00,FISCAL,PR,2022,05/05/2022,CRÉDITOS DISTRIBUÍDOS PARA AS UNIDADES ADMINISTRATIVAS,null,null,null,FUNCIONAMENTO DE INSTITUICOES FEDERAI - NO DF,23106.048082/2022-12,"C. CUSTO: CEAM.       PROT:110125(6500,00)     SEI 23106.048082/2022-12.     PASSAGENS AÉREAS NACIONAIS.2022ND001652.     MEMO 061/2022/CEAM.",789,PASSAGENS,Laisson Mvuama Pangoni Deconto,null,UNIVERSIDADE DE BRASÍLIA,null,6500.00,estimativo,605
PRÓPRIOS -  PREST.SERVICOS FUB/FUNDO,10000.00,FISCAL,PR,2022,05/05/2022,CRÉDITOS DISTRIBUÍDOS PARA AS UNIDADES ACADÊMICAS,null,null,null,FUNCIONAMENTO DE INSTITUICOES FEDERAI - NO DF,23106.048237/2022-11,"C. CUSTO: FCI.      PROT:110133(10000,00)     SEI 23106.048237/2022-11.PASSAGENS AÉREAS NACIONAIS.2022ND001656.     MEMO 04/2022/FCI/FI.",788,PASSAGENS,Laisson Mvuama Pangoni Deconto,null,UNIVERSIDADE DE BRASÍLIA,null,10000.00,estimativo,605
PRÓPRIOS -  PREST.SERVICOS FUB/FUNDO,0.00,FISCAL,PR,2022,05/05/2022,CRÉDITOS DISTRIBUÍDOS PARA AS UNIDADES ACADÊMICAS,null,10000.00,null,FUNCIONAMENTO DE INSTITUICOES FEDERAI - NO DF,23106.048237/2022-11,"C. CUSTO: FCI.      PROT:110133(10000,00)     SEI 23106.048237/2022-11.DIÁRIAS NACIONAIS PARA SERVIDORES.2022ND001656.     MEMO 04/2022/FCI/FI.",787,PASSAGENS,Laisson Mvuama Pangoni Deconto,null,UNIVERSIDADE DE BRASÍLIA,null,10000.00,estimativo,605
RECURSOS ORDINÁRIOS,2336164.00,FISCAL,RDC,2022,05/05/2022,OBRA DE CONSTRUÇÃO DA CRECHE DA UNB,null,null,null,REESTRUTURAÇÃO E MODERNIZAÇÃO DAS INSTITUIÇÕES - EMENDA,23106.026165/2022-42,"C. CUSTO: INFRA SEI:23106.026165/2022-42 - RDC 03/2021ATT: DENISE IMBROISI 2022ND001648 - CONTRATO:1111/2021MEMO.038/2022/DPO/DOR PROT:110137(2336164,00) - CIPI: 5271.53-01OUTRAS OBRAS E INSTALAÇÕES -OBRAS CIVIS DE EDIFICAÇÃO PREDIAIS -CONTRATAÇÃO DE EMPRESA PARA EXECUÇÃO - DA OBRA DE CONSTRUÇÃO DA CRECHE DA UNB",782,OBRAS E INSTALAÇÕES,Kareline Leonhardt Ameixeiro Pongelupi,null,UNIVERSIDADE DE BRASÍLIA,null,2336164.00,global,605
RECURSOS ORDINÁRIOS,0.00,FISCAL,RDC,2022,04/05/2022,OBRA DE CONSTRUÇÃO DA CRECHE DA UNB,null,2336164.00,null,REESTRUTURAÇÃO E MODERNIZAÇÃO DAS INSTITUIÇÕES - EMENDA,23106.026165/2022-42,"C. CUSTO: INFRA               SEI:23106.026165/2022-42  - RDC 03/2021ATT: DENISE IMBROISI          2022ND001648 - CONTRATO:1111/2021  MEMO.038/2022/DPO/DOR         PROT:110137(2336164,00)  -  CIPI: 5271.53-01OUTRAS OBRAS E INSTALAÇÕES -OBRAS CIVIS DE EDIFICAÇÃO PREDIAIS -    CONTRATAÇÃO DE EMPRESA PARA EXECUÇÃO - DA OBRA DE CONSTRUÇÃO DA CRECHE DA UNB",781,OBRAS E INSTALAÇÕES,Kareline Leonhardt Ameixeiro Pongelupi,null,UNIVERSIDADE DE BRASÍLIA,null,2336164.00,global,605
PRÓPRIOS -  PREST.SERVICOS FUB/FUNDO,2285.00,FISCAL,PR 10/2021 - UNB,2022,04/05/2022,CRÉDITOS DISTRIBUÍDOS PARA AS UNIDADES ACADÊMICAS,null,null,null,FUNCIONAMENTO DE INSTITUICOES FEDERAI - NO DF,23106.116899/2020-51,"C. CUSTO: FAV.   PROT:11010105{SM1833/2022(2285,00)}       SEI 23106.048337/2022-39.AQUISIÇÃO DE APARELHO DE AR CONDICIONADO.2022ND001463.",780,EQUIP. MATERIAL PERMANENTE,Dellatorre de Gonzaga Cesso,null,UNIVERSIDADE DE BRASÍLIA,null,2285.00,ordinário,605
RECURSOS ORDINÁRIOS,2873400.76,FISCAL,RDC,2022,04/05/2022,OBRA DE CONSTRUÇÃO DE ESPAÇO DE PESQUISA PRIMEIRA INFÂNCIA,null,null,null,REESTRUTURAÇÃO E MODERNIZAÇÃO DAS INSTITUIÇÕES - EMENDA,23106.026168/2022-86,"C. CUSTO: INFRA.    PROT:110137(2873400,76)    SEI 23106.026168/2022-86.    OBRA DE CONSTRUÇÃO DO ESPAÇO PARA PESQUISA EM PRIMEIRA INFÂNCIA.2022ND001641.  RDC: 06/2021",778,OBRAS E INSTALAÇÕES,Vilmo Conson Principe Juki,null,UNIVERSIDADE DE BRASÍLIA,null,2873400.76,global,605
PRÓPRIOS -  PREST.SERVICOS FUB/FUNDO,632.76,FISCAL,PR,2022,03/05/2022,CRÉDITOS DISTRIBUÍDOS PARA AS UNIDADES ACADÊMICAS,null,null,null,FUNCIONAMENTO DE INSTITUICOES FEDERAI - NO DF,23106.026186/2022-68,"C. CUSTO: FGA.      PROT:110132(632,76)      SEI 23106.026186/2022-68.AQUISIÇÃO DE VASO ORNAMENTAL.2022ND001642.      DESPACHO PRC/DIRAD/CCL 7944859.",771,MAT. CONSUMO,Informação Anonimizada,null,UNIVERSIDADE DE BRASÍLIA,null,632.76,global,605
PRÓPRIOS -  PREST.SERVICOS FUB/FUNDO,151.62,FISCAL,PR,2022,03/05/2022,CRÉDITOS DISTRIBUÍDOS PARA AS UNIDADES ACADÊMICAS,null,null,null,FUNCIONAMENTO DE INSTITUICOES FEDERAI - NO DF,23106.026186/2022-68,"C. CUSTO: FGA.      PROT:110132(151,62)      SEI 23106.026186/2022-68.AQUISIÇÃO DE SUPORTE EM MADEIRA PARA VASO ORNAMENTAL.2022ND001642.      DESPACHO PRC/DIRAD/CCL 7944859.",770,MAT. CONSUMO,Rolembergue Nasserala dos Sacorro Calabretti,null,UNIVERSIDADE DE BRASÍLIA,null,151.62,global,605
PRÓPRIOS -  PREST.SERVICOS FUB/FUNDO,2285.00,FISCAL,PR 10/2021 - UNB,2022,03/05/2022,CRÉDITOS DISTRIBUÍDOS PARA AS UNIDADES ADMINISTRATIVAS,null,null,null,FUNCIONAMENTO DE INSTITUICOES FEDERAI - NO DF,23106.116899/2020-51,"C. CUSTO: PRC.      PROT:110105{SM1206/2022(2285,00)}      SEI 23106.035622/2022-90.AQUISIÇÃO DE APARELHO DE AR CONDICIONADO.2022ND001636.       DESPACHO PRC 7922288.",769,EQUIP. MATERIAL PERMANENTE,Dellatorre de Gonzaga Cesso,null,UNIVERSIDADE DE BRASÍLIA,null,2285.00,ordinário,605
PRÓPRIOS -  PREST.SERVICOS FUB/FUNDO,20000.00,FISCAL,PR,2022,03/05/2022,CRÉDITOS DISTRIBUÍDOS PARA AS UNIDADES ACADÊMICAS,null,null,null,FUNCIONAMENTO DE INSTITUICOES FEDERAI - NO DF,23106.048318/2022-11,"C. CUSTO: FSD.      PROT:11010110(20000,00)     SEI 23106.048318/2022-11.PASSAGENS AÉREAS NACIONAIS.2022ND001630.       MEMO 56/2022/FS.",765,PASSAGENS,Laisson Mvuama Pangoni Deconto,null,UNIVERSIDADE DE BRASÍLIA,null,20000.00,estimativo,605
PRÓPRIOS -  PREST.SERVICOS FUB/FUNDO,2285.00,FISCAL,PR 10/2021 - UNB,2022,02/05/2022,CRÉDITOS DISTRIBUÍDOS PARA AS UNIDADES ACADÊMICAS,null,null,null,FUNCIONAMENTO DE INSTITUICOES FEDERAI - NO DF,23106.116899/2020-51,"C. CUSTO:  FAV                    SEI:23106.048109/2022-69ATT: MAX DA COSTA OLIVEIRA        2022ND001463MEMO.S.N/2021/FAV                 PROT:11010105{SM1819/2022(2285,00)}MATERIAL PERMANENTE - PEDIDO:1819/2022 -   PREG: 10/2021MAQ.UTENSÍLIOS EQUIP.DIVERSOS - AR CONDICIONADO - WALL INVERTE",760,EQUIP. MATERIAL PERMANENTE,Dellatorre de Gonzaga Cesso,null,UNIVERSIDADE DE BRASÍLIA,null,2285.00,ordinário,605
RECURSOS DIRETAM.ARREC FUNDAÇÃO UNIV.BRASÍLIA,6187.80,FISCAL,PR,2022,02/05/2022,MANUTENCAO DE VEICULOS LEVES E PESADOS DA FUB,null,null,null,FUNCIONAMENTO DE INSTITUICOES FEDERAI - NO DF,23106.020808/2022-44,"C. CUSTO: PRC.      PROT:110105(6187,80)       SEI 23106.020808/2022-44.PEÇAS PARA MANUTENÇÃO DE VEÍCULO.2022ND001611.      MEMO 21/2022/UNBTV.",756,MAT. CONSUMO,Eiter Ignaczuk Soleiro Havro,null,UNIVERSIDADE DE BRASÍLIA,null,6187.80,estimativo,605
RECURSOS DIRETAM.ARREC FUNDAÇÃO UNIV.BRASÍLIA,648.00,FISCAL,PR,2022,02/05/2022,MANUTENCAO DE VEICULOS LEVES E PESADOS DA FUB,null,null,null,FUNCIONAMENTO DE INSTITUICOES FEDERAI - NO DF,23106.020808/2022-44,"C. CUSTO: PRC.      PROT:110105(648,00)       SEI 23106.020808/2022-44.SERVIÇO DE MANUTENÇÃO DE VEÍCULO.2022ND001611.      MEMO 21/2022/UNBTV.",755,SERV. PESSOA JURÍDICA,Eiter Ignaczuk Soleiro Havro,null,UNIVERSIDADE DE BRASÍLIA,null,648.00,estimativo,605
PRÓPRIOS -  PREST.SERVICOS FUB/FUNDO,2000.00,FISCAL,PR,2022,29/04/2022,CRÉDITOS DISTRIBUÍDOS PARA AS UNIDADES ACADÊMICAS,null,null,null,FUNCIONAMENTO DE INSTITUICOES FEDERAI - NO DF,23106.047769/2022-22,"C. CUSTO ICH PROT:11010118(2000,00) CONTR: 125/2018MEMORANDO 28 (8041619) SEGURO VIAGEM SEI: 23106.047769/2022-22 2022ND001602 UASG (201059)",747,SERV. PESSOA JURÍDICA,Laisson Mvuama Pangoni Deconto,null,UNIVERSIDADE DE BRASÍLIA,null,2000.00,estimativo,605
TED SIMEC 8323 - PROAP,200000.00,FISCAL,PR,2022,28/04/2022,CAPES,null,null,null,TED SIMEC 8323 - PROAP,23106.054692/2020-85,"C. CUSTO DGP PROT:11010806(200000,00)PASSAGENS INTERNACIONAISTED SIMEC 8323 CAPES/PROAP N. TRANSF: 697550SEI: 23106.054692/2020-85 2022ND001481",741,PASSAGENS,Laisson Mvuama Pangoni Deconto,null,UNIVERSIDADE DE BRASÍLIA,null,200000.00,estimativo,605
TED SIMEC 8323 - PROAP,160000.00,FISCAL,PR,2022,28/04/2022,CAPES,null,null,null,TED SIMEC 8323 - PROAP,23106.054692/2020-85,"C. CUSTO DGP PROT:11010806(160000,00)PASSAGENS NACIONAISTED SIMEC 8323 CAPES/PROAP N. TRANSF: 697550SEI: 23106.054692/2020-85 2022ND001481",740,PASSAGENS,Laisson Mvuama Pangoni Deconto,null,UNIVERSIDADE DE BRASÍLIA,null,160000.00,estimativo,605
PRÓPRIOS -  PREST.SERVICOS FUB/FUNDO,25000.00,FISCAL,PR,2022,28/04/2022,CRÉDITOS DISTRIBUÍDOS PARA AS UNIDADES ACADÊMICAS,null,null,null,FUNCIONAMENTO DE INSTITUICOES FEDERAI - NO DF,23106.045843/2022-76,"C. CUSTO: IREL                    SEI:23106.045843/2022-76 PAGAMENTO DE PASSAGEM INTERNACIONAL    PROT:11010125(25000,00)MEMO.022/2022/IREL/SEC            2022ND001574 - CONTRATO:125/2018",739,PASSAGENS,Laisson Mvuama Pangoni Deconto,null,UNIVERSIDADE DE BRASÍLIA,null,25000.00,estimativo,605
PRÓPRIOS -  PREST.SERVICOS FUB/FUNDO,15000.00,FISCAL,PR,2022,28/04/2022,CRÉDITOS DISTRIBUÍDOS PARA AS UNIDADES ACADÊMICAS,null,null,null,FUNCIONAMENTO DE INSTITUICOES FEDERAI - NO DF,23106.045843/2022-76,"C. CUSTO: IREL                    SEI:23106.045843/2022-76 PAGAMENTO DE PASSAGEM NACIONAL    PROT:11010125(15000,00)MEMO.022/2022/IREL/SEC            2022ND001574 - CONTRATO:125/2018",738,PASSAGENS,Laisson Mvuama Pangoni Deconto,null,UNIVERSIDADE DE BRASÍLIA,null,15000.00,estimativo,605
PRÓPRIOS -  PREST.SERVICOS FUB/FUNDO,20000.00,FISCAL,PR,2022,28/04/2022,CRÉDITOS DISTRIBUÍDOS PARA AS UNIDADES ACADÊMICAS,null,null,null,FUNCIONAMENTO DE INSTITUICOES FEDERAI - NO DF,23106.046857/2022-15,"C. CUSTO: IHD.   PROT:11010118(20000,00)      SEI 23106.046857/2022-15.PASSAGENS AÉREAS INTERNACIONAIS.2022ND001581.      MEMO 26/2022/ICH.",727,PASSAGENS,Laisson Mvuama Pangoni Deconto,null,UNIVERSIDADE DE BRASÍLIA,null,20000.00,estimativo,605
RECURSOS DIRETAM.ARREC FUNDAÇÃO UNIV.BRASÍLIA,500000.00,FISCAL,PR,2022,28/04/2022,ALIMENTACAO,null,null,null,FUNCIONAMENTO DE INSTITUICOES FEDERAI - NO DF,23106.037851/2022-49,"C. CUSTO DAC PROT:110109(500000,00) CONTRATO 31/2021 GRUPO I ASSISTÊNCIA ESTUDANTILCONCESSÃO DO USO DE EDIFICAÇÕES, EQUIPAMENTOS, MÓVEIS E UTENSÍLIOS DOSRESTAURANTES UNIVERSITÁRIOS DA UNB PARA PRODUÇÃO DE REFEIÇÕES.SEI: 23106.017933/2022-77 PREGÃO 01/2021 2022ND001545",723,SERV. PESSOA JURÍDICA,Raili Caltarossa,null,UNIVERSIDADE DE BRASÍLIA,null,500000.00,global,605
RECURSOS DIRETAM.ARREC FUNDAÇÃO UNIV.BRASÍLIA,2198.61,FISCAL,PR,2022,28/04/2022,MANUTENCAO DE VEICULOS LEVES E PESADOS DA FUB,null,null,null,FUNCIONAMENTO DE INSTITUICOES FEDERAI - NO DF,23106.132827/2021-31,"C.CUSTO PRC - MANUT.CORRETIVA E PREVENTIVA DE VEICULOS                   SEI: 23106.132827/2021-31PAGAMENTO DE MANUT.CONSERVAÇÃO DE VEICULO LEVES - MARCA VW               PROT:110105(2198,61)MEMO.S.N/2021/PRC/DIRAQ/CAP   2022ND001570  - CONTRATO Nº 1017/2016      PREG:655/2015",722,SERV. PESSOA JURÍDICA,Eiter Ignaczuk Soleiro Havro,null,UNIVERSIDADE DE BRASÍLIA,null,2198.61,estimativo,605
RECURSOS DIRETAM.ARREC FUNDAÇÃO UNIV.BRASÍLIA,3675.12,FISCAL,PR,2022,28/04/2022,MANUTENCAO DE VEICULOS LEVES E PESADOS DA FUB,null,null,null,FUNCIONAMENTO DE INSTITUICOES FEDERAI - NO DF,23106.132827/2021-31,"C.CUSTO PRC - MANUT.CORRETIVA E PREVENTIVA DE VEICULOS                   SEI: 23106.132827/2021-31PAGAMENTO DE MATERIAL  DE VEICULO LEVES - MARCA VW                       PROT:110105(3675,12)MEMO.S.N/2021/PRC/DIRAQ/CAP   2022ND001570  - CONTRATO Nº 1017/2016      PREG:655/2015",721,MAT. CONSUMO,Eiter Ignaczuk Soleiro Havro,null,UNIVERSIDADE DE BRASÍLIA,null,3675.12,estimativo,605
RECURSOS ORDINÁRIOS,7003885.50,FISCAL,PR,2022,28/04/2022,PORTARIA - AGIL,null,null,null,FUNCIONAMENTO DE INSTITUICOES FEDERAI - NO DF,23106.043256/2022-42,"C.CUSTO : SPI             S.E.I: 23106.043256/2022-42MEMO.062/2022/DPO/DOR     2022ND001500 - CONTRATO Nº 001/2022ATT - GLAUCIA LOPES LUIZ EVANGELISTA - PROT:110147(7003885,50)PRESTAÇÃO DE SERVIÇOS DE APOIO ADMINISTRATIVO - SERVIÇOS DE PORTARIA - PROG.FINANCEIRA DA FUB-2022",720,LOC. MÃO-DE-OBRA,Torgo Labre Ticianeli,null,UNIVERSIDADE DE BRASÍLIA,null,7003885.50,global,605
PRÓPRIOS -  PREST.SERVICOS FUB/FUNDO,2700.00,FISCAL,PR 45/2022 - UNB,2022,27/04/2022,CRÉDITOS DISTRIBUÍDOS PARA AS UNIDADES ACADÊMICAS,null,null,null,FUNCIONAMENTO DE INSTITUICOES FEDERAI - NO DF,23106.097119/2021-47,"C.CUSTO: IQD -AT- LUIZ EDUARDO CELINO - PROT:11010122{SM1712/2022(2700,00)}         MATERIAL DE CONSUMO-PEDIDO:1712/2022 -2022ND001565 -PREG:45/2022GAS E OUTROS MATERIAIS ENGARRAFADOS - NITROGÊNIO LÍQUIDOMEMO.S.N/2022/IQ/CAIQ  -  S.E.I 23106.044198/2022-74",719,MAT. CONSUMO,Ciones Zanateli Dias de Ccalasans,null,UNIVERSIDADE DE BRASÍLIA,null,2700.00,ordinário,605
RECURSOS ORDINÁRIOS,493965.91,FISCAL,PR,2022,27/04/2022,OPERADOR DE TRATOR,null,null,null,FUNCIONAMENTO DE INSTITUICOES FEDERAI - NO DF,23106.043256/2022-42,"C.CUSTO : DTER            S.E.I: 23106.043256/2022-42MEMO.062/2022/DPO/DOR     2022ND001491 - CONTRATO Nº 1201/2022ATT - GLAUCIA LOPES LUIZ EVANGELISTA - PROT:11011007(493965,91)PRESTAÇÃO DE SERVIÇOS DE APOIO ADMINISTRATIVO -  MOTORISTA - PROG.FINANCEIRA DA FUB-2022",718,LOC. MÃO-DE-OBRA,Laidylaura Saade Dziedzic,null,UNIVERSIDADE DE BRASÍLIA,null,493965.91,global,605
RECURSOS ORDINÁRIOS,463827.25,FISCAL,PR,2022,27/04/2022,ALMOXARIFADO E TRANSPORTE MOVEIS E MATERIAIS,null,null,null,FUNCIONAMENTO DE INSTITUICOES FEDERAI - NO DF,23106.043256/2022-42,"C.CUSTO : DTER            S.E.I: 23106.043256/2022-42MEMO.062/2022/DPO/DOR     2022ND001486 - CONTRATO Nº 167/2017ATT - GLAUCIA LOPES LUIZ EVANGELISTA - PROT:11011007(463827,25)PRESTAÇÃO DE SERVIÇOS DE APOIO ADMINISTRATIVO - ALMOXAFIFADO E TRANSP DE MAT - PROG.FINANCEIRA DA FUB-2022",717,LOC. MÃO-DE-OBRA,Jakymiu Vilabuim Grésiano Baja,null,UNIVERSIDADE DE BRASÍLIA,null,463827.25,global,605
RECURSOS ORDINÁRIOS,1521213.12,FISCAL,PR,2022,27/04/2022,PORTARIA,null,null,null,FUNCIONAMENTO DE INSTITUICOES FEDERAI - NO DF,23106.043256/2022-42,"C.CUSTO : DTER            S.E.I: 23106.043256/2022-42MEMO.062/2022/DPO/DOR     2022ND001491 - CONTRATO Nº 212/2020ATT - GLAUCIA LOPES LUIZ EVANGELISTA - PROT:11011007(1521213,12)PRESTAÇÃO DE SERVIÇOS DE APOIO ADMINISTRATIVO -  PORTARIA  - PROG.FINANCEIRA DA FUB-2022",716,LOC. MÃO-DE-OBRA,Blaiser Babichi de Lordes,null,UNIVERSIDADE DE BRASÍLIA,null,1521213.12,global,605
RECURSOS ORDINÁRIOS,3511516.68,FISCAL,PR,2022,27/04/2022,SERVICOS AGROPECUARIOS,null,null,null,FUNCIONAMENTO DE INSTITUICOES FEDERAI - NO DF,23106.043256/2022-42,"C.CUSTO : DTER            S.E.I: 23106.043256/2022-42MEMO.062/2022/DPO/DOR     2022ND001498 - CONTRATO Nº 025/2020ATT - GLAUCIA LOPES LUIZ EVANGELISTA - PROT:11011007(3511516,68)PRESTAÇÃO DE SERVIÇOS DE APOIO ADMINISTRATIVO - SERVIÇOS AGROPECUÁRIOS - PROG.FINANCEIRA DA FUB-2022",715,LOC. MÃO-DE-OBRA,Jakymiu Vilabuim Grésiano Baja,null,UNIVERSIDADE DE BRASÍLIA,null,3511516.68,global,605
RECURSOS ORDINÁRIOS,15314228.63,FISCAL,PR,2022,27/04/2022,SEGURANCA,null,null,null,FUNCIONAMENTO DE INSTITUICOES FEDERAI - NO DF,23106.043256/2022-42,"C.CUSTO : DTER            S.E.I: 23106.043256/2022-42MEMO.062/2022/DPO/DOR     2022ND001489 - CONTRATO Nº 011/2020ATT - GLAUCIA LOPES LUIZ EVANGELISTA - PROT:11011007(15314228,63)VIGILANCIA OSTENSIVA DESARMADA - LIFE DEFENSE (SEGURANÇA)  - PROG.FINANCEIRA DA FUB-2022",714,LOC. MÃO-DE-OBRA,Krausburg Lionzo Schiefler Henrik,null,UNIVERSIDADE DE BRASÍLIA,null,15314228.63,global,605
RECURSOS ORDINÁRIOS,161628.61,FISCAL,PR,2022,27/04/2022,"SERV GER.LOJA, VENDEDOR E OPER.CAIXA EDUNB",null,null,null,FUNCIONAMENTO DE INSTITUICOES FEDERAI - NO DF,23106.043256/2022-42,"C.CUSTO : DTER            S.E.I: 23106.043256/2022-42MEMO.062/2022/DPO/DOR     2022ND001487 - CONTRATO Nº 022/2021ATT - GLAUCIA LOPES LUIZ EVANGELISTA - PROT:11011007(161628,61)PRESTAÇÃO DE SERVIÇOS DE APOIO ADMINISTRATIVO - CHECK LIVRO - DIVULGAÇÃO  - PROG.FINANCEIRA DA FUB-2022",713,LOC. MÃO-DE-OBRA,Colonheze Lapas Alcacio Malenha Nasraui,null,UNIVERSIDADE DE BRASÍLIA,null,161628.61,global,605
RECURSOS DIRETAM.ARREC FUNDAÇÃO UNIV.BRASÍLIA,1670.00,FISCAL,PR,2022,26/04/2022,TAXA ADMINISTRATIVA DO CDT,null,null,null,FUNCIONAMENTO DE INSTITUICOES FEDERAI - NO DF,23106.021538/2022-99,"C. CUSTO: CDT                          SEI:23106.019599/2021-13 ATT: TÂNIA CRISTINA DA SILVA CRUZ      2022NC000006MEMO.S.N/2022/DPI/NITCDT/CEDES/NME     PROT:110902{SM1586/2022(1670,00)}MATERIAL PERMANENTE - PEDIDO:1586/2022 -   PREG: 205/2021EQUIP. TIC - MESA DIGITAL. - PADRÃO USB - MESA DIGITAL. COM CANETA DIGITAL SENSÍVEL",709,EQUIP. MATERIAL PERMANENTE,Ilmetov Rondini Placco,null,UNIVERSIDADE DE BRASÍLIA,null,1670.00,global,605
PRÓPRIOS -  PREST.SERVICOS FUB/FUNDO,0.00,FISCAL,PR,2022,26/04/2022,CRÉDITOS DISTRIBUÍDOS PARA AS UNIDADES ACADÊMICAS,null,500.00,null,FUNCIONAMENTO DE INSTITUICOES FEDERAI - NO DF,23106.043316/2022-27,"C. CUSTO: FACE/GPP.       PROT:11010102(500,00)      SEI  23106.043316/2022-27.SEGURO VIAGEM.2022ND001557.      DESPACHO FACE/GPP 8000476.",707,SERV. PESSOA JURÍDICA,Laisson Mvuama Pangoni Deconto,null,UNIVERSIDADE DE BRASÍLIA,null,500.00,estimativo,605
PRÓPRIOS -  PREST.SERVICOS FUB/FUNDO,5300.00,FISCAL,PR,2022,26/04/2022,CRÉDITOS DISTRIBUÍDOS PARA AS UNIDADES ACADÊMICAS,null,null,null,FUNCIONAMENTO DE INSTITUICOES FEDERAI - NO DF,23106.043316/2022-27,"C. CUSTO: FACE/GPP.     PROT:11010102(4800,00)     SEI 23106.043316/2022-27.PASSAGENS AÉREAS NACIONAIS.2022ND001557.        DESPACHO FACE/GPP 8000476.",706,PASSAGENS,Laisson Mvuama Pangoni Deconto,null,UNIVERSIDADE DE BRASÍLIA,500.00,4800.00,estimativo,605
PRÓPRIOS -  PREST.SERVICOS FUB/FUNDO,133.98,FISCAL,PR,2022,26/04/2022,CRÉDITOS DISTRIBUÍDOS PARA AS UNIDADES ADMINISTRATIVAS,null,null,null,FUNCIONAMENTO DE INSTITUICOES FEDERAI - NO DF,23106.037802/2022-14,"C. CUSTO: DGP.      PROT:110134{SM1576/2022(133,98)}     SEI 23106.037802/2022-14.AQUISIÇÃO DE MATERIAIS DE COPA E COZINHA.2022ND001558.",704,MAT. CONSUMO,Lindovan Proscholdt Calais Generozo Hellemister,null,UNIVERSIDADE DE BRASÍLIA,null,133.98,global,605
PRÓPRIOS -  PREST.SERVICOS FUB/FUNDO,49.00,FISCAL,PR,2022,26/04/2022,CRÉDITOS DISTRIBUÍDOS PARA AS UNIDADES ADMINISTRATIVAS,null,null,null,FUNCIONAMENTO DE INSTITUICOES FEDERAI - NO DF,23106.037802/2022-14,"C. CUSTO: DGP.      PROT:110134{SM1318/2022(49,00)}     SEI 23106.037802/2022-14.AQUISIÇÃO DE MATERIAIS DE COPA E COZINHA.2022ND001558.",703,MAT. CONSUMO,Janecleja Barbiere Natal,null,UNIVERSIDADE DE BRASÍLIA,null,49.00,global,605
PRÓPRIOS -  PREST.SERVICOS FUB/FUNDO,233.24,FISCAL,PR,2022,26/04/2022,CRÉDITOS DISTRIBUÍDOS PARA AS UNIDADES ADMINISTRATIVAS,null,null,null,FUNCIONAMENTO DE INSTITUICOES FEDERAI - NO DF,23106.037802/2022-14,"C. CUSTO: DGP.      PROT:110134{SM1315/2022(233,24)}     SEI 23106.037802/2022-14.AQUISIÇÃO DE MATERIAIS PARA COPA E COZINHA.2022ND001558.",702,MAT. CONSUMO,Adonias Milman Fauth Seye,null,UNIVERSIDADE DE BRASÍLIA,null,233.24,global,605
RECURSOS DIRETAM.ARREC FUNDAÇÃO UNIV.BRASÍLIA,125173.03,FISCAL,PR,2022,25/04/2022,OPERADOR DE TRATOR,null,null,null,FUNCIONAMENTO DE INSTITUICOES FEDERAI - NO DF,23106.037387/2022-91,"C. CUSTO DTER PROT::11011007(125173,03) CONTRATO 1201/2022PGTO DA NF N 4948, RELATIVO AO CONTRATO 1201/2022, CELEBRADO ENTRE A UNB E A EMPRESA RDJ ASSESSORIA E GESTÃO EMPRESARIAL EIRELI,REF AO PERIODO DE 16/3 A 15/4/2022.  SEI: 23106.037387/2022-91 2022ND001539",692,LOC. MÃO-DE-OBRA,Laidylaura Saade Dziedzic,null,UNIVERSIDADE DE BRASÍLIA,null,125173.03,global,605
TED INCRA-UNB,2552232.00,FISCAL,PR,2022,25/04/2022,ALIMENTACAO,null,null,null,ASSISTENCIA AO ESTUDANTE DE ENSINO SU - NO DF,23106.043868/2022-35,"C. CUSTO DAC PROT:110109(2552232,00) CONTRATO 31/2021 GRUPO I ASSISTÊNCIA ESTUDANTIL CONCESSÃO DO USO DE EDIFICAÇÕES, EQUIPAMENTOS, MÓVEIS E UTENSÍLIOS DOS RESTAURANTES UNIVERSITÁRIOS DA UNB PARA PRODUÇÃO DE REFEIÇÕES. SEI: 23106.043868/2022-35 PREGÃO 01/2021 2022ND001536",690,SERV. PESSOA JURÍDICA,Raili Caltarossa,null,UNIVERSIDADE DE BRASÍLIA,null,2552232.00,global,605
PRÓPRIOS -  PREST.SERVICOS FUB/FUNDO,2285.00,FISCAL,PR,2022,25/04/2022,CRÉDITOS DISTRIBUÍDOS PARA AS UNIDADES ACADÊMICAS,null,null,null,FUNCIONAMENTO DE INSTITUICOES FEDERAI - NO DF,23106.043205/2022-11,"C. CUSTO: IPD.       PROT:11010120(2285,00)     SEI 23106.043205/2022-11.AQUISIÇÃO DE APARELHO DE AR CONDICIONADO.2022ND001515.      MEMO 21/2022/IP/CAEP.",682,EQUIP. MATERIAL PERMANENTE,Dellatorre de Gonzaga Cesso,null,UNIVERSIDADE DE BRASÍLIA,null,2285.00,global,605
RECURSOS ORDINÁRIOS,4000000.00,FISCAL,PR,2022,20/04/2022,SERVICOS COMUNS DE ENGENHARIA-PREGAO 306/2019,null,null,null,FUNCIONAMENTO DE INSTITUICOES FEDERAI - NO DF,23106.043256/2022-42,"C.CUSTO : PRC               S.E.I: 23106.043256/2022-42MEMO.062/2022/DPO/DOR       2022ND001497 - DISPENSA:07522/2021ATT - GLAUCIA LOPES LUIZ EVANGELISTA  - PROT:110105(4000000,00)MANUTENÇÃO - REFORMA PREDIAL - MANUT. E CONSERV. DE BENS IMOVEIS - PROG.FINANCEIRA DA FUB 2022",673,SERV. PESSOA JURÍDICA,Pereitra Heckmann Os Cecchi,null,UNIVERSIDADE DE BRASÍLIA,null,4000000.00,global,605
RECURSOS ORDINÁRIOS,18494.14,FISCAL,PR,2022,20/04/2022,RECEPCIONISTA,null,null,null,FUNCIONAMENTO DE INSTITUICOES FEDERAI - NO DF,23106.043256/2022-42,"C.CUSTO : DTER              S.E.I: 23106.043256/2022-42MEMO.062/2022/DPO/DOR       2022ND001493 - CONTRATO Nº032/2019ATT - GLAUCIA LOPES LUIZ EVANGELISTA  - PROT:11011007(18494,14)PRESTAÇÃO DE SERVIÇOS DE APOIO ADMINISTRATIVO - RECEPCIONISTA - PROG.FINANCEIRA DA FUB 2022",672,LOC. MÃO-DE-OBRA,Tielen Yoshiy Lomando Nardele B Machado,null,UNIVERSIDADE DE BRASÍLIA,null,18494.14,global,605
RECURSOS ORDINÁRIOS,49504.45,FISCAL,PR,2022,20/04/2022,CONTÍNUO E COPEIRAGEM,null,null,null,FUNCIONAMENTO DE INSTITUICOES FEDERAI - NO DF,23106.043256/2022-42,"C.CUSTO : DTER              S.E.I: 23106.043256/2022-42MEMO.062/2022/DPO/DOR       2022ND001490 - CONTRATO Nº006/2021ATT - GLAUCIA LOPES LUIZ EVANGELISTA  - PROT:11011007(49504,45)PRESTAÇÃO DE SERVIÇOS DE APOIO ADMINISTRATIVO - APOIO ADM. TEC. E OPE. - PROG.FINANCEIRA DA FUB 2022",671,LOC. MÃO-DE-OBRA,Garcia Latife Laginski,null,UNIVERSIDADE DE BRASÍLIA,null,49504.45,global,605
RECURSOS ORDINÁRIOS,800632.86,FISCAL,PR,2022,20/04/2022,COPEIRAGEM,null,null,null,FUNCIONAMENTO DE INSTITUICOES FEDERAI - NO DF,23106.043256/2022-42,"C.CUSTO : DTER              S.E.I: 23106.043256/2022-42MEMO.062/2022/DPO/DOR       2022ND001488 - CONTRATO Nº007/2021ATT - GLAUCIA LOPES LUIZ EVANGELISTA  - PROT:11011007(800632,86)PRESTAÇÃO SERVIÇO COPA E COZINHA -  COPEIRAGEM - PROG.FINANCEIRA DA FUB 2022",670,LOC. MÃO-DE-OBRA,Schroh Buonacorsi L'Amour Olmar Wuensch,null,UNIVERSIDADE DE BRASÍLIA,null,800632.86,global,605
RECURSOS ORDINÁRIOS,11468388.65,FISCAL,PR,2022,20/04/2022,LIMPEZA E CONSERVACAO,null,null,null,REESTRUTURACAO E MODERNIZACAO DAS INS - NO DF,23106.043256/2022-42,"C.CUSTO : DTER              S.E.I: 23106.043256/2022-42MEMO.062/2022/DPO/DOR       2022ND001494 - CONTRATO Nº002/2022ATT - GLAUCIA LOPES LUIZ EVANGELISTA  - PROT:11011007(11468388,65)PRESTAÇÃO DE SERVIÇO DE LIMPEZA E CONSERVAÇÃO - LIMPEZA E CONSERVAÇÃO - PROG.FINANCEIRA DA FUB 2022",669,LOC. MÃO-DE-OBRA,Noweihi Cadina Luaemar Marulli Camião,null,UNIVERSIDADE DE BRASÍLIA,null,11468388.65,global,605
RECURSOS ORDINÁRIOS,11468000.00,FISCAL,PR,2022,20/04/2022,LIMPEZA E CONSERVACAO,null,null,null,FUNCIONAMENTO DE INSTITUICOES FEDERAI - NO DF,23106.043256/2022-42,"C.CUSTO : DTER              S.E.I: 23106.043256/2022-42MEMO.062/2022/DPO/DOR       2022ND001495 - CONTRATO Nº002/2022ATT - GLAUCIA LOPES LUIZ EVANGELISTA  - PROT:11011007(11468000,00)PRESTAÇÃO DE SERVIÇO DE LIMPEZA E CONSERVAÇÃO - LIMPEZA E CONSERVAÇÃO - PROG.FINANCEIRA DA FUB 2022",668,LOC. MÃO-DE-OBRA,Noweihi Cadina Luaemar Marulli Camião,null,UNIVERSIDADE DE BRASÍLIA,null,11468000.00,global,605
RECURSOS ORDINÁRIOS,48045.58,FISCAL,PR,2022,20/04/2022,SUPORTE DE TI,null,null,null,FUNCIONAMENTO DE INSTITUICOES FEDERAI - NO DF,23106.043256/2022-42,"C.CUSTO : CPD               S.E.I: 23106.043256/2022-42MEMO.062/2022/DPO/DOR       2022ND001485 - CONTRATO Nº 507/2019ATT - GLAUCIA LOPES LUIZ EVANGELISTA  - PROT:110114(48045,58)CENTRAL DE SERVIÇOS DE TIC - UPORTE A USUARIOS DE TIC - PROG.FINANCEIRA DA FUB 2022",667,SERVIÇOS TIC,Marine Amaldo Veneza,null,UNIVERSIDADE DE BRASÍLIA,null,48045.58,global,605
PRÓPRIOS -  PREST.SERVICOS FUB/FUNDO,6208.00,FISCAL,PR,2022,20/04/2022,CRÉDITOS DISTRIBUÍDOS PARA AS UNIDADES ADMINISTRATIVAS,null,null,null,FUNCIONAMENTO DE INSTITUICOES FEDERAI - NO DF,23106.037996/2022-40,"C. CUSTO: FCE.      PROT:110131{SM1339/2022(6208,00)}       SEI 23106.037996/2022-40.AQUISIÇÃO DE HD EXTERNO.EXTRATO SIAFI (8008155).        MEMO 07/2022/FCE/LICICON.",650,EQUIP. MATERIAL PERMANENTE,Lohaynne Mészola Mirgalouy Andonios,null,UNIVERSIDADE DE BRASÍLIA,null,6208.00,global,605
RECURSOS ORDINÁRIOS,750.00,FISCAL,PR 42/2020 - UNB,2022,20/04/2022,REPOSIÇÃO DE MATERIAL DO ALMOXARIFADO,null,null,null,FUNCIONAMENTO DE INSTITUICOES FEDERAI - NO DF,23106.044808/2020-78,"C.CUSTO: ALM - AT- ALEXANDRE PEIXOTO BEZERRA - PROT:1101100601{SM1579/2022(750,00)}         MATERIAL DE CONSUMO-PEDIDO:1579/2022 -2022ND001476 -PREG:042/2020MATERIAL DE CONSERVAÇÃO E LIMPEZA - DESINFETANTE LÍQUIDO - AROMATIZADO - 5 LITROSOFÍCIO.006/2022/DAF/DGM/ALM -  S.E.I 23106.042354/2022-62",649,MAT. CONSUMO,Rapp Sforcini Emerenciano,null,UNIVERSIDADE DE BRASÍLIA,null,750.00,ordinário,605
RECURSOS ORDINÁRIOS,3840.00,FISCAL,PR 42/2020 - UNB,2022,20/04/2022,REPOSIÇÃO DE MATERIAL DO ALMOXARIFADO,null,null,null,FUNCIONAMENTO DE INSTITUICOES FEDERAI - NO DF,23106.044808/2020-78,"C.CUSTO: ALM - AT- ALEXANDRE PEIXOTO BEZERRA - PROT:1101100601{SM1578/2022(3840,00)}         MATERIAL DE CONSUMO-PEDIDO:1578/2022 -2022ND001476 -PREG:042/2020MATERIAL DE CONSERVAÇÃO E LIMPEZA - ESPONA DUPLA FACE - SACO ALGODÃOOFÍCIO.006/2022/DAF/DGM/ALM -  S.E.I 23106.042354/2022-62",648,MAT. CONSUMO,BARACHO Torrel Passajou,null,UNIVERSIDADE DE BRASÍLIA,null,3840.00,ordinário,605
RECURSOS ORDINÁRIOS,23854.83,FISCAL,PR 42/2020 - UNB,2022,20/04/2022,REPOSIÇÃO DE MATERIAL DO ALMOXARIFADO,null,null,null,FUNCIONAMENTO DE INSTITUICOES FEDERAI - NO DF,23106.044808/2020-78,"C.CUSTO: ALM - AT- ALEXANDRE PEIXOTO BEZERRA - PROT:1101100601{SM1577/2022(23854,83)}         MATERIAL DE CONSUMO-PEDIDO:1577/2022 -2022ND001476 -PREG:42/2020MATERIAL DE CONSERVAÇÃO E LIMPEZA - ÁLCOOL - PAPEL HIGIÊNICO - SABONETE LÍQUIDOOFÍCIO.006/2022/DAF/DGM/ALM -  S.E.I 23106.042354/2022-62",647,MAT. CONSUMO,Soprani Meloquero Nisa Babilon Waldo,null,UNIVERSIDADE DE BRASÍLIA,null,23854.83,ordinário,605
RECURSOS ORDINÁRIOS,2827.80,FISCAL,PR 6/2021 - UNB,2022,20/04/2022,REPOSIÇÃO DE MATERIAL DO ALMOXARIFADO,null,null,null,FUNCIONAMENTO DE INSTITUICOES FEDERAI - NO DF,23106.055032/2020-11,"C.CUSTO: DAF - AT- ALEXANDRE PEIXOTO BEZERRA - PROT:1101100601{SM1583/2022(2827,80)}         MATERIAL DE CONSUMO-PEDIDO:1583/2022 -2022ND001473 -PREG:06/2021MATERIAL DE EXPEDIENTE - APOTADOR LÁPIS - FITA - CANETA OFÍCIO.005/2022/DAF/DGM/ALM -  S.E.I 23106.034477/2022-20",646,MAT. CONSUMO,Informação Anonimizada,null,UNIVERSIDADE DE BRASÍLIA,null,2827.80,ordinário,605
PRÓPRIOS -  PREST.SERVICOS FUB/FUNDO,3000.00,FISCAL,PR,2022,19/04/2022,CRÉDITOS DISTRIBUÍDOS PARA AS UNIDADES ADMINISTRATIVAS,null,null,null,FUNCIONAMENTO DE INSTITUICOES FEDERAI - NO DF,23106.031748/2022-95,"C. CUSTO: AUD                SEI:23106.031748/2022-95PAGAMENTO DE PASSAGEM NACIONAL - SERVIDOR   PROT:110103(3000,00)MEMO.031/2022/AUD/SEC        2022ND001467 - CONTRATO:125/2018",644,PASSAGENS,Laisson Mvuama Pangoni Deconto,null,UNIVERSIDADE DE BRASÍLIA,null,3000.00,estimativo,605
PRÓPRIOS -  PREST.SERVICOS FUB/FUNDO,2250.00,FISCAL,PR 207/2021 - UNB,2022,19/04/2022,CRÉDITOS DISTRIBUÍDOS PARA AS UNIDADES ADMINISTRATIVAS,null,null,null,FUNCIONAMENTO DE INSTITUICOES FEDERAI - NO DF,23106.079963/2020-13,"C. CUSTO: DPO             SEI:23106.033909/2022-85ATT:  DENISE IMBROISI     2022ND000000MEMO.030/2022/DPO/SEC     PROT:110135{SM1088/2022(2250,00)}MATERIAL DE PERMANENTE - PEDIDO:1088/2022 - PREG:207/2021EQUIPAMENTOS TIC - TABLET - TELA - 9.1 - 4GB RAM",640,EQUIPAMENTOS E MATERIAL PERMANENTE,Porcino Clívela Beledelli,null,UNIVERSIDADE DE BRASÍLIA,null,2250.00,ordinário,605
PRÓPRIOS -  PREST.SERVICOS FUB/FUNDO,776.00,FISCAL,PR,2022,19/04/2022,CRÉDITOS DISTRIBUÍDOS PARA AS UNIDADES ADMINISTRATIVAS,null,null,null,FUNCIONAMENTO DE INSTITUICOES FEDERAI - NO DF,23106.039966/2022-78,"C. CUSTO: CEAD               SEI: 23106.039966/2022-78ATT:  LETICIA LOPES LEITE    2022ND000000MEMO.S.N/2022/CEAD/CPF       PROT:110124{SM1074/2022(776,00)}MATERIAL DE PERMANENTE - PEDIDO:1074/2022 - PREG:204/2021  EQUIPAMENTOS TIC - HD EXTERNO 4TB",639,EQUIP. MATERIAL PERMANENTE,Lohaynne Mészola Mirgalouy Andonios,null,UNIVERSIDADE DE BRASÍLIA,null,776.00,global,605
PRÓPRIOS -  PREST.SERVICOS FUB/FUNDO,20000.00,FISCAL,PR,2022,19/04/2022,CRÉDITOS DISTRIBUÍDOS PARA AS UNIDADES ACADÊMICAS,null,null,null,FUNCIONAMENTO DE INSTITUICOES FEDERAI - NO DF,23106.042554/2022-15,"C. CUSTO: FAV.      PROT:11010105(20000,00)      SEI 23106.042554/2022-15.PASSAGENS AÉREAS INTERNACIONAIS.2022ND001459.        MEMO FAV/DIR/17/2022.",638,PASSAGENS,Laisson Mvuama Pangoni Deconto,null,UNIVERSIDADE DE BRASÍLIA,null,20000.00,estimativo,605
RECURSOS ORDINÁRIOS,48111.50,FISCAL,PR 18/2021 - UNB,2022,19/04/2022,FUNCIONAMENTO GERAL,null,null,null,FUNCIONAMENTO DE INSTITUICOES FEDERAI - NO DF,23106.032985/2021-92,"C.CUSTO: PRC -AT- CLEITON ALVES TORRES - PROT:110105{SM1261/2022(48111,50)}MATERIAL DE CONSUMO-PEDIDO:1261/2022 -2022ND001453 -PREG:018/2021MATERIAL DE LIMPEZA E HIGIENE - CONJUNTO DE LIXEIRA EXTERNA - 3 CESTOS - POLIPROPILENOMEMO.013/2022/ PRC / DIMAP / CZM - S.E.I 23106.036792/2022-91",637,MAT. CONSUMO,Marcus Venoso Eulâmpio Lika Fratuce,null,UNIVERSIDADE DE BRASÍLIA,null,48111.50,ordinário,605
PRÓPRIOS -  PREST.SERVICOS FUB/FUNDO,10000.00,FISCAL,PR,2022,18/04/2022,CRÉDITOS DISTRIBUÍDOS PARA AS UNIDADES ACADÊMICAS,null,null,null,FUNCIONAMENTO DE INSTITUICOES FEDERAI - NO DF,23106.041157/2022-26,"C. CUSTO: TEL                  SEI: 23106.041157/2022-26PAGAMENTO DE PASSAGEM  NACIONAL    PROT:11010119(10000,00)MEMO.S.N/2022/IL/TEL           2022ND001442 - CONTRATO:125/2018",635,PASSAGENS,Laisson Mvuama Pangoni Deconto,null,UNIVERSIDADE DE BRASÍLIA,null,10000.00,estimativo,605
PRÓPRIOS -  PREST.SERVICOS FUB/FUNDO,15000.00,FISCAL,PR,2022,18/04/2022,CRÉDITOS DISTRIBUÍDOS PARA AS UNIDADES ACADÊMICAS,null,null,null,FUNCIONAMENTO DE INSTITUICOES FEDERAI - NO DF,23106.041157/2022-26,"C. CUSTO: TEL                  SEI: 23106.041157/2022-26PAGAMENTO DE PASSAGEM INTERNACIONAL  PROT:11010119(15000,00)MEMO.S.N/2022/IL/TEL           2022ND001442 - CONTRATO:125/2018",634,PASSAGENS,Laisson Mvuama Pangoni Deconto,null,UNIVERSIDADE DE BRASÍLIA,null,15000.00,estimativo,605
PRÓPRIOS -  PREST.SERVICOS FUB/FUNDO,15000.00,FISCAL,PR,2022,18/04/2022,CRÉDITOS DISTRIBUÍDOS PARA AS UNIDADES ACADÊMICAS,null,null,null,FUNCIONAMENTO DE INSTITUICOES FEDERAI - NO DF,23106.040359/2022-51,"C. CUSTO: FAC               SEI: 23106.040359/2022-51PAGAMENTO DE PASSAGEM  NACIONAL   PROT:11010103(15000,00)OFÍCIO.010/2022/FAC         2022ND001439 - CONTRATO:125/2018",623,PASSAGENS,Laisson Mvuama Pangoni Deconto,null,UNIVERSIDADE DE BRASÍLIA,null,15000.00,estimativo,605
PRÓPRIOS -  PREST.SERVICOS FUB/FUNDO,3880.00,FISCAL,PR,2022,18/04/2022,CRÉDITOS DISTRIBUÍDOS PARA AS UNIDADES ACADÊMICAS,null,null,null,FUNCIONAMENTO DE INSTITUICOES FEDERAI - NO DF,23106.120590/2021-46,"C. CUSTO IPOL PROT:11010124{SM3990/2021(3880,00)}MEMORANDO 0041 (7348683) AQUISIÇÃO DE HD EXTERNO.SEI: 23106.120590/2021-46 2022ND001427 PR 204/2021 - UNB",617,EQUIP. MATERIAL PERMANENTE,Lohaynne Mészola Mirgalouy Andonios,null,UNIVERSIDADE DE BRASÍLIA,null,3880.00,ordinário,605
PRÓPRIOS -  PREST.SERVICOS FUB/FUNDO,10000.00,FISCAL,PR,2022,18/04/2022,CRÉDITOS DISTRIBUÍDOS PARA AS UNIDADES ADMINISTRATIVAS,null,null,null,FUNCIONAMENTO DE INSTITUICOES FEDERAI - NO DF,23106.040747/2022-31,"C. CUSTO: STI.       PROT:110114(10000,00)      SEI 23106.040747/2022-31.PASSAGENS AÉREAS NACIONAIS.2022ND001429.        DESPACHO STI/CGESP 7974968.",615,PASSAGENS,Laisson Mvuama Pangoni Deconto,null,UNIVERSIDADE DE BRASÍLIA,null,10000.00,estimativo,605
PRÓPRIOS -  PREST.SERVICOS FUB/FUNDO,2285.00,FISCAL,PR 10/2021 - UNB,2022,18/04/2022,CRÉDITOS DISTRIBUÍDOS PARA AS UNIDADES ACADÊMICAS,null,null,null,FUNCIONAMENTO DE INSTITUICOES FEDERAI - NO DF,23106.116899/2020-51,"C. CUSTO: FACE.     PROT:11010102{SM1155/2022(2285,00)}      SEI 23106.019937/2022-90.AQUISIÇÃO DE APARELHO DE AR CONDICIONADO.2022ND001436.         DESPACHO FACE/GPP 7766695.",612,EQUIP. MATERIAL PERMANENTE,Dellatorre de Gonzaga Cesso,null,UNIVERSIDADE DE BRASÍLIA,null,2285.00,ordinário,605
PRÓPRIOS -  PREST.SERVICOS FUB/FUNDO,24750.00,FISCAL,PR 207/2021 - UNB,2022,18/04/2022,CRÉDITOS DISTRIBUÍDOS PARA AS UNIDADES ADMINISTRATIVAS,null,null,null,FUNCIONAMENTO DE INSTITUICOES FEDERAI - NO DF,23106.079963/2020-13,"C. CUSTO INFRA PROT:110137{SM646/2022(24750,00)}DESPACHO INFRA (7874305) AQUISIÇÃO DE TABLETS. PE: 207/2021.SEI: 23106.030724/2022-19 2022ND001432",608,EQUIPAMENTOS E MATERIAL PERMANENTE,Porcino Clívela Beledelli,null,UNIVERSIDADE DE BRASÍLIA,null,24750.00,ordinário,605
PRÓPRIOS -  PREST.SERVICOS FUB/FUNDO,1440.00,FISCAL,PR 28/2021 - UNB,2022,14/04/2022,CRÉDITOS DISTRIBUÍDOS PARA AS UNIDADES ACADÊMICAS,null,null,null,20RK - PO COVID19,23106.054493/2021-58,"C.CUSTO: ICS.     PROT:11010113{SM984/2022(1440,00)}      SEI 23106.030983/2022-40.AQUISIÇÃO DE MASCARAS N95. 2022ND001413.    MEMO 017/2022/ICS/SOL/SEC.",607,MAT. CONSUMO,Shayenne Bonfain,null,UNIVERSIDADE DE BRASÍLIA,null,1440.00,ordinário,605
PRÓPRIOS -  PREST.SERVICOS FUB/FUNDO,46.85,FISCAL,PR 1/2022 - UNB,2022,13/04/2022,CRÉDITOS DISTRIBUÍDOS PARA AS UNIDADES ACADÊMICAS,null,null,null,FUNCIONAMENTO DE INSTITUICOES FEDERAI - NO DF,23106.119475/2021-29,"C. CUSTO: FSD             SEI:23106.036795/2022-25ATT: REGINA COELI DE CARVALHO 2022ND001404MEMO.001/2022/FS/NUT      PROT:11010110{SM1217/2022(46,85)}MATERIAL DE CONSUMO - PEDIDO:1217/2022 -   PREG:001/2022  MAT.DE ELET. ELETR. - BATERIA NÃO RECARREGÁVEL- TIPO ALCALINA",596,MAT. CONSUMO,Magron Rajagopalan Dezouzart Kalatzis,null,UNIVERSIDADE DE BRASÍLIA,null,46.85,ordinário,605
PRÓPRIOS -  PREST.SERVICOS FUB/FUNDO,574.96,FISCAL,PR 1/2022 - UNB,2022,13/04/2022,CRÉDITOS DISTRIBUÍDOS PARA AS UNIDADES ACADÊMICAS,null,null,null,FUNCIONAMENTO DE INSTITUICOES FEDERAI - NO DF,23106.119475/2021-29,"C. CUSTO: FSD             SEI:23106.036795/2022-25ATT: REGINA COELI DE CARVALHO 2022ND001404MEMO.001/2022/FS/NUT      PROT:11010110{SM1216/2022(574,96)}MATERIAL DE CONSUMO - PEDIDO:1216/2022 -   PREG:001/2022  MAT.DE COPA E COZINHA - XÍCARA -  MATERIAL PORCELANA -  TIPO CHÁ - COR BRANCA",595,MAT. CONSUMO,Lindovan Proscholdt Calais Generozo Hellemister,null,UNIVERSIDADE DE BRASÍLIA,null,574.96,ordinário,605
PRÓPRIOS -  PREST.SERVICOS FUB/FUNDO,103.36,FISCAL,PR 1/2022 - UNB,2022,13/04/2022,CRÉDITOS DISTRIBUÍDOS PARA AS UNIDADES ACADÊMICAS,null,null,null,FUNCIONAMENTO DE INSTITUICOES FEDERAI - NO DF,23106.119475/2021-29,"C. CUSTO: FSD             SEI:23106.036795/2022-25ATT: REGINA COELI DE CARVALHO 2022ND001404MEMO.001/2022/FS/NUT      PROT:11010110{SM1214/2022(103,36)}MATERIAL DE CONSUMO - PEDIDO:1214/2022 -   PREG:001/2022  MAT.DE ELET. ELETR. - PILHA - TAMANHO PEQUENA - TIPO ALCALINA",594,MAT. CONSUMO,Azeviche Ricchini Goveia,null,UNIVERSIDADE DE BRASÍLIA,null,103.36,ordinário,605
PRÓPRIOS -  PREST.SERVICOS FUB/FUNDO,116.05,FISCAL,PR 1/2022 - UNB,2022,13/04/2022,CRÉDITOS DISTRIBUÍDOS PARA AS UNIDADES ACADÊMICAS,null,null,null,FUNCIONAMENTO DE INSTITUICOES FEDERAI - NO DF,23106.119475/2021-29,"C. CUSTO: FSD             SEI:23106.036795/2022-25ATT: REGINA COELI DE CARVALHO 2022ND001404MEMO.001/2022/FS/NUT      PROT:11010110{SM1213/2022(116,05)}MATERIAL DE CONSUMO - PEDIDO:1213/2022 -   PREG:001/2022  MAT.DE COPA E COZINHA - COADOR DESCARTÁVEL CAFÉ - COPO DE VIDRO - 300ML",593,MAT. CONSUMO,Janecleja Barbiere Natal,null,UNIVERSIDADE DE BRASÍLIA,null,116.05,ordinário,605
PRÓPRIOS -  PREST.SERVICOS FUB/FUNDO,776.00,FISCAL,PR,2022,13/04/2022,CRÉDITOS DISTRIBUÍDOS PARA AS UNIDADES ADMINISTRATIVAS,null,null,null,FUNCIONAMENTO DE INSTITUICOES FEDERAI - NO DF,23106.039072/2022-88,"C. CUSTO: SECOM             SEI:23106.039072/2022-88ATT: MONICA CELEIDA RABELO NOGUEIRA 2022ND001403MEMO.042/2022/SECOM         PROT:110111{SM1413/2022(776,00)}MATERIAL DE PERMANENTE - PEDIDO:1413/2022 -   PREG:204/2021  EQUIPAMENTOS TIC - HD EXTERNO 4TB",592,EQUIP. MATERIAL PERMANENTE,Lohaynne Mészola Mirgalouy Andonios,null,UNIVERSIDADE DE BRASÍLIA,null,776.00,global,605
RECURSOS ORDINÁRIOS,1124.00,FISCAL,PR 28/2021 - UNB,2022,13/04/2022,MATRIZ HVET_,null,null,null,20RK - FUNCIONAMENTO DOS HOSPITAL VETERINARIOS,23106.054493/2021-58,"C. CUSTO: HVET.       PROT:1101010501{SM1446/2022(1124,00)}       SEI 23106.038539/2022-72.AQUISIÇÃO DE LUVAS DESCARTÁVEIS.2022ND001406.       DESPACHO FAV/HVET/HVETINHO 7953031.",591,MAT. CONSUMO,Cleirivania Goodwin Ramos,null,UNIVERSIDADE DE BRASÍLIA,null,1124.00,ordinário,605
PRÓPRIOS -  PREST.SERVICOS FUB/FUNDO,2250.00,FISCAL,PR 207/2021 - UNB,2022,13/04/2022,CRÉDITOS DISTRIBUÍDOS PARA AS UNIDADES ADMINISTRATIVAS,null,null,null,FUNCIONAMENTO DE INSTITUICOES FEDERAI - NO DF,23106.079963/2020-13,"C. CUSTO: CEAD.      PROT:110124{SM1075/2022(2250,00)}       SEI 23106.040044/2022-11.AQUISIÇÃO DE TABLET.2022ND001156.         DESPACHO CEAD/CPF 7967333.",589,EQUIPAMENTOS E MATERIAL PERMANENTE,Porcino Clívela Beledelli,null,UNIVERSIDADE DE BRASÍLIA,null,2250.00,ordinário,605
PRÓPRIOS -  PREST.SERVICOS FUB/FUNDO,615.00,FISCAL,PR 306/2021 - UNB,2022,13/04/2022,CRÉDITOS DISTRIBUÍDOS PARA AS UNIDADES ADMINISTRATIVAS,null,null,null,FUNCIONAMENTO DE INSTITUICOES FEDERAI - NO DF,23106.061116/2021-75,"C. CUSTO: FCE.     PROT:110131{SM1366/2022(615,00)}      SEI 23106.033824/2022-05.AQUISIÇÃO DE CARRINHO DE MÃO.DEMONSTRATIVO FCE (7976261).       MEMO 05/2022/FCE/LICICON.",587,EQUIP. MATERIAL PERMANENTE,Borghetti Oitaven de Ataide,null,UNIVERSIDADE DE BRASÍLIA,null,615.00,ordinário,605
PRÓPRIOS -  PREST.SERVICOS FUB/FUNDO,59.80,FISCAL,PR 306/2021 - UNB,2022,13/04/2022,CRÉDITOS DISTRIBUÍDOS PARA AS UNIDADES ACADÊMICAS,null,null,null,FUNCIONAMENTO DE INSTITUICOES FEDERAI - NO DF,23106.061116/2021-75,"C. CUSTO: FCE.     PROT:110131{SM1367/2022(59,80)}      SEI 23106.033824/2022-05.AQUISIÇÃO DE PNEU PARA CARRINHO DE MÃO.2022ND001389.       MEMO 05/2022/FCE/LICICON.",585,MAT. CONSUMO,Borghetti Oitaven de Ataide,null,UNIVERSIDADE DE BRASÍLIA,null,59.80,ordinário,605
RECURSOS DIR.ARRECADADOS(PROPRIOS)-FUB -,16135.69,FISCAL,PR,2022,12/04/2022,ARRECADACOES PROVENIENTES DO SIS,null,null,null,FUNCIONAMENTO DE INSTITUICOES FEDERAI - NO DF,23106.105081/2021-93,"C. CUSTO: SIS             SEI:23106.105081/2021-93PAGAMENTO DE FRETE AÉREO INTERNACIONAL -   SISMÔMETROS DE PERÍODO CURTO MEMO.104/2021/IG/SIS     2022ND001194 -  PROT:11010117030101(16135,69)FRETES E TRANSPORTES DE ENCOMENDAS-  CONTRATO 81/2017 - PREGÃO:06/2017",583,SERV. PESSOA JURÍDICA,Hashem Haizer Perosine,null,UNIVERSIDADE DE BRASÍLIA,null,16135.69,global,605
PRÓPRIOS -  PREST.SERVICOS FUB/FUNDO,5000.00,FISCAL,PR,2022,12/04/2022,CRÉDITOS DISTRIBUÍDOS PARA AS UNIDADES ACADÊMICAS,null,null,null,FUNCIONAMENTO DE INSTITUICOES FEDERAI - NO DF,23106.038136/2022-23,"C. CUSTO: FGA                     SEI:23106.038136/2022-23PAGAMENTO DE PASSAGEM NACIONAL     PROT:110132(5000,00)MEMO.S.N/2022/FGA/ADM/COMPRAS     2022ND001383 - CONTRATO: 125/2018",579,PASSAGENS,Laisson Mvuama Pangoni Deconto,null,UNIVERSIDADE DE BRASÍLIA,null,5000.00,estimativo,605
PRÓPRIOS -  PREST.SERVICOS FUB/FUNDO,64.45,FISCAL,PR,2022,12/04/2022,CRÉDITOS DISTRIBUÍDOS PARA AS UNIDADES ACADÊMICAS,null,null,null,FUNCIONAMENTO DE INSTITUICOES FEDERAI - NO DF,23106.034001/2022-99,"C. CUSTO: IHD.     PROT:11010118{SM1099/2022(64,45)}      SEI 23106.034001/2022-99.AQUISIÇÃO DE MOUSE PAD.2022ND001372.      MEMO 19/2022/ICH.",575,MAT. CONSUMO,Kreisler Servano Bogdanic,null,UNIVERSIDADE DE BRASÍLIA,null,64.45,global,605
RECURSOS DIR.ARRECADADOS(PROPRIOS)-FUB -,2000.00,FISCAL,PR,2022,12/04/2022,ARRECADACOES PROVENIENTES DO SIS,null,null,null,FUNCIONAMENTO DE INSTITUICOES FEDERAI - NO DF,23106.019227/2022-60,"C. CUSTO: SIS.      PROT:11010117030101(2000,00)       SEI 23106.019227/2022-60.   SEGURO VIAGEM.2022ND001361.     DESPACHO IG/SIS 7961133.",569,SERV. PESSOA JURÍDICA,Laisson Mvuama Pangoni Deconto,null,UNIVERSIDADE DE BRASÍLIA,null,2000.00,estimativo,605
RECURSOS DIRETAM.ARREC FUNDAÇÃO UNIV.BRASÍLIA,8020.25,FISCAL,PR,2022,12/04/2022,MANUTENCAO DE VEICULOS LEVES E PESADOS DA FUB,null,null,null,FUNCIONAMENTO DE INSTITUICOES FEDERAI - NO DF,23106.106336/2021-35,"C. CUSTO: PRC.      PROT:110105(8020,25)       SEI 23106.106336/2021-35.AQUISIÇÃO DE PEÇAS PARA MANUTENÇÃO DE VEÍCULO.2022ND001364.     MEMO 163/2021/FM/DIR.",568,MAT. CONSUMO,Eiter Ignaczuk Soleiro Havro,null,UNIVERSIDADE DE BRASÍLIA,null,8020.25,estimativo,605
RECURSOS DIRETAM.ARREC FUNDAÇÃO UNIV.BRASÍLIA,1861.66,FISCAL,PR,2022,12/04/2022,MANUTENCAO DE VEICULOS LEVES E PESADOS DA FUB,null,null,null,FUNCIONAMENTO DE INSTITUICOES FEDERAI - NO DF,23106.106336/2021-35,"C. CUSTO: PRC.      PROT:110105(1861,66)       SEI 23106.106336/2021-35.SERVIÇOS DE MANUTENÇÃO DE VEÍCULO.2022ND001364.     MEMO 163/2021/FM/DIR.",567,SERV. PESSOA JURÍDICA,Eiter Ignaczuk Soleiro Havro,null,UNIVERSIDADE DE BRASÍLIA,null,1861.66,estimativo,605
PRÓPRIOS -  PREST.SERVICOS FUB/FUNDO,22500.00,FISCAL,PR,2022,12/04/2022,CRÉDITOS DISTRIBUÍDOS PARA AS UNIDADES ADMINISTRATIVAS,null,null,null,FUNCIONAMENTO DE INSTITUICOES FEDERAI - NO DF,23106.038605/2022-12,"C. CUSTO BCE PROT:110113(22500,00) REQ: 1307/2022MEMORANDO 10 BCE (7953945) AQUISIÇÃO DE 10 (DEZ) TABLETS TELA 9SEI: 23106.038605/2022-12 DEMONSTRATIVO (7968553)",564,EQUIP. MATERIAL PERMANENTE,Porcino Clívela Beledelli,null,UNIVERSIDADE DE BRASÍLIA,null,22500.00,ordinário,605
PRÓPRIOS -  PREST.SERVICOS FUB/FUNDO,850.00,FISCAL,PR 205/2021 - UNB,2022,12/04/2022,CRÉDITOS DISTRIBUÍDOS PARA AS UNIDADES ADMINISTRATIVAS,null,null,null,FUNCIONAMENTO DE INSTITUICOES FEDERAI - NO DF,23106.112840/2020-93,"C. CUSTO BCE PROT:110113(850,00) REQ: 1328/2022MEMORANDO 12 (7954419) AQUISIÇÃO DE  01 (UMA) MESA DIGITALIZADORASEI:  23106.038640/2022-23  DEMONSTRATIVO (7968538)",563,EQUIP. MATERIAL PERMANENTE,Ilmetov Rondini Placco,null,UNIVERSIDADE DE BRASÍLIA,null,850.00,ordinário,605
PRÓPRIOS -  PREST.SERVICOS FUB/FUNDO,2784.00,FISCAL,PR,2022,12/04/2022,CRÉDITOS DISTRIBUÍDOS PARA AS UNIDADES ADMINISTRATIVAS,null,null,null,FUNCIONAMENTO DE INSTITUICOES FEDERAI - NO DF,23106.038621/2022-05,"C. CUSTO BCE PROT:110113(2784,00) REQ: 1329/2022MEMORANDO 11 (7954148) AQUISIÇÃO DE  04 (QUATRO) HDS EXTERNOSSEI: 23106.038621/2022-05  2022ND001363",562,EQUIP. MATERIAL PERMANENTE,Lohaynne Mészola Mirgalouy Andonios,null,UNIVERSIDADE DE BRASÍLIA,null,2784.00,ordinário,605
PRÓPRIOS -  PREST.SERVICOS FUB/FUNDO,3100.00,FISCAL,PR 34/2021 - UNB,2022,12/04/2022,CRÉDITOS DISTRIBUÍDOS PARA AS UNIDADES ADMINISTRATIVAS,null,null,null,FUNCIONAMENTO DE INSTITUICOES FEDERAI - NO DF,23106.053995/2021-61,"C. CUSTO FCE PROT:110131(3100,00) REQ: 1365/2022MEMORANDO 06 (7905452) AQUISIÇÃO DE EQUIPAMENTOS DE MEDIÇÃOSEI: 23106.033877/2022-18 DEMONSTRATIVO (7968024)",561,EQUIP. MATERIAL PERMANENTE,Delli Mairena Bohrer,null,UNIVERSIDADE DE BRASÍLIA,null,3100.00,ordinário,605
PRÓPRIOS -  PREST.SERVICOS FUB/FUNDO,1300.00,FISCAL,PR 34/2021 - UNB,2022,12/04/2022,CRÉDITOS DISTRIBUÍDOS PARA AS UNIDADES ADMINISTRATIVAS,null,null,null,FUNCIONAMENTO DE INSTITUICOES FEDERAI - NO DF,23106.053995/2021-61,"C. CUSTO FCE PROT:110131(1300,00) REQ: 1364/2022MEMORANDO 06 (7905452) AQUISIÇÃO DE EQUIPAMENTOS DE MEDIÇÃOSEI: 23106.033877/2022-18 DEMONSTRATIVO (7968024)",560,EQUIP. MATERIAL PERMANENTE,Zandona Salache Fagherészi,null,UNIVERSIDADE DE BRASÍLIA,null,1300.00,ordinário,605
PRÓPRIOS -  PREST.SERVICOS FUB/FUNDO,11250.00,FISCAL,PR 207/2021 - UNB,2022,11/04/2022,CRÉDITOS DISTRIBUÍDOS PARA AS UNIDADES ACADÊMICAS,null,null,null,FUNCIONAMENTO DE INSTITUICOES FEDERAI - NO DF,23106.079963/2020-13,"C. CUSTO: IREL                 SEI:23106.034369/2022-57ATT: FRANCELE THEODO ASSUMÇÃO  2022ND000000MEMO.018/2022/IREL/SEC         PROT:11010125{SM709/2022(11250,00)}MATERIAL DE PERMANENTE - PEDIDO:709/2022 -   PREG:207/2021  EQUIPAMENTOS TIC - TABLET - TELA - 9.1 - 4GB RAM",559,EQUIPAMENTOS E MATERIAL PERMANENTE,Porcino Clívela Beledelli,null,UNIVERSIDADE DE BRASÍLIA,null,11250.00,ordinário,605
PRÓPRIOS -  PREST.SERVICOS FUB/FUNDO,1387.70,FISCAL,PR 3/2022 - UNB,2022,11/04/2022,CRÉDITOS DISTRIBUÍDOS PARA AS UNIDADES ACADÊMICAS,null,null,null,FUNCIONAMENTO DE INSTITUICOES FEDERAI - NO DF,23106.102234/2021-41,"C. CUSTO: FEF.       PROT:11010108{SM1392/2022(1387,70)}    SEI 23106.038535/2022-94.AQUISIÇÃO DE MATERIAIS PARA TRATAMENTO DE PISCINAS.2022ND001346.        034/2022/FEF/FINANCEIRO.",557,MAT. CONSUMO,Oão Ariza Girola Crusca,null,UNIVERSIDADE DE BRASÍLIA,null,1387.70,ordinário,605
PRÓPRIOS -  PREST.SERVICOS FUB/FUNDO,10899.00,FISCAL,PR 3/2022 - UNB,2022,11/04/2022,CRÉDITOS DISTRIBUÍDOS PARA AS UNIDADES ACADÊMICAS,null,null,null,FUNCIONAMENTO DE INSTITUICOES FEDERAI - NO DF,23106.102234/2021-41,"C. CUSTO: FEF.       PROT:11010108{SM1391/2022(10899,00)}AQUISIÇÃO DE MATERIAIS PARA TRATAMENTO DE PISCINAS.2022ND001346.        034/2022/FEF/FINANCEIRO.",556,MAT. CONSUMO,Informação Anonimizada,null,UNIVERSIDADE DE BRASÍLIA,null,10899.00,ordinário,605
PRÓPRIOS -  PREST.SERVICOS FUB/FUNDO,4656.00,FISCAL,PR,2022,11/04/2022,CRÉDITOS DISTRIBUÍDOS PARA AS UNIDADES ADMINISTRATIVAS,null,null,null,FUNCIONAMENTO DE INSTITUICOES FEDERAI - NO DF,23106.037257/2022-58,"C. CUSTO: FUP                         SEI:23106.037257/2022-58ATT: REINALDO JOSE DE MIRANDA FILHO   2022ND000000MEMO.S.N/2022/FUP/GCF                 PROT:110129{SM1290/2022(4656,00)}MATERIAL DE PERMANENTE - PEDIDO:1290/2021 -   PREG:204/2021  EQUIPAMENTOS TIC - HD EXTERNO 4TB",554,EQUIP. MATERIAL PERMANENTE,Lohaynne Mészola Mirgalouy Andonios,null,UNIVERSIDADE DE BRASÍLIA,null,4656.00,global,605
RECURSOS DIR.ARRECADADOS(PROPRIOS)-FUB -,445.86,FISCAL,PR 17/2021 - UNB,2022,07/04/2022,ARRECADACOES DA FAL - HORTIFRUTIGRANJEIRO,null,null,null,FUNCIONAMENTO DE INSTITUICOES FEDERAI - NO DF,23106.043838/2021-48,"C. CUSTO:FAL.       PROT:110116{SM1172/2022(445,86)     SEI 23106.037457/2022-19.  AQUISIÇÃO DE MATERIAIS E MEDICAMENTOS PARA USO VETERINÁRIO.2022ND001282.       MEMO 43/2022/FAL.",547,MAT. CONSUMO,Ching Kolarovic Simoyama,null,UNIVERSIDADE DE BRASÍLIA,null,445.86,ordinário,605
RECURSOS DIR.ARRECADADOS(PROPRIOS)-FUB -,3095.92,FISCAL,PR 17/2021 - UNB,2022,07/04/2022,ARRECADACOES DA FAL - HORTIFRUTIGRANJEIRO,null,null,null,FUNCIONAMENTO DE INSTITUICOES FEDERAI - NO DF,23106.043838/2021-48,"C. CUSTO:FAL.       PROT:110116{SM1171/2022(3095,92)     SEI 23106.037457/2022-19.  AQUISIÇÃO DE MATERIAIS E MEDICAMENTOS PARA USO VETERINÁRIO.2022ND001282.       MEMO 43/2022/FAL.",546,MAT. CONSUMO,Elienir Vanina Gandala Cachioni,null,UNIVERSIDADE DE BRASÍLIA,null,3095.92,ordinário,605
RECURSOS DIR.ARRECADADOS(PROPRIOS)-FUB -,2043.90,FISCAL,PR 17/2021 - UNB,2022,07/04/2022,ARRECADACOES DA FAL - HORTIFRUTIGRANJEIRO,null,null,null,FUNCIONAMENTO DE INSTITUICOES FEDERAI - NO DF,23106.043838/2021-48,"C. CUSTO:FAL.       PROT:110116{SM1170/2022(2043,90)     SEI 23106.037457/2022-19.  AQUISIÇÃO DE MATERIAIS E MEDICAMENTOS PARA USO VETERINÁRIO.2022ND001282.       MEMO 43/2022/FAL.",545,MAT. CONSUMO,Piheiro Zemolin Dussivania Krog,null,UNIVERSIDADE DE BRASÍLIA,null,2043.90,ordinário,605
RECURSOS DIR.ARRECADADOS(PROPRIOS)-FUB -,1852.00,FISCAL,PR,2022,07/04/2022,ARRECADACOES DA FAL - HORTIFRUTIGRANJEIRO,null,null,null,FUNCIONAMENTO DE INSTITUICOES FEDERAI - NO DF,23106.037457/2022-19,"C. CUSTO:FAL.       PROT:110116{SM1169/2022(1852,00)     SEI 23106.037457/2022-19.  AQUISIÇÃO DE MATERIAIS E MEDICAMENTOS PARA USO VETERINÁRIO.2022ND001282.       MEMO 43/2022/FAL.",544,MAT. CONSUMO,Diala Payao,null,UNIVERSIDADE DE BRASÍLIA,null,1852.00,global,605
PRÓPRIOS -  PREST.SERVICOS FUB/FUNDO,500.00,FISCAL,PR,2022,07/04/2022,CRÉDITOS DISTRIBUÍDOS PARA AS UNIDADES ADMINISTRATIVAS,null,null,null,FUNCIONAMENTO DE INSTITUICOES FEDERAI - NO DF,23106.037146/2022-41,"C. CUSTO: GRE                 SEI:23106.037146/2022-41PAGAMENTO DE SEGURO VIAGEM    PROT:1101(500,00)MEMO.018/2022/REITORIA/GRE    2022ND001265 - CONTRATO: 125/2018",543,SERV. PESSOA JURÍDICA,Laisson Mvuama Pangoni Deconto,null,UNIVERSIDADE DE BRASÍLIA,null,500.00,estimativo,605
RECURSOS DIR.ARRECADADOS(PROPRIOS)-FUB -,1371.20,FISCAL,PR 17/2021 - UNB,2022,07/04/2022,ARRECADACOES DA FAL - HORTIFRUTIGRANJEIRO,null,null,null,FUNCIONAMENTO DE INSTITUICOES FEDERAI - NO DF,23106.043838/2021-48,"C. CUSTO:FAL.       PROT:110116{SM1093/2022(1371,20)     SEI 23106.037457/2022-19.  AQUISIÇÃO DE MATERIAIS E MEDICAMENTOS PARA USO VETERINÁRIO.2022ND001282.       MEMO 43/2022/FAL.",542,MAT. CONSUMO,Gutto do Procópio Kregenski Monbaque,null,UNIVERSIDADE DE BRASÍLIA,null,1371.20,ordinário,605
PRÓPRIOS -  PREST.SERVICOS FUB/FUNDO,20000.00,FISCAL,PR,2022,07/04/2022,CRÉDITOS DISTRIBUÍDOS PARA AS UNIDADES ADMINISTRATIVAS,null,null,null,FUNCIONAMENTO DE INSTITUICOES FEDERAI - NO DF,23106.037146/2022-41,"C. CUSTO: GRE                      SEI:23106.037146/2022-41PAGAMENTO DE PASSAGEM  INTERNACIONAL    PROT:1101(20000,00)MEMO.018/2022/REITORIA/GRE         2022ND001265",541,PASSAGENS,Laisson Mvuama Pangoni Deconto,null,UNIVERSIDADE DE BRASÍLIA,null,20000.00,estimativo,605
PRÓPRIOS -  PREST.SERVICOS FUB/FUNDO,5000.00,FISCAL,PR,2022,07/04/2022,CRÉDITOS DISTRIBUÍDOS PARA AS UNIDADES ADMINISTRATIVAS,null,null,null,FUNCIONAMENTO DE INSTITUICOES FEDERAI - NO DF,23106.037146/2022-41,"C. CUSTO: GRE                      SEI:23106.037146/2022-41PAGAMENTO DE PASSAGEM  NACIONAL    PROT:1101(5000,00)MEMO.018/2022/REITORIA/GRE         2022ND001265",540,PASSAGENS,Laisson Mvuama Pangoni Deconto,null,UNIVERSIDADE DE BRASÍLIA,null,5000.00,estimativo,605
RECURSOS DIR.ARRECADADOS(PROPRIOS)-FUB -,5509.26,FISCAL,PR 17/2021 - UNB,2022,07/04/2022,ARRECADACOES DA FAL - HORTIFRUTIGRANJEIRO,null,null,null,FUNCIONAMENTO DE INSTITUICOES FEDERAI - NO DF,23106.043838/2021-48,"C. CUSTO:FAL.       PROT:110116{SM1092/2022(5509,26)     SEI 23106.037457/2022-19.  AQUISIÇÃO DE MATERIAIS HOSPITALARES E MEDICAMENTOS PARA USO VETERINÁRIO.2022ND001282.       MEMO 43/2022/FAL.",537,MAT. CONSUMO,Osmarnildo Atopo Bolinja,null,UNIVERSIDADE DE BRASÍLIA,null,5509.26,ordinário,605
RECURSOS DIRETAM.ARREC FUNDAÇÃO UNIV.BRASÍLIA,1152.84,FISCAL,PR,2022,07/04/2022,MANUTENCAO DE VEICULOS LEVES E PESADOS DA FUB,null,null,null,FUNCIONAMENTO DE INSTITUICOES FEDERAI - NO DF,23106.107513/2021-09,"C. CUSTO: PRC.       PROT:110105(1152,84)     SEI 23106.107513/2021-09.SERVIÇO DE MANUTENÇÃO DE VEÍCULO.2022ND001228.      MEMO 164/2021/FM/DIR.",536,SERV. PESSOA JURÍDICA,Eiter Ignaczuk Soleiro Havro,null,UNIVERSIDADE DE BRASÍLIA,null,1152.84,estimativo,605
PRÓPRIOS -  PREST.SERVICOS FUB/FUNDO,439.00,FISCAL,PR 501/2021 - UNB,2022,07/04/2022,CRÉDITOS DISTRIBUÍDOS PARA AS UNIDADES ADMINISTRATIVAS,null,null,null,FUNCIONAMENTO DE INSTITUICOES FEDERAI - NO DF,23106.064376/2019-88,"C.CUSTO: DEX -AT- FLAVIA MOTOYAMA NARITA - PROT:110107{SM1119/2022(439,00)} MATERIAL DE CONSUMO-PEDIDO:1119/2022 -2022ND001281 -PREG: 501/2021MATERIAL DE  PROTEÇÃO E SEGURANÇA - LUVA ALGODÃO BRANCA FINAMEMO.017/2022/DEX/DDC -  S.E.I 23106.035624/2022-89",534,MAT. CONSUMO,Benon Takahira Prumkroi Siracusa,null,UNIVERSIDADE DE BRASÍLIA,null,439.00,ordinário,605
RECURSOS DIRETAM.ARREC FUNDAÇÃO UNIV.BRASÍLIA,7675.18,FISCAL,PR,2022,07/04/2022,MANUTENCAO DE VEICULOS LEVES E PESADOS DA FUB,null,null,null,FUNCIONAMENTO DE INSTITUICOES FEDERAI - NO DF,23106.107513/2021-09,"C. CUSTO: PRC.       PROT:110105(7675,18)     SEI 23106.107513/2021-09.PEÇAS PARA MANUTENÇÃO DE VEÍCULO.2022ND001228.      MEMO 164/2021/FM/DIR.",533,MAT. CONSUMO,Eiter Ignaczuk Soleiro Havro,null,UNIVERSIDADE DE BRASÍLIA,null,7675.18,estimativo,605
RECURSOS DIR.ARRECADADOS(PROPRIOS)-FUB -,39200.00,FISCAL,PR 23/2021 - UNB,2022,07/04/2022,ARRECADACOES DA FAL - HORTIFRUTIGRANJEIRO,null,null,null,FUNCIONAMENTO DE INSTITUICOES FEDERAI - NO DF,23106.004995/2021-38,"C. CUSTO: FAL.       PROT:110116{SM1354/2022(39200,00)}     SEI 23106.038051/2022-45.    AQUISIÇÃO DE FARELO SOJA.2022ND001278.      MEMO 44/2022/FAL.",532,MAT. CONSUMO,Barbisan Maklouf Wiesiolek Calvao,null,UNIVERSIDADE DE BRASÍLIA,null,39200.00,ordinário,605
RECURSOS DIR.ARRECADADOS(PROPRIOS)-FUB -,7933.98,FISCAL,PR 23/2021 - UNB,2022,07/04/2022,ARRECADACOES DA FAL - HORTIFRUTIGRANJEIRO,null,null,null,FUNCIONAMENTO DE INSTITUICOES FEDERAI - NO DF,23106.004995/2021-38,"C. CUSTO: FAL.       PROT:110116{SM1349/2022(7933,98)}     SEI 23106.038051/2022-45.    AQUISIÇÃO DE LONA PLÁSTICA.2022ND001278.      MEMO 44/2022/FAL.",531,MAT. CONSUMO,Piheiro Zemolin Dussivania Krog,null,UNIVERSIDADE DE BRASÍLIA,null,7933.98,ordinário,605
PRÓPRIOS -  PREST.SERVICOS FUB/FUNDO,11200.00,FISCAL,PR 23/2021 - UNB,2022,07/04/2022,CRÉDITOS DISTRIBUÍDOS PARA AS UNIDADES ADMINISTRATIVAS,null,null,null,FUNCIONAMENTO DE INSTITUICOES FEDERAI - NO DF,23106.004995/2021-38,"C. CUSTO: FAL.       PROT:110116{SM1355/2022(11200,00)}     SEI 23106.038051/2022-45.    AQUISIÇÃO DE FARELO SOJA.2022ND001278.      MEMO 44/2022/FAL.",530,MAT. CONSUMO,Barbisan Maklouf Wiesiolek Calvao,null,UNIVERSIDADE DE BRASÍLIA,null,11200.00,ordinário,605
PRÓPRIOS -  PREST.SERVICOS FUB/FUNDO,245.00,FISCAL,PR,2022,07/04/2022,CRÉDITOS DISTRIBUÍDOS PARA AS UNIDADES ADMINISTRATIVAS,null,null,null,FUNCIONAMENTO DE INSTITUICOES FEDERAI - NO DF,23106.034526/2022-24,"C. CUSTO: GRE.      PROT:1101{SM1128/2022(245,00)}      SEI 23106.034526/2022-24.AQUISIÇÃO DE MATERIAL DE COPA E COZINHA.  2022ND001273.      MEMO 0017/2022/REITORIA/GRE.",529,MAT. CONSUMO,Janecleja Barbiere Natal,null,UNIVERSIDADE DE BRASÍLIA,null,245.00,ordinário,605
PRÓPRIOS -  PREST.SERVICOS FUB/FUNDO,267.96,FISCAL,PR 1/2022 - UNB,2022,07/04/2022,CRÉDITOS DISTRIBUÍDOS PARA AS UNIDADES ADMINISTRATIVAS,null,null,null,FUNCIONAMENTO DE INSTITUICOES FEDERAI - NO DF,23106.119475/2021-29,"C. CUSTO: GRE.      PROT:1101{SM1130/2022(267,96)}      SEI 23106.034526/2022-24.AQUISIÇÃO DE MATERIAL DE COPA E COZINHA.  2022ND001273.      MEMO 0017/2022/REITORIA/GRE.",528,MAT. CONSUMO,Lindovan Proscholdt Calais Generozo Hellemister,null,UNIVERSIDADE DE BRASÍLIA,null,267.96,ordinário,605
PRÓPRIOS -  PREST.SERVICOS FUB/FUNDO,166.00,FISCAL,PR,2022,07/04/2022,CRÉDITOS DISTRIBUÍDOS PARA AS UNIDADES ADMINISTRATIVAS,null,null,null,FUNCIONAMENTO DE INSTITUICOES FEDERAI - NO DF,23106.034526/2022-24,"C. CUSTO: GRE.      PROT:1101{SM1129/2022(166,00)}      SEI 23106.034526/2022-24.AQUISIÇÃO DE MATERIAL DE COPA E COZINHA.  2022ND001273.      MEMO 0017/2022/REITORIA/GRE.",527,MAT. CONSUMO,Adonias Milman Fauth Seye,null,UNIVERSIDADE DE BRASÍLIA,null,166.00,ordinário,605
RECURSOS ORDINÁRIOS,35000.00,FISCAL,PR,2022,07/04/2022,SEGURO PARA IMóVEIS COMERCIAIS E RESIDENCIAIL,null,null,null,FUNCIONAMENTO DE INSTITUICOES FEDERAI - NO DF,23106.082412/2016-42,"C. CUSTO : CAC/SPI SEI: 23106.082412/2016-42 2022ND001077CONTRATO: 18/2017 ATT - BRUNA PEREIRA BATISTA DE SOUZA - PROT:110147(35000,00) - PREG: 069/2016MANUT.CONSERV. DE BENS IMÓVEIS - PRORROGAÇÃO DO QUINTO TERMO ADITIVO - 12 MESES",526,SERV. PESSOA JURÍDICA,Joirge Arigussi Craide,null,UNIVERSIDADE DE BRASÍLIA,null,35000.00,global,605
PRÓPRIOS -  PREST.SERVICOS FUB/FUNDO,2200.00,FISCAL,PR,2022,06/04/2022,CRÉDITOS DISTRIBUÍDOS PARA AS UNIDADES ADMINISTRATIVAS,null,null,null,FUNCIONAMENTO DE INSTITUICOES FEDERAI - NO DF,23106.036605/2022-70,"C. CUSTO: SECOM                SEI:23106.036605/2022-70PAGAMENTO DE PASSAGEM SERVIDOR PROT:110111(2200,00)MEMO.037/2022/SECOM            2022ND001244 - CONTRATO:125/2018",523,PASSAGENS,Laisson Mvuama Pangoni Deconto,null,UNIVERSIDADE DE BRASÍLIA,null,2200.00,estimativo,605
PRÓPRIOS -  PREST.SERVICOS FUB/FUNDO,1450.00,FISCAL,PR,2022,06/04/2022,CRÉDITOS DISTRIBUÍDOS PARA AS UNIDADES ADMINISTRATIVAS,null,null,null,FUNCIONAMENTO DE INSTITUICOES FEDERAI - NO DF,23106.037352/2022-51,"C. CUSTO: ACE                      SEI:23106.037352/2022-51PAGAMENTO DE PASSAGEM  SERVIDOR    PROT:110141(1450,00)MEMO.016/2022/ACE                  2022ND001268 - CONTRATO:125/2018",521,PASSAGENS,Laisson Mvuama Pangoni Deconto,null,UNIVERSIDADE DE BRASÍLIA,null,1450.00,estimativo,605
RECURSOS ORDINÁRIOS,0.00,FISCAL,PR,2022,05/04/2022,SEGURO PARA IMóVEIS COMERCIAIS E RESIDENCIAIL,null,38200.00,null,FUNCIONAMENTO DE INSTITUICOES FEDERAI - NO DF,23106.082412/2016-42,"C. CUSTO : CAC/SPI SEI: 23106.082412/2016-42 2022ND001077CONTRATO: 18/2017 ATT - BRUNA PEREIRA BATISTA DE SOUZA - PROT:110147(38200,00) - PREG: 069/2016MANUT.CONSERV. DE BENS IMÓVEIS - PRORROGAÇÃO DO QUINTO TERMO ADITIVO - 12 MESES",512,SERV. PESSOA JURÍDICA,Joirge Arigussi Craide,null,UNIVERSIDADE DE BRASÍLIA,null,38200.00,global,605
RECURSOS ORDINÁRIOS,1000000.00,FISCAL,RDC,2022,05/04/2022,OBRA DE CONSTRUÇÃO DO CENTRO DE BIOTECNOLOGIA MOLECULAR - CBIOTECH,null,null,null,FUNCIONAMENTO DE INSTITUICOES FEDERAI - NO DF,23106.072505/2017-40,"C. CUSTO: INFRA.     PROT:110137(1000000,00)      SEI 23106.072505/2017-40.OBRA DE CONSTRUÇÃO DO CENTRO DE BIOTECNOLOGIA MOLECULAR - CBIOTECH.2022ND001255.",511,OBRAS E INSTALAÇÕES,Informação Anonimizada,null,UNIVERSIDADE DE BRASÍLIA,null,1000000.00,global,605
RECURSOS DIR.ARRECADADOS(PROPRIOS)-FUB -,1840.01,FISCAL,PR,2022,05/04/2022,ARRECADACOES DA FAL - HORTIFRUTIGRANJEIRO,null,null,null,FUNCIONAMENTO DE INSTITUICOES FEDERAI - NO DF,23106.036344/2022-98,"C.CUSTO: FAL -AT- REGINALDO SERGIO PEREIRA - PROT:110116{SM1167/2022(1840,01)}         MATERIAL DE CONSUMO-PEDIDO:1167/2022 -2022ND001246 -PREG:009/2021MATERIAIS E MEDICAMENTOS P/ USO VETERINARIO - ANTISMASTÍTICO - BAINHA - ESTIMULANTEMEMO.042/2022/FAL -  S.E.I 23106.036344/2022-98",509,MAT. CONSUMO,Osmarnildo Atopo Bolinja,null,UNIVERSIDADE DE BRASÍLIA,null,1840.01,global,605
RECURSOS DIR.ARRECADADOS(PROPRIOS)-FUB -,1995.76,FISCAL,PR,2022,05/04/2022,ARRECADACOES DA FAL - HORTIFRUTIGRANJEIRO,null,null,null,FUNCIONAMENTO DE INSTITUICOES FEDERAI - NO DF,23106.036344/2022-98,"C.CUSTO: FAL -AT- REGINALDO SERGIO PEREIRA - PROT:110116{SM1166/2022(1995,76)}         MATERIAL DE CONSUMO-PEDIDO:1166/2022 -2022ND001246 -PREG:009/2021MATERIAIS E MEDICAMENTOS P/ USO VETERINARIO - ANTISMASTÍTICO CIPROFLOXACINAMEMO.042/2022/FAL -  S.E.I 23106.036344/2022-98",508,MAT. CONSUMO,Gutto do Procópio Kregenski Monbaque,null,UNIVERSIDADE DE BRASÍLIA,null,1995.76,global,605
RECURSOS DIR.ARRECADADOS(PROPRIOS)-FUB -,3945.63,FISCAL,PR,2022,05/04/2022,ARRECADACOES DA FAL - HORTIFRUTIGRANJEIRO,null,null,null,FUNCIONAMENTO DE INSTITUICOES FEDERAI - NO DF,23106.036344/2022-98,"C.CUSTO: FAL -AT- REGINALDO SERGIO PEREIRA - PROT:110116{SM1160/2022(3945,63)}         MATERIAL DE CONSUMO-PEDIDO:1160/2022 -2022ND001246 -PREG:009/2021MATERIAIS E MEDICAMENTOS P/ USO VETERINARIO - SAL MINERAL EQUINOSMEMO.042/2022/FAL -  S.E.I 23106.036344/2022-98",507,MAT. CONSUMO,A Caldeira Mészarioli Jammal Petruceli,null,UNIVERSIDADE DE BRASÍLIA,null,3945.63,global,605
RECURSOS DIR.ARRECADADOS(PROPRIOS)-FUB -,420.01,FISCAL,PR,2022,05/04/2022,ARRECADACOES DA FAL - HORTIFRUTIGRANJEIRO,null,null,null,FUNCIONAMENTO DE INSTITUICOES FEDERAI - NO DF,23106.036344/2022-98,"C.CUSTO: FAL -AT- REGINALDO SERGIO PEREIRA - PROT:110116{SM1149/2022(420,01)}         MATERIAL DE CONSUMO-PEDIDO:1149/2022 -2022ND001246 -PREG:009/2021MATERIAIL HOSPITALAR - AGULHA E SERINGAMEMO.042/2022/FAL -  S.E.I 23106.036344/2022-98",506,MAT. CONSUMO,Mxiline Falconeres Abdo Marquito,null,UNIVERSIDADE DE BRASÍLIA,null,420.01,global,605
RECURSOS DIR.ARRECADADOS(PROPRIOS)-FUB -,835.28,FISCAL,PR,2022,05/04/2022,ARRECADACOES DA FAL - HORTIFRUTIGRANJEIRO,null,null,null,FUNCIONAMENTO DE INSTITUICOES FEDERAI - NO DF,23106.036344/2022-98,"C.CUSTO: FAL -AT- REGINALDO SERGIO PEREIRA - PROT:110116{SM1091/2022(835,28)}         MATERIAL DE CONSUMO-PEDIDO:1091/2022 -2022ND001246 -PREG:009/2021MATERIAIS E MEDICAMENTOS P/ USO VETERINARIO - ANTI PARASITÁRIO - ANTISSÉPTICOMEMO.042/2022/FAL -  S.E.I 23106.036344/2022-98",505,MAT. CONSUMO,Olenski Guilherm Baudson,null,UNIVERSIDADE DE BRASÍLIA,null,835.28,global,605
RECURSOS DIR.ARRECADADOS(PROPRIOS)-FUB -,1712.30,FISCAL,PR,2022,05/04/2022,ARRECADACOES DA FAL - HORTIFRUTIGRANJEIRO,null,null,null,FUNCIONAMENTO DE INSTITUICOES FEDERAI - NO DF,23106.036344/2022-98,"C.CUSTO: FAL -AT- REGINALDO SERGIO PEREIRA - PROT:110116{SM1090/2022(1712,30)}         MATERIAL DE CONSUMO-PEDIDO:1090/2022 -2022ND001246 -PREG:009/2021MATERIAIS E MEDICAMENTOS P/ USO VETERINARIO -  INJETÁVEL - ANTIMICROBIANOMEMO.042/2022/FAL -  S.E.I 23106.036344/2022-98",504,MAT. CONSUMO,Alaver Nicolsky Buard Bicato Nepumuceno,null,UNIVERSIDADE DE BRASÍLIA,null,1712.30,global,605
RECURSOS ORDINÁRIOS,3000.00,FISCAL,PR,2022,04/04/2022,TAXIGOV (MOTORISTA),null,null,null,FUNCIONAMENTO DE INSTITUICOES FEDERAI - NO DF,23106.033455/2022-42,"C.CUSTO:DTER.  PROT:11011007(3000,00)     SEI 23106.033455/2022-42.PRESTAÇÃO DE SERV DE TRANSPORTE TERRESTRE (TAXIGOV) CONTRATO N.036/2020.   2022ND001239.",499,PASSAGENS,Merhy Takada Emile,null,UNIVERSIDADE DE BRASÍLIA,null,3000.00,estimativo,605
PRÓPRIOS -  PREST.SERVICOS FUB/FUNDO,6750.00,FISCAL,PR,2022,04/04/2022,CRÉDITOS DISTRIBUÍDOS PARA AS UNIDADES ADMINISTRATIVAS,null,null,null,FUNCIONAMENTO DE INSTITUICOES FEDERAI - NO DF,23106.034122/2022-31,"C. CUSTO: DAC.      PROT:110109{SM635/2022(6750,00)}       SEI 23106.034122/2022-31.AQUISIÇÃO DE TABLETS.2022ND001238.      MEMO 028/2022/DAC/DDS.",497,EQUIP. MATERIAL PERMANENTE,Porcino Clívela Beledelli,null,UNIVERSIDADE DE BRASÍLIA,null,6750.00,ordinário,605
TAXA DE ALUNO ESPECIAL -FUB,6500.00,FISCAL,PR,2022,04/04/2022,POS GRAD PSICOLOGIA CLINICA E CULTURA/IP,null,null,null,FUNCIONAMENTO DE INSTITUICOES FEDERAI - NO DF,23106.034860/2022-88,"C. CUSTO: PCL.      PROT:1101012002(6500,00)     SEI 23106.034860/2022-88.PASSAGENS AÉREAS NACIONAIS.2022ND001232.   MEMO 44/2022/IP/PCL/PPGPSICC.",494,PASSAGENS,Laisson Mvuama Pangoni Deconto,null,UNIVERSIDADE DE BRASÍLIA,null,6500.00,estimativo,605
UNB/ARRECADAÇÃO CESPE,535.06,FISCAL,PR,2022,01/04/2022,DESPESAS ADMINISTRATIVAS DO CESPE,null,null,null,FUNCIONAMENTO DE INSTITUICOES FEDERAI - NO DF,23106.032112/2022-61,"C. CUSTO: CESPE                         SEI:23106.032112/2022-61PAG.FRETES E TRANSPORTE DE ENCOMENDAS   PROT:110122(535,06)MEMO.S.N/2022/CESPE            2022ND001213 - CONTRATO:074/2020AGENCIAMENTO DE CARGA AÉREA - TERRESTRE - MARÍTIMAPAGAMENTO DA NOTA FISCAL N. 29790  DATADA DE 03/03/2021",485,SERV. PESSOA JURÍDICA,Fracielly Mihara Picciani,null,UNIVERSIDADE DE BRASÍLIA,null,535.06,global,605
PRÓPRIOS -  PREST.SERVICOS FUB/FUNDO,7850.00,FISCAL,PR,2022,01/04/2022,CRÉDITOS DISTRIBUÍDOS PARA AS UNIDADES ACADÊMICAS,null,null,null,FUNCIONAMENTO DE INSTITUICOES FEDERAI - NO DF,23106.007824/2022-41,"C. CUSTO:  FAU                      SEI:23106.007824/2022-41ATT:  VALMOR CERQUEIRA PAZOS        2022ND000910 E 1191MEMO.S.N/2022/FAU                   PROT:11010104{SM888/2022(7850,00)}MATERIAL PERMANENTE - PEDIDO:888/2022-   PREG: 10/2021MAQ.UTENSÍLIOS EQUIP.DIVERSOS - AR CONDICIONADO - SPLIT  PISO TETO",484,EQUIP. MATERIAL PERMANENTE,Goeij Marenco Gascia Andrielly,null,UNIVERSIDADE DE BRASÍLIA,null,7850.00,global,605
PRÓPRIOS -  PREST.SERVICOS FUB/FUNDO,10000.00,FISCAL,PR,2022,01/04/2022,CRÉDITOS DISTRIBUÍDOS PARA AS UNIDADES ACADÊMICAS,null,null,null,FUNCIONAMENTO DE INSTITUICOES FEDERAI - NO DF,23106.035096/2022-68,"C. CUSTO: IE                        SEI:23106.035096/2022-68PAG.DE  PASSAGEM NACIONAL           PROT:11010115(10000,00)OFÍCIO.025/2022/IE/EST              2022ND001213 - CONTRATO:125/2018",483,PASSAGENS,Laisson Mvuama Pangoni Deconto,null,UNIVERSIDADE DE BRASÍLIA,null,10000.00,estimativo,605
TAXA DE ALUNO ESPECIAL -FUB,15000.00,FISCAL,PR,2022,31/03/2022,PROGRAMA DE POS-GRADUACAO EM DIREITO - FD,null,null,null,FUNCIONAMENTO DE INSTITUICOES FEDERAI - NO DF,23106.033021/2022-42,"C. CUSTO: FDD                           SEI:23106.033021/2022-42PAGAMENTO DE PASSAGEM NACIONAL     PROT:1101010606(10000,00)MEMO.S.N/2022/FD/PPGD                   2022ND001186",475,PASSAGENS,Laisson Mvuama Pangoni Deconto,null,UNIVERSIDADE DE BRASÍLIA,null,15000.00,estimativo,605
TAXA DE ALUNO ESPECIAL -FUB,30000.00,FISCAL,PR,2022,31/03/2022,PROGRAMA DE POS-GRADUACAO EM DIREITO - FD,null,null,null,FUNCIONAMENTO DE INSTITUICOES FEDERAI - NO DF,23106.033021/2022-42,"C. CUSTO: FDD                           SEI:23106.033021/2022-42PAGAMENTO DE PASSAGEM INTERNACIONAL     PROT:1101010606(30000,00)MEMO.S.N/2022/FD/PPGD                   2022ND001186",474,PASSAGENS,Laisson Mvuama Pangoni Deconto,null,UNIVERSIDADE DE BRASÍLIA,null,30000.00,estimativo,605
PRÓPRIOS -  PREST.SERVICOS FUB/FUNDO,42.00,FISCAL,PR,2022,31/03/2022,CRÉDITOS DISTRIBUÍDOS PARA AS UNIDADES ACADÊMICAS,null,null,null,20RK - PO COVID19,23106.033782/2022-02,"C. CUSTO: IPOL.      PROT:11010124{SM1083/2022(42,00)}      SEI 23106.033782/2022-02.AQUISIÇÃO DE SABONETE LÍQUIDO. 2022ND001183.",468,MAT. CONSUMO,Evanylton Shunk Katsuragama,null,UNIVERSIDADE DE BRASÍLIA,null,42.00,ordinário,605
PRÓPRIOS -  PREST.SERVICOS FUB/FUNDO,1214.40,FISCAL,null,2022,31/03/2022,CRÉDITOS DISTRIBUÍDOS PARA AS UNIDADES ACADÊMICAS,null,null,null,20RK - PO COVID19,23106.037041/2022-92,23106.037041/2022-92,467,MAT. CONSUMO,Klenni Kosby Carvalhal,null,UNIVERSIDADE DE BRASÍLIA,null,1214.40,ordinário,605
PRÓPRIOS -  PREST.SERVICOS FUB/FUNDO,837.16,FISCAL,PR 28/2021 - UNB,2022,31/03/2022,CRÉDITOS DISTRIBUÍDOS PARA AS UNIDADES ACADÊMICAS,null,null,null,20RK - PO COVID19,23106.033782/2022-02,"C. CUSTO: IPOL. PROT:11010124{SM1081/2022(1070,00)} SEI 23106.033782/2022-02.AQUISIÇÃO DE ALCOOL ETÍLICO.2022ND001183.",466,MAT. CONSUMO,Nicanor Gasiglia Nasiri,null,UNIVERSIDADE DE BRASÍLIA,null,837.16,ordinário,605
PRÓPRIOS -  PREST.SERVICOS FUB/FUNDO,2500.00,FISCAL,PR,2022,31/03/2022,CRÉDITOS DISTRIBUÍDOS PARA AS UNIDADES ADMINISTRATIVAS,null,null,null,FUNCIONAMENTO DE INSTITUICOES FEDERAI - NO DF,23106.032397/2022-30,"C. CUSTO: CIBH.      PROT:110149(1500,00)      SEI 23106.032397/2022-30.PASSAGENS AÉREAS NACIONAIS.2022ND001180.      MEMO 01/2022/CIBH.",464,PASSAGENS,Laisson Mvuama Pangoni Deconto,null,UNIVERSIDADE DE BRASÍLIA,1000.00,1500.00,estimativo,605
PRÓPRIOS -  PREST.SERVICOS FUB/FUNDO,432.00,FISCAL,PR,2022,31/03/2022,CRÉDITOS DISTRIBUÍDOS PARA AS UNIDADES ACADÊMICAS,null,null,null,20RK - PO COVID19,23106.033782/2022-02,"C. CUSTO: IPOL.      PROT:11010124{SM1079/2022(432,00)}      SEI 23106.033782/2022-02.AQUISIÇÃO DE MASCARA MULTIUSO N95.  2022ND001183.",463,MAT. CONSUMO,Shayenne Bonfain,null,UNIVERSIDADE DE BRASÍLIA,null,432.00,ordinário,605
RECURSOS ORDINÁRIOS,33225.65,FISCAL,PR,2022,31/03/2022,LIMPEZA E CONSERVACAO - ÁGIL,null,null,null,FUNCIONAMENTO DE INSTITUICOES FEDERAI - NO DF,23106.032800/2022-21,"C.CUSTO : SPI S.E.I Nº : 23106.032800/2022-21 - CONTRATO: 001/2017MEMO.074/2022/DAF/DCA/CDE/DGDE  - 2022ND001158 - PG NOTA FISCAL Nº  9613ATT - ADAMYLSON MADEIRA COSTA - PROT:110147(33225,65) - PREG: 24/2016SERV.DE TERCEIROS - CONTRATAÇÃO DE EMPRESA ESPECIALIZADA NA PRESTAÇÃO - LIMPEZA E CONSERVAÇÃO",458,LOC. MÃO-DE-OBRA,Jakymiu Vilabuim Grésiano Baja,null,UNIVERSIDADE DE BRASÍLIA,null,33225.65,global,605
RECURSOS ORDINÁRIOS,283127.99,FISCAL,PR,2022,31/03/2022,LIMPEZA E CONSERVACAO - ÁGIL,null,null,null,FUNCIONAMENTO DE INSTITUICOES FEDERAI - NO DF,23106.027156/2022-79,"C. CUSTO CAC/SGP.    PROT:11010123(283127,99)       SEI 23106.027156/2022-79.CONTRATO 01/2017. SERVIÇOS CONTINUADOS DE LIMPEZA E CONSERVAÇÃO. 2022ND001163.     PREGÃO 24/2016.",457,LOC. MÃO-DE-OBRA,Jakymiu Vilabuim Grésiano Baja,null,UNIVERSIDADE DE BRASÍLIA,null,283127.99,global,605
RECURSOS ORDINÁRIOS,19400.00,FISCAL,PR,2022,31/03/2022,SERVIÇOS CONTINUADOS DE AGENCIAMENTO DE CARGA,null,null,null,FUNCIONAMENTO DE INSTITUICOES FEDERAI - NO DF,23106.099324/2016-80,"C. CUSTO: DIMEX                               SEI:23106.099324/2016-80FRETES E TRANSPORTES DE ENCOMENDAS - FRETE AÉREO INTERNACIONAL MEMO.S.N/2021/DAF/DIMEX    PROT:11011002(19400,00)   - 2022ND001174CONTRATO 81/2017  - PREGÃO ELETRÔNICO 06/2017",456,SERV. PESSOA JURÍDICA,Hashem Haizer Perosine,null,UNIVERSIDADE DE BRASÍLIA,null,19400.00,estimativo,605
TAXA DE ALUNO ESPECIAL -FUB,3000.00,FISCAL,PR,2022,30/03/2022,PROGRAMA DE POS-GRADUACAO EM ARTES CENICAS,null,null,null,FUNCIONAMENTO DE INSTITUICOES FEDERAI - NO DF,23106.031616/2022-63,"C. CUSTO: CEN.     PROT:1101011401(3000,00)     SEI 23106.031616/2022-63.PASSAGENS AÉREAS NACIONAIS.2022ND001169.     MEMO 26/2022/IDA/CEN/PPG.",451,PASSAGENS,Laisson Mvuama Pangoni Deconto,null,UNIVERSIDADE DE BRASÍLIA,null,3000.00,estimativo,605
RECURSOS ORDINÁRIOS,10746.39,FISCAL,PR,2022,30/03/2022,"SERV GER.LOJA, VENDEDOR E OPER.CAIXA EDUNB",null,null,null,FUNCIONAMENTO DE INSTITUICOES FEDERAI - NO DF,23106.027163/2022-71,"C. CUSTO: DTER.   PROT:11011007(10746,39)      SEI 23106.027163/2022-71.   SERVIÇOS TERCEIRIZADOS DE GERENTE E VENDEDOR - EDU.        CONTRATO N.022/2021.2022ND001159.",450,LOC. MÃO-DE-OBRA,Colonheze Lapas Alcacio Malenha Nasraui,null,UNIVERSIDADE DE BRASÍLIA,null,10746.39,global,605
RECURSOS ORDINÁRIOS,2880.00,FISCAL,PR,2022,30/03/2022,CRÉDITOS DISTRIBUÍDOS PARA AS UNIDADES ACADÊMICAS,null,null,null,20RK - PO COVID19,23106.030897/2022-37,"C. CUSTO: IDA.      PROT:11010114(2880,00)      SEI 23106.030897/2022-37.AQUISIÇÃO DE MASCARA MULTIUSO N95.2022ND001151.",448,MAT. CONSUMO,Shayenne Bonfain,null,UNIVERSIDADE DE BRASÍLIA,null,2880.00,global,605
PRÓPRIOS -  PREST.SERVICOS FUB/FUNDO,6200.00,FISCAL,PR,2022,30/03/2022,CRÉDITOS DISTRIBUÍDOS PARA AS UNIDADES ADMINISTRATIVAS,null,null,null,FUNCIONAMENTO DE INSTITUICOES FEDERAI - NO DF,23106.031768/2022-66,"C. CUSTO FUP PROT:110129(6200,00) REQ: 990/2022EQUIPAMENTOS DE MEDIÇÃO E ORIENTAÇÃO PR: 34/2021SEI: 23106.031768/2022-66 DEMONSTRATIVO (7908654)",444,EQUIP. MATERIAL PERMANENTE,Delli Mairena Bohrer,null,UNIVERSIDADE DE BRASÍLIA,null,6200.00,global,605
PRÓPRIOS -  PREST.SERVICOS FUB/FUNDO,13000.00,FISCAL,PR,2022,30/03/2022,CRÉDITOS DISTRIBUÍDOS PARA AS UNIDADES ADMINISTRATIVAS,null,null,null,FUNCIONAMENTO DE INSTITUICOES FEDERAI - NO DF,23106.031768/2022-66,"C. CUSTO FUP PROT:110129(13000,00) REQ: 988/2022EQUIPAMENTOS DE MEDIÇÃO E ORIENTAÇÃO PR: 34/2021SEI: 23106.031768/2022-66 DEMONSTRATIVO (7908654)",443,EQUIP. MATERIAL PERMANENTE,Zandona Salache Fagherészi,null,UNIVERSIDADE DE BRASÍLIA,null,13000.00,global,605
PRÓPRIOS -  PREST.SERVICOS FUB/FUNDO,3957.81,FISCAL,PR,2022,30/03/2022,CRÉDITOS DISTRIBUÍDOS PARA AS UNIDADES ADMINISTRATIVAS,null,null,null,FUNCIONAMENTO DE INSTITUICOES FEDERAI - NO DF,23106.031768/2022-66,"C. CUSTO FUP PROT:110129(3957,81) REQ: 986/2022EQUIPAMENTOS DE MEDIÇÃO E ORIENTAÇÃO PR: 34/2021SEI: 23106.031768/2022-66 DEMONSTRATIVO (7908654)",442,EQUIP. MATERIAL PERMANENTE,Lisianne Moon Pijak,null,UNIVERSIDADE DE BRASÍLIA,null,3957.81,global,605
PRÓPRIOS -  PREST.SERVICOS FUB/FUNDO,2700.00,FISCAL,PR,2022,30/03/2022,CRÉDITOS DISTRIBUÍDOS PARA AS UNIDADES ADMINISTRATIVAS,null,null,null,FUNCIONAMENTO DE INSTITUICOES FEDERAI - NO DF,23106.031768/2022-66,"C. CUSTO FUP PROT:110129(2700,00) REQ: 985/2022EQUIPAMENTOS DE MEDIÇÃO E ORIENTAÇÃO PR: 34/2021SEI: 23106.031768/2022-66 DEMONSTRATIVO (7908654)",441,EQUIP. MATERIAL PERMANENTE,Hoisel Schuenck O'Dowyer,null,UNIVERSIDADE DE BRASÍLIA,null,2700.00,global,605
RECURSOS ORDINÁRIOS,1800.00,FISCAL,PR,2022,29/03/2022,CERIMONIAL - COLACAO DE GRAU,null,null,null,FUNCIONAMENTO DE INSTITUICOES FEDERAI - NO DF,23106.022614/2022-83,"C.CUSTO : GRE                       S.E.I Nº : 23106.022614/2022-83 - PREGÃO:  11/2020MEMO.005/2021/CERI                  2022ND001146 -   CONTRATO: 1211/2021ATT - MARCELA BARBOSA DA SILVA -    PROT:1101(1800,00) - PAG. NOTA FISCAL: 2462SERV. DE APOIO ADMIN.TEC. E OPERACIONAL - SERVIÇOS DE MESTRE DE CERIMÔNIA  - COLAÇÕES DE GRAU",438,SERV. PESSOA JURÍDICA,Doms Destro Marcelina Cleidefiguêiredo,null,UNIVERSIDADE DE BRASÍLIA,null,1800.00,global,605
RECURSOS ORDINÁRIOS,767026.78,FISCAL,PR,2022,29/03/2022,SEGURANCA,null,null,null,FUNCIONAMENTO DE INSTITUICOES FEDERAI - NO DF,23106.027132/2022-10,"C.CUSTO: DTER // PROCESSO  23106.027132/2022-10 // PROT:11011007(767026,78) SERVIÇO DE VIGILÂNCIA //CONTRATO 011/202020// 2022ND001139",436,LOC. MÃO-DE-OBRA,Krausburg Lionzo Schiefler Henrik,null,UNIVERSIDADE DE BRASÍLIA,null,767026.78,global,605
RECURSOS ORDINÁRIOS,263227.06,FISCAL,PR,2022,29/03/2022,SERVICOS AGROPECUARIOS,null,null,null,FUNCIONAMENTO DE INSTITUICOES FEDERAI - NO DF,23106.027167/2022-59,"C. CUSTO: DTER. PROT:11011007(263227,06) SEI 23106.027167/2022-59. PRESTAÇÃO DE SERVIÇOS CONTINUADOS AGROPECUÁRIOS. CONTRATO 25/2020. 2022ND001142. PROC ORIGEM: 2019PR00023 EMPRESA ÁGIL",434,LOC. MÃO-DE-OBRA,Jakymiu Vilabuim Grésiano Baja,null,UNIVERSIDADE DE BRASÍLIA,null,263227.06,global,605
PRÓPRIOS -  PREST.SERVICOS FUB/FUNDO,4000.00,FISCAL,PR,2022,29/03/2022,CRÉDITOS DISTRIBUÍDOS PARA AS UNIDADES ADMINISTRATIVAS,null,null,null,FUNCIONAMENTO DE INSTITUICOES FEDERAI - NO DF,23106.028034/2022-08,"C. CUSTO: DPO.      PROT:110135(4000,00)        SEI 23106.028034/2022-08.PASSAGENS AÉREAS NACIONAIS.2022ND001123.       MEMO 28/2022/DPO/SEC.",430,PASSAGENS,Laisson Mvuama Pangoni Deconto,null,UNIVERSIDADE DE BRASÍLIA,null,4000.00,estimativo,605
RECURSOS ORDINÁRIOS,219802.39,FISCAL,PR,2022,29/03/2022,COMBUSTIVEL_,null,null,null,FUNCIONAMENTO DE INSTITUICOES FEDERAI - NO DF,23106.078829/2018-72,"C.CUSTO: PRC - PROT:110105(219802,39) - S.E.I Nº 23106.078829/2018-72SERV.APOIO TÉC OPERACIONAL - GERENCIAMENTO DO FORNECIMENTO DE COMBUSTÍVEISEMPRESA ESPECIALIZADA EM CONTROLE DE ABASTECIMENTO DE VEÍCULOSMEMO.S.N/2022/PRC/DIRAD/CCL - 2022ND001134 - CONTRATO: 605/2019PERÍODO: ABRIL/22 A JUNHO/22. - PRORROGAÇÃO DE CONTRATO POR MAIS 12 MESES",429,SERV. PESSOA JURÍDICA,Zequiel Dann Miyake,null,UNIVERSIDADE DE BRASÍLIA,null,219802.39,global,605
RECEITA DA INDUSTRIA EDITORIA E GRAFICA/FUB -,222133.78,FISCAL,PR,2022,28/03/2022,PROGRAMA ESPECIAL UNB 60 ANOS,null,null,null,FUNCIONAMENTO DE INSTITUICOES FEDERAI - NO DF,23106.116713/2021-44,"C. CUSTO EDU PROT:110903(222133,78)PUBLICAÇÃO DE 7 OBRAS DO EDITAL UNB 60 ANOS SEI: 23106.116713/2021-44 2022NC000024",417,SERV. PESSOA JURÍDICA,Kiyoto Jong Mingori,null,UNIVERSIDADE DE BRASÍLIA,null,222133.78,global,605
PRÓPRIOS -  PREST.SERVICOS FUB/FUNDO,2100.00,FISCAL,PR,2022,25/03/2022,CRÉDITOS DISTRIBUÍDOS PARA AS UNIDADES ADMINISTRATIVAS,null,null,null,FUNCIONAMENTO DE INSTITUICOES FEDERAI - NO DF,23106.015987/2022-06,"C. CUSTO: DEX.    PROT:110107{SM950/2022(2100,00)}        SEI 23106.015987/2022-06.AQUISIÇÃO DE MATERIAL PARA PROTEÇÃO À COVID-19.  2022ND001108.   PREGÃO 18/2021.",414,MAT. CONSUMO,Rubismar Duzzi,null,UNIVERSIDADE DE BRASÍLIA,null,2100.00,ordinário,605
TED INCRA-UNB,500000.00,FISCAL,PR,2022,28/03/2022,ALIMENTACAO,null,null,null,ASSISTENCIA AO ESTUDANTE DE ENSINO SU - NO DF,23106.031056/2022-47,"C. CUSTO DAC PROT:110109(500000,00) CONTRATO 31/2021 GRUPO I ASSISTÊNCIA ESTUDANTIL CONCESSÃO DO USO DE EDIFICAÇÕES, EQUIPAMENTOS, MÓVEIS E UTENSÍLIOS DOS RESTAURANTES UNIVERSITÁRIOS DA UNB PARA PRODUÇÃO DE REFEIÇÕES. SEI: 23106.031056/2022-47 PREGÃO 01/2021 2022ND001098",413,SERV. PESSOA JURÍDICA,Raili Caltarossa,null,UNIVERSIDADE DE BRASÍLIA,null,500000.00,global,605
PRÓPRIOS -  PREST.SERVICOS FUB/FUNDO,52.50,FISCAL,PR,2022,25/03/2022,CRÉDITOS DISTRIBUÍDOS PARA AS UNIDADES ADMINISTRATIVAS,null,null,null,FUNCIONAMENTO DE INSTITUICOES FEDERAI - NO DF,23106.015987/2022-06,"C. CUSTO: DEX.    PROT:110107{SM955/2022(52,50)}        SEI 23106.015987/2022-06.AQUISIÇÃO DE MATERIAL PARA PROTEÇÃO À COVID-19.  2022ND001108.   PREGÃO 11/2021.",412,MAT. CONSUMO,Cleanny Hergesell Fargnolli Evelise Gaviano,null,UNIVERSIDADE DE BRASÍLIA,null,52.50,ordinário,605
PRÓPRIOS -  PREST.SERVICOS FUB/FUNDO,75.81,FISCAL,PR,2022,25/03/2022,CRÉDITOS DISTRIBUÍDOS PARA AS UNIDADES ADMINISTRATIVAS,null,null,null,FUNCIONAMENTO DE INSTITUICOES FEDERAI - NO DF,23106.117934/2021-30,"C. CUSTO: DAF.    PROT:110110(75,81)      SEI 23106.117934/2021-30.AQUISIÇÃO DE SUPORTE DE MADEIRA PARA VASO ORNAMENTAL.2022ND001109.",411,MAT. CONSUMO,Rolembergue Nasserala dos Sacorro Calabretti,null,UNIVERSIDADE DE BRASÍLIA,null,75.81,global,605
RECURSOS ORDINÁRIOS,100.00,FISCAL,null,2022,25/03/2022,FUNCIONAMENTO GERAL,null,null,null,FUNCIONAMENTO DE INSTITUICOES FEDERAI - NO DF,23106.100068/2020-81,"C. CUSTO: DGM. PROT:11011006(100,00) SEI 23106.100068/2020-81.CONTRATAÇÃO DE LEILOEIRO PÚBLICO OFICIAL.2022ND001069",409,SERV. PESSOA FÍSICA,Informação Anonimizada,null,UNIVERSIDADE DE BRASÍLIA,null,100.00,estimativo,605
PRÓPRIOS -  PREST.SERVICOS FUB/FUNDO,103.20,FISCAL,PR,2022,25/03/2022,CRÉDITOS DISTRIBUÍDOS PARA AS UNIDADES ADMINISTRATIVAS,null,null,null,FUNCIONAMENTO DE INSTITUICOES FEDERAI - NO DF,23106.015987/2022-06,"C. CUSTO: DEX.    PROT:110107{SM949/2022(103,20)}        SEI 23106.015987/2022-06.AQUISIÇÃO DE MATERIAL PARA PROTEÇÃO À COVID-19.  2022ND001108.   PREGÃO 18/2021.",408,MAT. CONSUMO,Cezalpino Laias Dolzane Ow Young Ocampo,null,UNIVERSIDADE DE BRASÍLIA,null,103.20,ordinário,605
PRÓPRIOS -  PREST.SERVICOS FUB/FUNDO,73.50,FISCAL,PR,2022,25/03/2022,CRÉDITOS DISTRIBUÍDOS PARA AS UNIDADES ADMINISTRATIVAS,null,null,null,FUNCIONAMENTO DE INSTITUICOES FEDERAI - NO DF,23106.015987/2022-06,"C. CUSTO: DEX.    PROT:110107{SM951/2022(73,50)}        SEI 23106.015987/2022-06.AQUISIÇÃO DE MATERIAL PARA PROTEÇÃO À COVID-19.  2022ND001108.   PREGÃO 18/2021.",407,MAT. CONSUMO,Cezalpino Laias Dolzane Ow Young Ocampo,null,UNIVERSIDADE DE BRASÍLIA,null,73.50,ordinário,605
PRÓPRIOS -  PREST.SERVICOS FUB/FUNDO,2520.00,FISCAL,PR,2022,25/03/2022,CRÉDITOS DISTRIBUÍDOS PARA AS UNIDADES ADMINISTRATIVAS,null,null,null,FUNCIONAMENTO DE INSTITUICOES FEDERAI - NO DF,23106.015987/2022-06,"C. CUSTO: DEX.    PROT:110107{SM948/2022(2520,00)}        SEI 23106.015987/2022-06.AQUISIÇÃO DE MATERIAL PARA PROTEÇÃO À COVID-19.  2022ND001108.   PREGÃO 28/2021.",406,MAT. CONSUMO,Nespolo Jayantibhai de Aviz,null,UNIVERSIDADE DE BRASÍLIA,null,2520.00,ordinário,605
PRÓPRIOS -  PREST.SERVICOS FUB/FUNDO,32.10,FISCAL,PR,2022,25/03/2022,CRÉDITOS DISTRIBUÍDOS PARA AS UNIDADES ADMINISTRATIVAS,null,null,null,FUNCIONAMENTO DE INSTITUICOES FEDERAI - NO DF,23106.015987/2022-06,"C. CUSTO: DEX.    PROT:110107{SM954/2022(32,10)}        SEI 23106.015987/2022-06.AQUISIÇÃO DE MATERIAL PARA PROTEÇÃO À COVID-19.  2022ND001108.   PREGÃO 11/2021.",405,MAT. CONSUMO,Cleanny Hergesell Fargnolli Evelise Gaviano,null,UNIVERSIDADE DE BRASÍLIA,null,32.10,ordinário,605
PRÓPRIOS -  PREST.SERVICOS FUB/FUNDO,497.50,FISCAL,PR,2022,25/03/2022,CRÉDITOS DISTRIBUÍDOS PARA AS UNIDADES ADMINISTRATIVAS,null,null,null,FUNCIONAMENTO DE INSTITUICOES FEDERAI - NO DF,23106.015987/2022-06,"C. CUSTO: DEX.    PROT:110107{SM956/2022(497,50)}        SEI 23106.015987/2022-06.AQUISIÇÃO DE MATERIAL PARA PROTEÇÃO À COVID-19.  2022ND001108.   PREGÃO 11/2021.",404,MAT. CONSUMO,Cleanny Hergesell Fargnolli Evelise Gaviano,null,UNIVERSIDADE DE BRASÍLIA,null,497.50,ordinário,605
PRÓPRIOS -  PREST.SERVICOS FUB/FUNDO,632.50,FISCAL,PR,2022,25/03/2022,CRÉDITOS DISTRIBUÍDOS PARA AS UNIDADES ADMINISTRATIVAS,null,null,null,FUNCIONAMENTO DE INSTITUICOES FEDERAI - NO DF,23106.015987/2022-06,"C. CUSTO: DEX.    PROT:110107{SM952/2022(632,50)}        SEI 23106.015987/2022-06.AQUISIÇÃO DE MATERIAL PARA PROTEÇÃO À COVID-19.  2022ND001108.   PREGÃO 18/2021.",403,MAT. CONSUMO,Hanoã Rahna Sanino Sindeaux,null,UNIVERSIDADE DE BRASÍLIA,null,632.50,ordinário,605
PRÓPRIOS -  PREST.SERVICOS FUB/FUNDO,25.32,FISCAL,PR,2022,25/03/2022,CRÉDITOS DISTRIBUÍDOS PARA AS UNIDADES ADMINISTRATIVAS,null,null,null,FUNCIONAMENTO DE INSTITUICOES FEDERAI - NO DF,23106.015987/2022-06,"C. CUSTO: DEX.    PROT:110107{SM944/2022(25,32)}        SEI 23106.015987/2022-06.AQUISIÇÃO DE MATERIAL PARA PROTEÇÃO À COVID-19.  2022ND001108.   PREGÃO 28/2021.",402,MAT. CONSUMO,Evanylton Shunk Katsuragama,null,UNIVERSIDADE DE BRASÍLIA,null,25.32,ordinário,605
PRÓPRIOS -  PREST.SERVICOS FUB/FUNDO,455.40,FISCAL,PR 28/2021 - UNB,2022,25/03/2022,CRÉDITOS DISTRIBUÍDOS PARA AS UNIDADES ADMINISTRATIVAS,null,null,null,FUNCIONAMENTO DE INSTITUICOES FEDERAI - NO DF,23106.015987/2022-06,"C. CUSTO: DEX. PROT:110107{SM943/2022(455,40) SEI 23106.015987/2022-06.AQUISIÇÃO DE MATERIAL PARA PROTEÇÃO À COVID-19.2022ND001108. PREGÃO 28/2021.",401,MAT. CONSUMO,Klenni Kosby Carvalhal,null,UNIVERSIDADE DE BRASÍLIA,null,455.40,ordinário,605
PRÓPRIOS -  PREST.SERVICOS FUB/FUNDO,46.75,FISCAL,PR,2022,25/03/2022,CRÉDITOS DISTRIBUÍDOS PARA AS UNIDADES ADMINISTRATIVAS,null,null,null,FUNCIONAMENTO DE INSTITUICOES FEDERAI - NO DF,23106.015987/2022-06,"C. CUSTO: DEX.    PROT:110107{SM953/2022(46,75)}        SEI 23106.015987/2022-06.AQUISIÇÃO DE MATERIAL PARA PROTEÇÃO À COVID-19.  2022ND001108.   PREGÃO 11/2021.",400,MAT. CONSUMO,Xaris Pereiradaslva Rosemeire Lészeris Inauhiny,null,UNIVERSIDADE DE BRASÍLIA,null,46.75,ordinário,605
PRÓPRIOS -  PREST.SERVICOS FUB/FUNDO,42.00,FISCAL,PR,2022,25/03/2022,CRÉDITOS DISTRIBUÍDOS PARA AS UNIDADES ADMINISTRATIVAS,null,null,null,FUNCIONAMENTO DE INSTITUICOES FEDERAI - NO DF,23106.015987/2022-06,"C. CUSTO: DEX.    PROT:110107{SM947/2022(42,00)}        SEI 23106.015987/2022-06.AQUISIÇÃO DE MATERIAL PARA PROTEÇÃO À COVID-19.  2022ND001108.   PREGÃO 28/2021.",399,MAT. CONSUMO,Evanylton Shunk Katsuragama,null,UNIVERSIDADE DE BRASÍLIA,null,42.00,ordinário,605
PRÓPRIOS -  PREST.SERVICOS FUB/FUNDO,84.00,FISCAL,PR,2022,25/03/2022,CRÉDITOS DISTRIBUÍDOS PARA AS UNIDADES ADMINISTRATIVAS,null,null,null,FUNCIONAMENTO DE INSTITUICOES FEDERAI - NO DF,23106.015987/2022-06,"C. CUSTO: DEX.    PROT:110107{SM946/2022(84,00)}        SEI 23106.015987/2022-06.AQUISIÇÃO DE MATERIAL PARA PROTEÇÃO À COVID-19.  2022ND001108.   PREGÃO 28/2021.",398,MAT. CONSUMO,Evanylton Shunk Katsuragama,null,UNIVERSIDADE DE BRASÍLIA,null,84.00,ordinário,605
PRÓPRIOS -  PREST.SERVICOS FUB/FUNDO,80.18,FISCAL,PR,2022,25/03/2022,CRÉDITOS DISTRIBUÍDOS PARA AS UNIDADES ADMINISTRATIVAS,null,null,null,FUNCIONAMENTO DE INSTITUICOES FEDERAI - NO DF,23106.015987/2022-06,"C. CUSTO: DEX.    PROT:110107{SM945/2022(80,18)}        SEI 23106.015987/2022-06.AQUISIÇÃO DE MATERIAL PARA PROTEÇÃO À COVID-19.  2022ND001108.   PREGÃO 28/2021.",397,MAT. CONSUMO,Evanylton Shunk Katsuragama,null,UNIVERSIDADE DE BRASÍLIA,null,80.18,ordinário,605
PRÓPRIOS -  PREST.SERVICOS FUB/FUNDO,13500.00,FISCAL,PR,2022,24/03/2022,CRÉDITOS DISTRIBUÍDOS PARA AS UNIDADES ACADÊMICAS,null,null,null,FUNCIONAMENTO DE INSTITUICOES FEDERAI - NO DF,23106.021769/2022-01,"C. CUSTO: FACE                 SEI:23106.021769/2022-01 ATT: MARIANA GUERRA            2022ND001087MEMO.034/2021/PRC              PROT:11010102{SM690/2022(13500,00)}MATERIAL DE PERMANENTE - PEDIDO:690/2022 -   PREG:207/2021  EQUIPAMENTOS TIC - TABLET 9.1 POLEGADAS",386,EQUIP. MATERIAL PERMANENTE,Porcino Clívela Beledelli,null,UNIVERSIDADE DE BRASÍLIA,null,13500.00,global,605
PRÓPRIOS -  PREST.SERVICOS FUB/FUNDO,30000.00,FISCAL,PR,2022,24/03/2022,CRÉDITOS DISTRIBUÍDOS PARA AS UNIDADES ACADÊMICAS,null,null,null,FUNCIONAMENTO DE INSTITUICOES FEDERAI - NO DF,23106.031211/2022-25,"C. CUSTO: FED                       SEI:23106.031211/2022-25PAGAMENTO DE PASSAGEM NACIONAL     PROT:11010107(30000,00)MEMO.025/2022/FED/SFIN              2022ND001088 - CONTRATO: 125/2018",385,PASSAGENS,Laisson Mvuama Pangoni Deconto,null,UNIVERSIDADE DE BRASÍLIA,null,30000.00,estimativo,605
RECURSOS ORDINÁRIOS,0.00,FISCAL,PR,2022,24/03/2022,MATRIZ HVET_,null,null,null,20RK - FUNCIONAMENTO DOS HOSPITAL VETERINARIOS,23106.029792/2022-35,"C.CUSTO:HVET -AT- LIRIA QUEIROZ LUZ HIRANO - PROT:1101010501{SM913/2022(1380,00)}         MATERIAL DE CONSUMO-PEDIDO:913/2022 -2022ND001026 -PREG:28/2021MATERIAL  DE HOSPITALAR - AVENTAL HOSPITALAR CAPOTE CIRURGICOMEMO.S.N/2022-FAV/HVET/HVETINHO - S.E.I 23106.029792/2022-35",382,MAT. CONSUMO,Ronchi Kollross Cassanelli Ermelina,null,UNIVERSIDADE DE BRASÍLIA,null,1380.00,global,605
PRÓPRIOS -  PREST.SERVICOS FUB/FUNDO,1200.00,FISCAL,PR 33/2021 - UNB,2022,24/03/2022,CRÉDITOS DISTRIBUÍDOS PARA AS UNIDADES ACADÊMICAS,null,null,null,FUNCIONAMENTO DE INSTITUICOES FEDERAI - NO DF,23106.074539/2021-55,"C. CUSTO: FGA                        SEI:23106.074539/2021-55PAGAMENTO DE MATERIAL DE CONSUMO   PROT:110132(1200,00)MEMO.S.N/2022/FGA/ADM/COMPRAS  - 2022ND001071 - PREG: 033/2021MATERIAL P/ MANUT. DE BENS MÓVEIS - ROLDANA RAIADA MONTADA COM PINO DE ALUMÍNIO M6",380,MAT. CONSUMO,Informação Anonimizada,null,UNIVERSIDADE DE BRASÍLIA,null,1200.00,global,605
PRÓPRIOS -  PREST.SERVICOS FUB/FUNDO,17100.00,FISCAL,PR 33/2021 - UNB,2022,24/03/2022,CRÉDITOS DISTRIBUÍDOS PARA AS UNIDADES ACADÊMICAS,null,null,null,FUNCIONAMENTO DE INSTITUICOES FEDERAI - NO DF,23106.074539/2021-55,"C. CUSTO: FGA                               SEI:23106.074539/2021-55EQUIPAMENTOS DE MATERIAL PERMANENTE  PROT:110132(17100,00)MEMO.S.N/2022/FGA/ADM/COMPRAS  - 2022ND001071 - PREG: 033/2021APARELHOS DE MEDIÇÃO E ORIENTAÇÃO - CRONÔMETRO MODELO AZB-30",379,EQUIP. MATERIAL PERMANENTE,Informação Anonimizada,null,UNIVERSIDADE DE BRASÍLIA,null,17100.00,global,605
RECURSOS DIR.ARRECADADOS(PROPRIOS)-FUB -,12500.00,FISCAL,PR,2022,24/03/2022,ARRECADACOES DA FAL - HORTIFRUTIGRANJEIRO,null,null,null,FUNCIONAMENTO DE INSTITUICOES FEDERAI - NO DF,23106.030931/2022-73,"C. CUSTO: FAL.       PROT:110116{SM963/2022(12500,00)}        SEI 23106.030931/2022-73.AQUISIÇÃO DE URÉIA.2022ND001076.       MEMO 031/2022/FAL.",378,MAT. CONSUMO,Batanero Sutani,null,UNIVERSIDADE DE BRASÍLIA,null,12500.00,global,605
PRÓPRIOS -  PREST.SERVICOS FUB/FUNDO,1230.00,FISCAL,PR,2022,24/03/2022,CRÉDITOS DISTRIBUÍDOS PARA AS UNIDADES ADMINISTRATIVAS,null,null,null,FUNCIONAMENTO DE INSTITUICOES FEDERAI - NO DF,23106.028974/2022-99,"C. CUSTO: DAF                               SEI:23106.028974/2022-99EQUIPAMENTOS DE MATERIAL PERMANENTE  PROT:110110(1230,00)MEMO.007/2022/DAF/DGM                         2022ND001082CARRINHO DE MÃO COM BRAÇO EM MADEIRA",377,EQUIP. MATERIAL PERMANENTE,Borghetti Oitaven de Ataide,null,UNIVERSIDADE DE BRASÍLIA,null,1230.00,global,605
RECURSOS ORDINÁRIOS,40000.00,FISCAL,PR,2022,24/03/2022,FUNCIONAMENTO GERAL,null,null,null,FUNCIONAMENTO DE INSTITUICOES FEDERAI - NO DF,23106.019502/2022-45,"C. CUSTO: INT                       SEI:23106.019502/2022-45PAGAMENTO DE PASSAGEM INTERNACIONAL PROT:110112(40000,00)OFÍCIO.027/2022/INT                 2022ND001066 - CONTRATO: 125/2018",375,PASSAGENS,Laisson Mvuama Pangoni Deconto,null,UNIVERSIDADE DE BRASÍLIA,null,40000.00,estimativo,605
RECURSOS ORDINÁRIOS,17500.00,FISCAL,PR,2022,24/03/2022,FUNCIONAMENTO GERAL,null,null,null,FUNCIONAMENTO DE INSTITUICOES FEDERAI - NO DF,23106.024130/2022-79,"C. CUSTO PRC PROT:110105(17500,00) REQ: 684/2022MEMORANDO 008/2022 (7808402) AQUISIÇÃO DE 100 LIXEIRAS DE 100L.SEI: 23106.024130/2022-79 2022ND001075",371,MAT. CONSUMO,Rubismar Duzzi,null,UNIVERSIDADE DE BRASÍLIA,null,17500.00,global,605
PRÓPRIOS -  PREST.SERVICOS FUB/FUNDO,0.00,FISCAL,PR,2022,24/03/2022,CRÉDITOS DISTRIBUÍDOS PARA AS UNIDADES ACADÊMICAS,null,null,null,FUNCIONAMENTO DE INSTITUICOES FEDERAI - NO DF,23106.030004/2022-53,"C. CUSTO FCE PROT:110131(15840,00) REQ: 922/2022MEMORANDO 03 (7867642) AQUISIÇÃO DE MATERIAL HOSPITALARSEI: 23106.030004/2022-53 2022ND001061",368,MAT. CONSUMO,Shayenne Bonfain,null,UNIVERSIDADE DE BRASÍLIA,null,15840.00,global,605
PRÓPRIOS -  PREST.SERVICOS FUB/FUNDO,0.00,FISCAL,PR,2022,24/03/2022,CRÉDITOS DISTRIBUÍDOS PARA AS UNIDADES ACADÊMICAS,null,null,null,FUNCIONAMENTO DE INSTITUICOES FEDERAI - NO DF,23106.030004/2022-53,"C. CUSTO FCE PROT:110131(5940,00) REQ: 921/2022MEMORANDO 03 (7867642) AQUISIÇÃO DE MATERIAL HOSPITALARSEI: 23106.030004/2022-53 2022ND001061",367,MAT. CONSUMO,Klenni Kosby Carvalhal,null,UNIVERSIDADE DE BRASÍLIA,null,5940.00,global,605
PRÓPRIOS -  PREST.SERVICOS FUB/FUNDO,0.00,FISCAL,PR,2022,24/03/2022,CRÉDITOS DISTRIBUÍDOS PARA AS UNIDADES ACADÊMICAS,null,null,null,FUNCIONAMENTO DE INSTITUICOES FEDERAI - NO DF,23106.030004/2022-53,"C. CUSTO FCE PROT:110131(5090,40) REQ: 920/2022MEMORANDO 03 (7867642) AQUISIÇÃO DE MATERIAL HOSPITALARSEI: 23106.030004/2022-53 2022ND001061",366,MAT. CONSUMO,Cleirivania Goodwin Ramos,null,UNIVERSIDADE DE BRASÍLIA,null,5090.40,global,605
PRÓPRIOS -  PREST.SERVICOS FUB/FUNDO,0.00,FISCAL,PR,2022,24/03/2022,CRÉDITOS DISTRIBUÍDOS PARA AS UNIDADES ACADÊMICAS,null,null,null,FUNCIONAMENTO DE INSTITUICOES FEDERAI - NO DF,23106.030004/2022-53,"C. CUSTO FCE PROT:110131(23000,00) REQ: 918/2022MEMORANDO 03 (7867642) AQUISIÇÃO DE MATERIAL HOSPITALARSEI: 23106.030004/2022-53 2022ND001061",365,MAT. CONSUMO,Ronchi Kollross Cassanelli Ermelina,null,UNIVERSIDADE DE BRASÍLIA,null,23000.00,global,605
RECURSOS ORDINÁRIOS,559035.39,FISCAL,PR 31/2021 - UNB,2022,23/03/2022,LIMPEZA E CONSERVACAO - ÁGIL,null,null,null,FUNCIONAMENTO DE INSTITUICOES FEDERAI - NO DF,23106.047036/2021-15,"C.CUSTO : SPI                          S.E.I Nº : 23106.047036/2021-15MEMO.S.N/2022/SPI/CAC                  2022ND001063 -   CONTRATO: 033/2022ATT - NEWTON DA SILVA MIRANDA JÚNIOR - PROT:110147(559035,39) - PREG:31/2021LIMPEZA E CONSERVAÇÃO - PRESTAÇÃO DE SERVIÇO DE LIMPEZA E CONSERVAÇÃO EM EDIF. COMERC. E RESID. DA UNB",362,LOC. MÃO-DE-OBRA,Vanuslete Zemczak Larson,null,UNIVERSIDADE DE BRASÍLIA,null,559035.39,global,605
PRÓPRIOS -  PREST.SERVICOS FUB/FUNDO,957.92,FISCAL,PR,2022,22/03/2022,CRÉDITOS DISTRIBUÍDOS PARA AS UNIDADES ACADÊMICAS,null,null,null,FUNCIONAMENTO DE INSTITUICOES FEDERAI - NO DF,23106.029671/2022-93,"C. CUSTO: IFD.      PROT:11010116{SM915/2022(957,92)}       SEI 23106.029671/2022-93.AQUISIÇÃO DE LUXÍMETRO.                        OFICIO 002/2022/IF/SEC/COMPRAS.COMPROVANTE DE SALDO (7877489).",360,EQUIP. MATERIAL PERMANENTE,Informação Anonimizada,null,UNIVERSIDADE DE BRASÍLIA,null,957.92,global,605
PRÓPRIOS -  PREST.SERVICOS FUB/FUNDO,29064.00,FISCAL,PR,2022,22/03/2022,CRÉDITOS DISTRIBUÍDOS PARA AS UNIDADES ACADÊMICAS,null,null,null,FUNCIONAMENTO DE INSTITUICOES FEDERAI - NO DF,23106.029671/2022-93,"C. CUSTO: IFD.      PROT:11010116{SM912/2022(29064,00)}       SEI 23106.029671/2022-93.AQUISIÇÃO DE GERADORES.                       OFICIO 002/2022/IF/SEC/COMPRAS.COMPROVANTE DE SALDO (7877489).",359,EQUIP. MATERIAL PERMANENTE,Zandona Salache Fagherészi,null,UNIVERSIDADE DE BRASÍLIA,null,29064.00,global,605
RECURSOS ORDINÁRIOS,760942.00,FISCAL,PR,2022,22/03/2022,FUNCIONAMENTO GERAL,null,null,null,FUNCIONAMENTO DE INSTITUICOES FEDERAI - NO DF,23106.012062/2022-03,"C. CUSTO STI PROT:110146(7760942,00)AQUISIÇÃO DE EXPANSÃO DE STORAGE NETAPP PARA A STISEI: 23106.012062/2022-03 2022ND000951 PE: 201/2021",358,EQUIP. MATERIAL PERMANENTE,Informação Anonimizada,null,UNIVERSIDADE DE BRASÍLIA,null,760942.00,global,605
PRÓPRIOS -  PREST.SERVICOS FUB/FUNDO,2800.00,FISCAL,PR,2022,22/03/2022,CRÉDITOS DISTRIBUÍDOS PARA AS UNIDADES ACADÊMICAS,null,null,null,FUNCIONAMENTO DE INSTITUICOES FEDERAI - NO DF,23106.022112/2022-52,"C. CUSTO: FMD.       PROT:11010109{SM887/2022(2800,00)}        SEI 23106.022112/2022-52.AQUISIÇÃO DE LIXEIRAS.2022ND000800.        MEMO 006/2022/FM/SECFM/CLC.",356,MAT. CONSUMO,Rubismar Duzzi,null,UNIVERSIDADE DE BRASÍLIA,null,2800.00,ordinário,605
RECURSOS ORDINÁRIOS,794492.00,FISCAL,PR,2022,21/03/2022,FUNCIONAMENTO GERAL,null,null,null,FUNCIONAMENTO DE INSTITUICOES FEDERAI - NO DF,23106.012062/2022-03,"C. CUSTO STI PROT:110146(794492,00)AQUISIÇÃO DE EXPANSÃO DE STORAGE NETAPP PARA A STISEI: 23106.012062/2022-03 2022ND000952",349,EQUIP. MATERIAL PERMANENTE,Informação Anonimizada,null,UNIVERSIDADE DE BRASÍLIA,null,794492.00,global,605
RECURSOS ORDINÁRIOS,946470.00,FISCAL,PR,2022,21/03/2022,FUNCIONAMENTO GERAL,null,null,null,REESTRUTURACAO E MODERNIZACAO DAS INS - NO DF,23106.012062/2022-03,"C. CUSTO STI PROT:110146(946470,00)AQUISIÇÃO DE EXPANSÃO DE STORAGE NETAPP PARA A STISEI: 23106.012062/2022-03 2022ND000951",348,EQUIP. MATERIAL PERMANENTE,Informação Anonimizada,null,UNIVERSIDADE DE BRASÍLIA,null,946470.00,global,605
PRÓPRIOS -  PREST.SERVICOS FUB/FUNDO,4500.00,FISCAL,PR,2022,18/03/2022,CRÉDITOS DISTRIBUÍDOS PARA AS UNIDADES ADMINISTRATIVAS,null,null,null,FUNCIONAMENTO DE INSTITUICOES FEDERAI - NO DF,23106.027098/2022-83,"C. CUSTO: GRE                            SEI:23106.027098/2022-83ATT: PAULO CESAR MARQUES A               2022ND000911MEMO.012/REITORIA/GRE                     PROT:1101{SM693/2022(4500,00)}MATERIAL DE PERMANENTE - PEDIDO:0693/2022 -   PREG:207/2021  TABLET - TELA 9.1 - 4GB RAM - 32GB -  MEMÓRIA -  INTERNA - ME/EPP",346,EQUIP. MATERIAL PERMANENTE,Porcino Clívela Beledelli,null,UNIVERSIDADE DE BRASÍLIA,null,4500.00,global,605
PRÓPRIOS -  PREST.SERVICOS FUB/FUNDO,14000.00,FISCAL,PR,2022,18/03/2022,CRÉDITOS DISTRIBUÍDOS PARA AS UNIDADES ADMINISTRATIVAS,null,null,null,FUNCIONAMENTO DE INSTITUICOES FEDERAI - NO DF,23106.028198/2022-27,"C. CUSTO: DEX                            SEI:23106.028198/2022-27PAGAMENTO DE PASSAGEM NACIONAL           PROT:110107(4000,00)MEMO.007/2022/DEX                        2022ND000924 - CONTRATO:125/2018",344,PASSAGENS,Laisson Mvuama Pangoni Deconto,null,UNIVERSIDADE DE BRASÍLIA,10000.00,4000.00,estimativo,605
RECURSOS DIR.ARRECADADOS(PROPRIOS)-FUB -,4500.00,FISCAL,PR,2022,18/03/2022,ARRECADACOES PROVENIENTES DO SIS,null,null,null,FUNCIONAMENTO DE INSTITUICOES FEDERAI - NO DF,23106.027860/2022-21,"C. CUSTO SIS PROT:11010117030101(4500,00) REQ: 853/2022MEMORANDO 043 / 2022 (7845019) AQUISIÇÃO DE 02 (DOIS ) TABLETSSEI: 23106.027860/2022-21 PREGAO: 207/2021",341,EQUIP. MATERIAL PERMANENTE,Porcino Clívela Beledelli,null,UNIVERSIDADE DE BRASÍLIA,null,4500.00,ordinário,605
RECURSOS ORDINÁRIOS,853309.75,FISCAL,PR,2022,17/03/2022,OPERADOR DE TRATOR,null,null,null,FUNCIONAMENTO DE INSTITUICOES FEDERAI - NO DF,23106.016366/2022-31,"C. CUSTO: DTER.     PROT:11011007(853309,75)     SEI 23106.016366/2022-31.SERVIÇOS DE MÃO DE OBRA P/CONDUÇÃO DE VEÍCULOS DE REPRESENTAÇÃO. CONTRATO 1201/2022.2022ND000898.",340,LOC. MÃO-DE-OBRA,Laidylaura Saade Dziedzic,null,UNIVERSIDADE DE BRASÍLIA,null,853309.75,global,605
RECURSOS ORDINÁRIOS,1098.75,FISCAL,PR,2022,17/03/2022,MATRIZ HVET_,null,null,null,20RK - FUNCIONAMENTO DOS HOSPITAL VETERINARIOS,23106.028062/2022-17,"C. CUSTO: HVET.       PROT:1101010501{SM867/2022(1098,75)}      SEI 23106.028062/2022-17.    AQUISIÇÃO DE MEDICAMENTOS PARA USO VETERINÁRIO.2022ND000884.           DESPACHO FAV/HVET/HVETINHO 7846594.",339,MAT. CONSUMO,Osmarnildo Atopo Bolinja,null,UNIVERSIDADE DE BRASÍLIA,null,1098.75,ordinário,605
RECURSOS ORDINÁRIOS,198.00,FISCAL,PR,2022,17/03/2022,MATRIZ HVET_,null,null,null,20RK - FUNCIONAMENTO DOS HOSPITAL VETERINARIOS,23106.028062/2022-17,"C. CUSTO: HVET.       PROT:1101010501{SM866/2022(198,00)}      SEI 23106.028062/2022-17.    AQUISIÇÃO DE MEDICAMENTOS PARA USO VETERINÁRIO.2022ND000884.           DESPACHO FAV/HVET/HVETINHO 7846594.",338,MAT. CONSUMO,Gutto do Procópio Kregenski Monbaque,null,UNIVERSIDADE DE BRASÍLIA,null,198.00,ordinário,605
RECURSOS ORDINÁRIOS,1012.25,FISCAL,PR,2022,17/03/2022,MATRIZ HVET_,null,null,null,20RK - FUNCIONAMENTO DOS HOSPITAL VETERINARIOS,23106.028062/2022-17,"C. CUSTO: HVET.       PROT:1101010501{SM865/2022(1012,25)}      SEI 23106.028062/2022-17.    AQUISIÇÃO DE MEDICAMENTOS PARA USO VETERINÁRIO.2022ND000884.           DESPACHO FAV/HVET/HVETINHO 7846594.",337,MAT. CONSUMO,Elienir Vanina Gandala Cachioni,null,UNIVERSIDADE DE BRASÍLIA,null,1012.25,ordinário,605
RECURSOS ORDINÁRIOS,229.70,FISCAL,PR,2022,17/03/2022,MATRIZ HVET_,null,null,null,20RK - FUNCIONAMENTO DOS HOSPITAL VETERINARIOS,23106.028062/2022-17,"C. CUSTO: HVET.       PROT:1101010501{SM863/2022(229,70)}      SEI 23106.028062/2022-17.    AQUISIÇÃO DE MEDICAMENTOS PARA USO VETERINÁRIO.2022ND000884.           DESPACHO FAV/HVET/HVETINHO 7846594.",336,MAT. CONSUMO,Piheiro Zemolin Dussivania Krog,null,UNIVERSIDADE DE BRASÍLIA,null,229.70,ordinário,605
RECURSOS ORDINÁRIOS,0.00,FISCAL,PR,2022,17/03/2022,MATRIZ HVET_,null,null,null,20RK - FUNCIONAMENTO DOS HOSPITAL VETERINARIOS,23106.026921/2022-33,"C. CUSTO HVET PROT:1101010501(1996,62) REQ: 821/2022AQUISIÇÃO DE MEDICAMENTOS ESSENCIAISPARA O HOSPITAL VETERINÁRIO. PR 9/2021 - FUBSEI: 23106.026921/2022-33 2022ND000849",334,MAT. CONSUMO,Alaver Nicolsky Buard Bicato Nepumuceno,null,UNIVERSIDADE DE BRASÍLIA,null,1996.62,ordinário,605
RECURSOS ORDINÁRIOS,0.00,FISCAL,null,2022,17/03/2022,MATRIZ HVET_,null,null,null,20RK - FUNCIONAMENTO DOS HOSPITAL VETERINARIOS,23106.034247/2022-61,23106.034247/2022-61,333,MAT. CONSUMO,Caeté Posoli Schetino,null,UNIVERSIDADE DE BRASÍLIA,null,200.64,ordinário,605
RECURSOS ORDINÁRIOS,0.00,FISCAL,PR,2022,17/03/2022,MATRIZ HVET_,null,null,null,20RK - FUNCIONAMENTO DOS HOSPITAL VETERINARIOS,23106.026921/2022-33,"C. CUSTO HVET PROT:1101010501(128,40) REQ: 822/2022AQUISIÇÃO DE MEDICAMENTOS ESSENCIAISPARA O HOSPITAL VETERINÁRIO. PR 9/2021 - FUBSEI: 23106.026921/2022-33 2022ND000849",332,MAT. CONSUMO,Osmarnildo Atopo Bolinja,null,UNIVERSIDADE DE BRASÍLIA,null,128.40,ordinário,605
RECURSOS ORDINÁRIOS,41000.00,FISCAL,PR,2022,16/03/2022,CAPACITAÇÃO DE SERVIDORES,null,null,null,CAPACITACAO DE SERVIDORES PUBLICOS FE - NO DI,23106.023496/2022-21,"C. CUSTO: DGP.     PROT:110134(5930,00)    SEI 23106.023496/2022-21.PASSAGENS AÉREAS NACIONAIS.2022ND000885.   DESPACHO STI/CGESP/PREGÃO 7846357.",329,PASSAGENS,Laisson Mvuama Pangoni Deconto,null,UNIVERSIDADE DE BRASÍLIA,35070.00,5930.00,estimativo,605
RECURSOS ORDINÁRIOS,13685.37,FISCAL,PR,2022,16/03/2022,MANUTENCAO DE VEICULOS LEVES E PESADOS DA FUB,null,null,null,FUNCIONAMENTO DE INSTITUICOES FEDERAI - NO DF,23106.024729/2022-11,"C. CUSTO: PRC.     PROT:110105(13685,37)    SEI 23106.024729/2022-11.PEÇAS PARA MANUTENÇÃO DE VEÍCULO.2022ND000892.         MEMO 34/2022/PRC/DIMEQ/CMV.",327,MAT. CONSUMO,Rabbers Viggiano Bolis Savaro,null,UNIVERSIDADE DE BRASÍLIA,null,13685.37,estimativo,605
RECURSOS ORDINÁRIOS,563.75,FISCAL,PR,2022,16/03/2022,MANUTENCAO DE VEICULOS LEVES E PESADOS DA FUB,null,null,null,FUNCIONAMENTO DE INSTITUICOES FEDERAI - NO DF,23106.024729/2022-11,"C. CUSTO: PRC.     PROT:110105(563,75)    SEI 23106.024729/2022-11.SERVIÇOS DE MANUTENÇÃO DE VEÍCULO.2022ND000892.         MEMO 34/2022/PRC/DIMEQ/CMV.",326,SERV. PESSOA JURÍDICA,Rabbers Viggiano Bolis Savaro,null,UNIVERSIDADE DE BRASÍLIA,null,563.75,estimativo,605
RECURSOS DIR.ARRECADADOS(PROPRIOS)-FUB -,1700.00,FISCAL,PR 205/2021 - UNB,2022,15/03/2022,ARRECADACOES PROVENIENTES DO SIS,null,null,null,FUNCIONAMENTO DE INSTITUICOES FEDERAI - NO DF,23106.027758/2022-26,"C. CUSTO: SIS. PROT:11010117030101{SM832/2022(1700,00)} SEI 23106.027758/2022-26.AQUISIÇÃO DE MESAS DIGITALIZADORAS. MEMO 042/2022/IG/SIS.COMPROVANTE DE SALDO (7849149)",324,EQUIP. MATERIAL PERMANENTE,Ilmetov Rondini Placco,null,UNIVERSIDADE DE BRASÍLIA,null,1700.00,ordinário,605
PRÓPRIOS -  PREST.SERVICOS FUB/FUNDO,2000.00,FISCAL,PR,2022,14/03/2022,CRÉDITOS DISTRIBUÍDOS PARA AS UNIDADES ACADÊMICAS,null,null,null,FUNCIONAMENTO DE INSTITUICOES FEDERAI - NO DF,23106.021147/2022-74,"C. CUSTO: IBD                SEI:23106.021147/2022-74PAGAMENTO DE SEGURO VIAGEM   PROT:11010112(2000,00)MEMO.007/2022/IB/COMPRAS     2022ND000867 - CONTRATO: 125/2018",321,SERV. PESSOA JURÍDICA,Laisson Mvuama Pangoni Deconto,null,UNIVERSIDADE DE BRASÍLIA,null,2000.00,estimativo,605
PRÓPRIOS -  PREST.SERVICOS FUB/FUNDO,40000.00,FISCAL,PR,2022,14/03/2022,CRÉDITOS DISTRIBUÍDOS PARA AS UNIDADES ACADÊMICAS,null,null,null,FUNCIONAMENTO DE INSTITUICOES FEDERAI - NO DF,23106.021147/2022-74,"C. CUSTO: IBD                                 SEI:23106.021147/2022-74PAGAMENTO DE PASSAGEM SERVIDOR INTERNACIONAL  PROT:11010112(40000,00)MEMO.007/2022/IB/COMPRAS                      2022ND000867 - CONTRATO: 125/2018",320,PASSAGENS,Laisson Mvuama Pangoni Deconto,null,UNIVERSIDADE DE BRASÍLIA,null,40000.00,estimativo,605
PRÓPRIOS -  PREST.SERVICOS FUB/FUNDO,15000.00,FISCAL,PR,2022,14/03/2022,CRÉDITOS DISTRIBUÍDOS PARA AS UNIDADES ACADÊMICAS,null,null,null,FUNCIONAMENTO DE INSTITUICOES FEDERAI - NO DF,23106.021147/2022-74,"C. CUSTO: IBD                                 SEI:23106.021147/2022-74PAGAMENTO DE PASSAGEM SERVIDOR NACIONAL       PROT:11010112(15000,00)MEMO.007/2022/IB/COMPRAS                      2022ND000867 - CONTRATO: 125/2018",319,PASSAGENS,Laisson Mvuama Pangoni Deconto,null,UNIVERSIDADE DE BRASÍLIA,null,15000.00,estimativo,605
RECURSOS ORDINÁRIOS,0.00,FISCAL,RDC,2022,14/03/2022,OBRA DE CONSTRUÇÃO DO CENTRO DE BIOTECNOLOGIA MOLECULAR - CBIOTECH,null,500000.00,null,REESTRUTURACAO E MODERNIZACAO DAS INS - NO DF,23106.072505/2017-40,"C. CUSTO: INFRA.      PROT:110137(500000,00)     SEI 23106.072505/2017-40.OBRA DE CONSTRUÇÃO DO CENTRO DE BIOTECNOLOGIA MOLECULAR - CBIOTECH. 2022ND000865.     RDC 2/2021.",316,OBRAS E INSTALAÇÕES,Informação Anonimizada,null,UNIVERSIDADE DE BRASÍLIA,null,500000.00,global,605
RECURSOS ORDINÁRIOS,8089.34,FISCAL,null,2022,01/03/2022,REPOSIÇÃO DE MATERIAL DO ALMOXARIFADO,null,null,null,FUNCIONAMENTO DE INSTITUICOES FEDERAI - NO DF,23106.037427/2022-02,23106.037427/2022-02,315,MAT. CONSUMO,Soprani Meloquero Nisa Babilon Waldo,null,UNIVERSIDADE DE BRASÍLIA,null,8089.34,global,605
PRÓPRIOS -  PREST.SERVICOS FUB/FUNDO,17199.00,FISCAL,PR,2022,11/03/2022,CRÉDITOS DISTRIBUÍDOS PARA AS UNIDADES ADMINISTRATIVAS,null,null,null,FUNCIONAMENTO DE INSTITUICOES FEDERAI - NO DF,23106.019730/2022-15,"C. CUSTO: DEX                   SEI:23106.019730/2022-15ATT: ALEXANDRE SIMOES PILATI    2022ND000840MEMO.006/2022/DEX               PROT:110107{SM831/2022(17199,00)}MATERIAL DE PERMANENTE - PEDIDO:0831/2022 -   PREG:206/2020  EQUIPAMENTOS TIC - MICROCOMPUTADOR TIPO AVANÇADO",313,EQUIP. MATERIAL PERMANENTE,Berg Valdemar Callovi ésevedo Heicheberg,null,UNIVERSIDADE DE BRASÍLIA,null,17199.00,global,605
PRÓPRIOS -  PREST.SERVICOS FUB/FUNDO,78000.00,FISCAL,PR,2022,11/03/2022,CRÉDITOS DISTRIBUÍDOS PARA AS UNIDADES ACADÊMICAS,null,null,null,FUNCIONAMENTO DE INSTITUICOES FEDERAI - NO DF,23106.026881/2022-20,"C. CUSTO: FCE                            SEI:23106.026881/2022-20ATT: JOAO PAULO CHIEREGATO               2022ND000828MEMO.002/2022/FCE/LICICON                PROT:110131{SM823/2022(11466,00)}MATERIAL DE PERMANENTE - PEDIDO:0823/2022 -   PREG:206/2020  EQUIPAMENTOS TIC - MICROCOMPUTADOR TIPO PADRÃO",312,EQUIP. MATERIAL PERMANENTE,Hohlenwerger Jacunda Mezzalira Escott Alodji,null,UNIVERSIDADE DE BRASÍLIA,null,78000.00,global,605
RECURSOS DIRETAM.ARREC FUNDAÇÃO UNIV.BRASÍLIA,3871.34,FISCAL,PR,2022,11/03/2022,MANUTENCAO DE VEICULOS LEVES E PESADOS DA FUB,null,null,null,FUNCIONAMENTO DE INSTITUICOES FEDERAI - NO DF,23106.015386/2022-95,"C.CUSTO PRC - MANUT.CORRETIVA E PREVENTIVA DE VEICULOS                   SEI:23106.015386/2022-95PAGAMENTO DE MATERIAL  DE VEICULO LEVES - MARCA VW                       PROT:110105(3871,34)MEMO.S.N/2022/PRC/DIMEQ/CTR   2022ND000779  - CONTRATO Nº 1017/2016      PREG:655/2015",310,MAT. CONSUMO,Eiter Ignaczuk Soleiro Havro,null,UNIVERSIDADE DE BRASÍLIA,null,3871.34,estimativo,605
RECURSOS DIRETAM.ARREC FUNDAÇÃO UNIV.BRASÍLIA,1614.36,FISCAL,PR,2022,11/03/2022,MANUTENCAO DE VEICULOS LEVES E PESADOS DA FUB,null,null,null,FUNCIONAMENTO DE INSTITUICOES FEDERAI - NO DF,23106.015386/2022-95,"C.CUSTO PRC - MANUT.CORRETIVA E PREVENTIVA DE VEICULOS                   SEI:23106.015386/2022-95PAGAMENTO DE MANUT.CONSERVAÇÃO DE VEICULO LEVES - MARCA VW               PROT:110105(1614,36)MEMO.S.N/2022/PRC/DIMEQ/CTR   2022ND000779  - CONTRATO Nº 1017/2016      PREG:655/2015",309,SERV. PESSOA JURÍDICA,Eiter Ignaczuk Soleiro Havro,null,UNIVERSIDADE DE BRASÍLIA,null,1614.36,estimativo,605
PRÓPRIOS -  PREST.SERVICOS FUB/FUNDO,41600.00,FISCAL,PR,2022,11/03/2022,CRÉDITOS DISTRIBUÍDOS PARA AS UNIDADES ADMINISTRATIVAS,null,null,null,FUNCIONAMENTO DE INSTITUICOES FEDERAI - NO DF,23106.020904/2022-92,"C. CUSTO: ACE.     PROT:110141{SM680/2022(41600,00)}     SEI 23106.020904/2022-92.AQUISIÇÃO DE MICROCOMPUTADORES.                            MEMO 11/2022/ACE.2022ND000808.",305,EQUIP. MATERIAL PERMANENTE,Hohlenwerger Jacunda Mezzalira Escott Alodji,null,UNIVERSIDADE DE BRASÍLIA,null,41600.00,ordinário,605
PRÓPRIOS -  PREST.SERVICOS FUB/FUNDO,0.00,FISCAL,PR,2022,11/03/2022,CRÉDITOS DISTRIBUÍDOS PARA AS UNIDADES ACADÊMICAS,null,null,null,FUNCIONAMENTO DE INSTITUICOES FEDERAI - NO DF,23106.025725/2022-41,"C. CUSTO FCE PROT:110131(249500,00) REQ: 784/2022MEMORANDO 01 (7823853) AQUISIÇÃO COM 50 NOTEBOOKS.SEI: 23106.025725/2022-41 2022ND000781 PR 206/2020",303,EQUIP. MATERIAL PERMANENTE,Katyllen Cruciol Shigematsu,null,UNIVERSIDADE DE BRASÍLIA,null,249500.00,global,605
RECURSOS DIRETAM.ARREC FUNDAÇÃO UNIV.BRASÍLIA,26000.00,FISCAL,PR,2022,10/03/2022,FUNCIONAMENTO GERAL,null,null,null,FUNCIONAMENTO DE INSTITUICOES FEDERAI - NO DF,23106.132877/2021-19,"C. CUSTO: EDU                SEI: 23106.132877/2021-19ATT: PERCIO SAVIO ROMUALDO   2022ND000787MEMO.019/2022/EDU/DIR        PROT:110903{SM793/2022(26000,00)}MATERIAL DE PERMANENTE - PEDIDO:0793/2022 -   PREG:206/2020  EQUIPAMENTOS TIC - MICROCOMPUTADOR TIPO PADRÃO",302,EQUIP. MATERIAL PERMANENTE,Hohlenwerger Jacunda Mezzalira Escott Alodji,null,UNIVERSIDADE DE BRASÍLIA,null,26000.00,global,605
RECURSOS DIRETAM.ARREC FUNDAÇÃO UNIV.BRASÍLIA,22932.00,FISCAL,PR,2022,10/03/2022,FUNCIONAMENTO GERAL,null,null,null,FUNCIONAMENTO DE INSTITUICOES FEDERAI - NO DF,23106.132877/2021-19,"C. CUSTO: EDU                SEI: 23106.132877/2021-19ATT: PERCIO SAVIO ROMUALDO   2022ND000787MEMO.019/2022/EDU/DIR        PROT:110903{SM794/2022(41600,00)}MATERIAL DE PERMANENTE - PEDIDO:0794/2022 -   PREG:206/2020  EQUIPAMENTOS TIC - MICROCOMPUTADOR TIPO AVANÇADO",301,EQUIP. MATERIAL PERMANENTE,Berg Valdemar Callovi ésevedo Heicheberg,null,UNIVERSIDADE DE BRASÍLIA,null,22932.00,global,605
PRÓPRIOS -  PREST.SERVICOS FUB/FUNDO,15000.00,FISCAL,PR,2022,10/03/2022,CRÉDITOS DISTRIBUÍDOS PARA AS UNIDADES ACADÊMICAS,null,null,null,FUNCIONAMENTO DE INSTITUICOES FEDERAI - NO DF,23106.025286/2022-77,"C. CUSTO: FAV                        SEI:23106.025286/2022-77PAGAMENTO DE PASSAGEM NACIONAL       PROT:11010105(6000,00)MEMO.003/2022/FAV/DIR                2022ND000809",300,PASSAGENS,Laisson Mvuama Pangoni Deconto,null,UNIVERSIDADE DE BRASÍLIA,12000.00,3000.00,estimativo,605
PRÓPRIOS -  PREST.SERVICOS FUB/FUNDO,41600.00,FISCAL,PR,2022,10/03/2022,CRÉDITOS DISTRIBUÍDOS PARA AS UNIDADES ACADÊMICAS,null,null,null,FUNCIONAMENTO DE INSTITUICOES FEDERAI - NO DF,23106.025992/2022-19,"C. CUSTO: IPOL                             SEI: 23106.025992/2022-19ATT: DANUSA MARQUES            2022ND000776MEMO.009/2022/IPOL/ORÇAMENTO     PROT:11010124{SM761/2022(41600,00)}MATERIAL DE PERMANENTE - PEDIDO:0761/2022 -   PREG:206/2020  EQUIPAMENTOS TIC - MICROCOMPUTADOR TIPO AVANÇADO",296,EQUIP. MATERIAL PERMANENTE,Hohlenwerger Jacunda Mezzalira Escott Alodji,null,UNIVERSIDADE DE BRASÍLIA,null,41600.00,global,605
PRÓPRIOS -  PREST.SERVICOS FUB/FUNDO,9875.00,FISCAL,null,2022,10/03/2022,CRÉDITOS DISTRIBUÍDOS PARA AS UNIDADES ADMINISTRATIVAS,null,null,null,FUNCIONAMENTO DE INSTITUICOES FEDERAI - NO DF,23106.108257/2021-69,"C. CUSTO PRC PROT:110105(9875,00)CONTRATAÇÃO DE EMPRESA ESPECIALIZADAEM FERRAMENTA DE PESQUISA E COMPARAÇÃO DE PREÇOSSEI: 23106.108257/2021-69 2022ND000802 INEX: 22001/2022",295,SERVIÇOS TIC,Daoud Landeta Secioso,null,UNIVERSIDADE DE BRASÍLIA,null,9875.00,global,605
RECURSOS DIRETAM.ARREC FUNDAÇÃO UNIV.BRASÍLIA,3451.56,FISCAL,PR,2022,09/03/2022,MANUTENCAO DE VEICULOS LEVES E PESADOS DA FUB,null,null,null,FUNCIONAMENTO DE INSTITUICOES FEDERAI - NO DF,23106.005580/2022-62,"C.CUSTO PRC - MANUT.CORRETIVA E PREVENTIVA DE VEICULOS      SEI: 23106.005580/2022-62PAGAMENTO DE MATERIAL DE CONSUMO - FORNEC. DE PEÇAS - MARCA FIAT  -  PREG:655/2015     MEMO.013/2022/PRC /DIMEQ /COT /REFRIGERA  - 2022ND000798 -   CONTRATO Nº 1017/2016 - PROT:110105(3451,56)",293,MAT. CONSUMO,Eiter Ignaczuk Soleiro Havro,null,UNIVERSIDADE DE BRASÍLIA,null,3451.56,estimativo,605
RECURSOS DIRETAM.ARREC FUNDAÇÃO UNIV.BRASÍLIA,546.00,FISCAL,PR,2022,09/03/2022,MANUTENCAO DE VEICULOS LEVES E PESADOS DA FUB,null,null,null,FUNCIONAMENTO DE INSTITUICOES FEDERAI - NO DF,23106.005580/2022-62,"C.CUSTO PRC - MANUT.CORRETIVA E PREVENTIVA DE VEICULOS      SEI: 23106.005580/2022-62PAGAMENTO DE MANUT.CONSERVAÇÃO DE VEICULO LEVES - MARCA FIAT -  PREG:655/2015     MEMO.013/2022/PRC /DIMEQ /COT /REFRIGERA  - 2022ND000798 -   CONTRATO Nº 1017/2016 - PROT:110105(546,00)",292,SERV. PESSOA JURÍDICA,Eiter Ignaczuk Soleiro Havro,null,UNIVERSIDADE DE BRASÍLIA,null,546.00,estimativo,605
PRÓPRIOS -  PREST.SERVICOS FUB/FUNDO,10000.00,FISCAL,PR,2022,09/03/2022,CRÉDITOS DISTRIBUÍDOS PARA AS UNIDADES ACADÊMICAS,null,null,null,FUNCIONAMENTO DE INSTITUICOES FEDERAI - NO DF,23106.025123/2022-94,"C. CUSTO: FTD                              SEI:23106.025123/2022-94PAGAMENTO DE PASSAGEM SERVIDOR             PROT:11010111(10000,00)MEMO.009/2022/FT / DIREÇÃO / SECRETARIA    2022ND000789",288,PASSAGENS,Laisson Mvuama Pangoni Deconto,null,UNIVERSIDADE DE BRASÍLIA,null,10000.00,estimativo,605
RECURSOS ORDINÁRIOS,46187.04,FISCAL,PR,2022,09/03/2022,FUNCIONAMENTO GERAL,null,null,null,FUNCIONAMENTO DE INSTITUICOES FEDERAI - NO DF,23106.011871/2022-90,"C.CUSTO: PRC -AT- CLEITON ALVES TORRES - PROT:110105{SM348/2022(46187,04)}         MATERIAL DE CONSUMO-PEDIDO:348/2022 -2022ND000740 -PREG:018/2021MATERIAL DE   LIMPEZA E HIGIENE - CONJUNTO DE LIXEIRA EXTERNA - 3 CESTOS - POLIPROPILENOMEMO.004/2022/ PRC / DIMAP / CZM -  S.E.I 23106.011871/2022-90",285,MAT. CONSUMO,Marcus Venoso Eulâmpio Lika Fratuce,null,UNIVERSIDADE DE BRASÍLIA,null,46187.04,global,605
RECURSOS DIR.ARRECADADOS(PROPRIOS)-FUB -,456.00,FISCAL,PR,2022,09/03/2022,ARRECADACOES PROVENIENTES DO SIS,null,null,null,FUNCIONAMENTO DE INSTITUICOES FEDERAI - NO DF,23106.023228/2022-17,"C. CUSTO: SIS.      PROT:11010117030101{SM732/2022(456,00)}      SEI 23106.023228/2022-17.AQUISIÇÃO DE HD EXTERNO.                              MEMO 031/2022/IG/SIS.2022ND000784.",284,MAT. CONSUMO,Lohaynne Mészola Mirgalouy Andonios,null,UNIVERSIDADE DE BRASÍLIA,null,456.00,ordinário,605
RECURSOS DIR.ARRECADADOS(PROPRIOS)-FUB -,2328.00,FISCAL,PR,2022,09/03/2022,ARRECADACOES PROVENIENTES DO SIS,null,null,null,FUNCIONAMENTO DE INSTITUICOES FEDERAI - NO DF,23106.023228/2022-17,"C. CUSTO: SIS.      PROT:11010117030101{SM730/2022(2328,00)}      SEI 23106.023228/2022-17.AQUISIÇÃO DE HD EXTERNO.                              MEMO 031/2022/IG/SIS.2022ND000784.",283,MAT. CONSUMO,Lohaynne Mészola Mirgalouy Andonios,null,UNIVERSIDADE DE BRASÍLIA,null,2328.00,ordinário,605
PRÓPRIOS -  PREST.SERVICOS FUB/FUNDO,2158.94,FISCAL,PR,2022,08/03/2022,MANUTENCAO DE VEICULOS LEVES E PESADOS DA FUB,null,null,null,FUNCIONAMENTO DE INSTITUICOES FEDERAI - NO DF,23106.128077/2021-01,"C.CUSTO PRC - MANUT.CORRETIVA E PREVENTIVA DE VEICULOS                   SEI:23106.128077/2021-01  PAGAMENTO DE MATERIAL  DE VEICULO LEVES - MARCA VW                            PROT:110105(2158,94)MEMO.S.N./2021/PRC/DIMEQ/CMV   2022ND000679  - CONTRATO Nº 1017/2016      PREG:655/2015",282,MAT. CONSUMO,Eiter Ignaczuk Soleiro Havro,null,UNIVERSIDADE DE BRASÍLIA,null,2158.94,estimativo,605
PRÓPRIOS -  PREST.SERVICOS FUB/FUNDO,2167.87,FISCAL,PR,2022,08/03/2022,MANUTENCAO DE VEICULOS LEVES E PESADOS DA FUB,null,null,null,FUNCIONAMENTO DE INSTITUICOES FEDERAI - NO DF,23106.128077/2021-01,"C.CUSTO PRC - MANUT.CORRETIVA E PREVENTIVA DE VEICULOS                   SEI:23106.128077/2021-01  PAGAMENTO DE MANUT.CONSERVAÇÃO DE VEICULO LEVES - MARCA VW               PROT:110105(2167,87)MEMO.S.N./2021/PRC/DIMEQ/CMV   2021ND000370  - CONTRATO Nº 1017/2016      PREG:655/2015",281,SERV. PESSOA JURÍDICA,Eiter Ignaczuk Soleiro Havro,null,UNIVERSIDADE DE BRASÍLIA,null,2167.87,estimativo,605
PRÓPRIOS -  PREST.SERVICOS FUB/FUNDO,2625.00,FISCAL,PR,2022,07/03/2022,CRÉDITOS DISTRIBUÍDOS PARA AS UNIDADES ACADÊMICAS,null,null,null,FUNCIONAMENTO DE INSTITUICOES FEDERAI - NO DF,23106.021207/2022-59,"C.CUSTO: FMD -AT- MARIANA DAMAZIO RAJÃO - PROT:11010109{SM737/2021(2625,00)}         MATERIAL DE CONSUMO-PEDIDO:737/2021 -2022ND000734 -PREG:018/2021MATERIAL DE   LIMPEZA E HIGIENE - LIXEIRA REDONDA BRANCA E LIXEIRA REDONDA CINZA - 100LMEMO.001/2022/FM/NMT/LAB -  S.E.I 23106.021207/2022-59",273,MAT. CONSUMO,Rubismar Duzzi,null,UNIVERSIDADE DE BRASÍLIA,null,2625.00,global,605
RECURSOS ORDINÁRIOS,385.26,FISCAL,null,2022,04/01/2022,TAXIGOV (MOTORISTA),null,null,null,FUNCIONAMENTO DE INSTITUICOES FEDERAI - NO DF,23106.010532/2020-24,"C. CUSTO DTER. PROT:11011007(0,17) (UASG 201057) TAXIGOV - REFORÇO DA N.E 2893/2021 SEGUNDO TERMO ADITIVO AO CONTRATO 36/2020 EMPRESA VIP SERVICE LOCADORA E SERV 2022ND000727 SEI: 23106.010532/2020-24 PROC ORIGEM: 05000012019",263,PASSAGENS,Merhy Takada Emile,null,UNIVERSIDADE DE BRASÍLIA,385.09,0.17,global,605
RECURSOS DIR.ARRECADADOS(PROPRIOS)-FUB -,11325.36,FISCAL,PR,2022,02/03/2022,ARRECADACOES DA FAL - HORTIFRUTIGRANJEIRO,null,null,null,FUNCIONAMENTO DE INSTITUICOES FEDERAI - NO DF,23106.083700/2020-09,"C. CUSTO: FAL.      PROT:110116(11325,36)      SEI 23106.083700/2020-09.PEÇAS PARA MANUTENÇÃO DE VEÍCULO.             2022ND000729.       DESPACHO PRC/DIRAD/CCL 7765276.",260,MAT. CONSUMO,Rabbers Viggiano Bolis Savaro,null,UNIVERSIDADE DE BRASÍLIA,null,11325.36,estimativo,605
RECURSOS DIR.ARRECADADOS(PROPRIOS)-FUB -,1290.31,FISCAL,PR,2022,02/03/2022,ARRECADACOES DA FAL - HORTIFRUTIGRANJEIRO,null,null,null,FUNCIONAMENTO DE INSTITUICOES FEDERAI - NO DF,23106.083700/2020-09,"C. CUSTO: FAL.      PROT:110116(1290,31)      SEI 23106.083700/2020-09.SERVIÇO DE MANUTENÇÃO DE VEÍCULO.             2022ND000729.       DESPACHO PRC/DIRAD/CCL 7765276.",259,SERV. PESSOA JURÍDICA,Rabbers Viggiano Bolis Savaro,null,UNIVERSIDADE DE BRASÍLIA,null,1290.31,estimativo,605
PRÓPRIOS -  PREST.SERVICOS FUB/FUNDO,128.00,FISCAL,PR,2022,25/02/2022,CRÉDITOS DISTRIBUÍDOS PARA AS UNIDADES ADMINISTRATIVAS,null,null,null,FUNCIONAMENTO DE INSTITUICOES FEDERAI - NO DF,23106.019694/2022-90,"C.CUSTO: DEX -AT- ALEXANDRE OLIVEIRA SIMOES - PROT:110107{SM631/2022(128,00)}         MATERIAL DE CONSUMO-PEDIDO:631/2022 -2022ND000720 -PREG:501/2021MATERIAL  DE EXPEDIENTE -  CARTOLINA CELULOSE VEGETALMEMO.S.N/2022/DEX/DDC - S.E.I 23106.019694/2022-90 -",256,MAT. CONSUMO,Torino Hochino Wilhelmien Eroni,null,UNIVERSIDADE DE BRASÍLIA,null,128.00,global,605
PRÓPRIOS -  PREST.SERVICOS FUB/FUNDO,2328.53,FISCAL,PR,2022,25/02/2022,CRÉDITOS DISTRIBUÍDOS PARA AS UNIDADES ADMINISTRATIVAS,null,null,null,FUNCIONAMENTO DE INSTITUICOES FEDERAI - NO DF,23106.019694/2022-90,"C.CUSTO: DEX -AT- ALEXANDRE OLIVEIRA SIMOES - PROT:110107{SM630/2022(2328,53)}         MATERIAL DE CONSUMO-PEDIDO:630/2022 -2022ND000720 -PREG:501/2021MATERIAL  DE EXPEDIENTE E ACONDICIONAMENTO -  PAPEL E MATA BORRÃOMEMO.S.N/2022/DEX/DDC - S.E.I 23106.019694/2022-90",255,MAT. CONSUMO,Informação Anonimizada,null,UNIVERSIDADE DE BRASÍLIA,null,2328.53,global,605
PRÓPRIOS -  PREST.SERVICOS FUB/FUNDO,492.12,FISCAL,PR,2022,25/02/2022,CRÉDITOS DISTRIBUÍDOS PARA AS UNIDADES ADMINISTRATIVAS,null,null,null,FUNCIONAMENTO DE INSTITUICOES FEDERAI - NO DF,23106.019694/2022-90,"C.CUSTO: DEX -AT- ALEXANDRE OLIVEIRA SIMOES - PROT:110107{SM628/2022(492,12)}         MATERIAL DE CONSUMO-PEDIDO:628/2022 -2022ND000720 -PREG:501/2021MATERIAL  DE EXPEDIENTE -  COLA BRANCA - PINCEL DE DESENHO - PLACA DE CORTEMEMO.S.N/2022/DEX/DDC - S.E.I 23106.019694/2022-90",254,MAT. CONSUMO,Benon Takahira Prumkroi Siracusa,null,UNIVERSIDADE DE BRASÍLIA,null,492.12,global,605
RECURSOS ORDINÁRIOS,122.25,FISCAL,PR,2022,25/02/2022,TAXIGOV (MOTORISTA),null,null,null,FUNCIONAMENTO DE INSTITUICOES FEDERAI - NO DF,23106.018645/2022-30,"C. CUSTO DTER PROT:11011007(122,25)PAGAMENTO DA NOTA FISCAL 5904 E DA FATURA 1507 EMITIDA PELA EMPRESA VIP SERVICE CLUB LOCADORA REF. A SERVIÇOS DE TRANSPORTE TERRESTE DE SERVIDORES. CONTRATO 36/2020.SEI: 23106.018645/2022-30 2022ND000713",246,PASSAGENS,Merhy Takada Emile,null,UNIVERSIDADE DE BRASÍLIA,null,122.25,global,605
PRÓPRIOS -  PREST.SERVICOS FUB/FUNDO,10000.00,FISCAL,PR,2022,24/02/2022,CRÉDITOS DISTRIBUÍDOS PARA AS UNIDADES ACADÊMICAS,null,null,null,FUNCIONAMENTO DE INSTITUICOES FEDERAI - NO DF,23106.020134/2022-88,"C. CUSTO: FMD                        SEI:23106.020134/2022-88PAGAMENTO DE PASSAGEM NACIONAL    PROT:11010109(5000,00)MEMO.039/2022/FM/DIR                 2022ND000705",243,PASSAGENS,Laisson Mvuama Pangoni Deconto,null,UNIVERSIDADE DE BRASÍLIA,5000.00,5000.00,estimativo,605
RECURSOS DIR.ARRECADADOS(PROPRIOS)-FUB -,5764.00,FISCAL,DL 12002/2022 - FUB,2022,24/02/2022,ARRECADACOES DA FAL - HORTIFRUTIGRANJEIRO,null,null,null,FUNCIONAMENTO DE INSTITUICOES FEDERAI - NO DF,23106.120035/2021-14,"C. CUSTO FAL PROT:110116(5764,00)DESPACHO PRC / DIRAD / CCL (7745348)AQUISIÇÃO DE PEÇAS PARA MANUTENÇÃO DE EQUIPAMENTOSDE PREPARO DO SOLO E MOVIMENTAÇÃO DE CARGAS, DENTRO DA UNB.SEI: 23106.120035/2021-14 2022ND000693",238,MAT. CONSUMO,Rosnei Ngozi Massaco,null,UNIVERSIDADE DE BRASÍLIA,null,5764.00,ordinário,605
RECURSOS DIR.ARRECADADOS(PROPRIOS)-FUB -,7125.23,FISCAL,null,2022,24/02/2022,ARRECADACOES DA FAL - HORTIFRUTIGRANJEIRO,null,null,null,FUNCIONAMENTO DE INSTITUICOES FEDERAI - NO DF,23106.120035/2021-14,"C. CUSTO FAL PROT:110116(7125,23)DESPACHO PRC / DIRAD / CCL (7745348)AQUISIÇÃO DE PEÇAS PARA MANUTENÇÃO DE EQUIPAMENTOSDE PREPARO DO SOLO E MOVIMENTAÇÃO DE CARGAS, DENTRO DA UNB.SEI: 23106.120035/2021-14 2022ND000693",237,MAT. CONSUMO,Odehilde Arrivabeni Amabilia,null,UNIVERSIDADE DE BRASÍLIA,null,7125.23,ordinário,605
TED INCRA-UNB,1000000.00,FISCAL,PR,2022,23/02/2022,ALIMENTACAO,null,null,null,ASSISTENCIA AO ESTUDANTE DE ENSINO SU - NO DF,23106.017933/2022-77,"C. CUSTO DAC PROT:110109(1000000,00) CONTRATO 31/2021 GRUPO I ASSISTÊNCIA ESTUDANTILCONCESSÃO DO USO DE EDIFICAÇÕES, EQUIPAMENTOS, MÓVEIS E UTENSÍLIOS DOSRESTAURANTES UNIVERSITÁRIOS DA UNB PARA PRODUÇÃO DE REFEIÇÕES.SEI: 23106.017933/2022-77 PREGÃO 01/2021 2022ND000683",230,SERV. PESSOA JURÍDICA,Raili Caltarossa,null,UNIVERSIDADE DE BRASÍLIA,null,1000000.00,global,605
RECURSOS DIRETAM.ARREC FUNDAÇÃO UNIV.BRASÍLIA,1000.00,FISCAL,PR,2022,22/02/2022,FUNCIONAMENTO GERAL,null,null,null,FUNCIONAMENTO DE INSTITUICOES FEDERAI - NO DF,23106.016196/2022-95,"C. CUSTO: FMD    SEI:23106.016196/2022-95   PROT:110101097030101(1000,00)TRANSPORTE DE CARGA INTERNACIONAL - FRETE AÉREO INTERNACIONAL   MEMO.S.N/2022/FM/SECFM/PTL - 2022ND000660 - CONTRATO:081/2017",226,SERV. PESSOA JURÍDICA,Hashem Haizer Perosine,null,UNIVERSIDADE DE BRASÍLIA,null,1000.00,estimativo,605
RECURSOS DIRETAM.ARREC FUNDAÇÃO UNIV.BRASÍLIA,0.00,FISCAL,PR,2022,22/02/2022,FUNCIONAMENTO GERAL,null,1150.00,null,FUNCIONAMENTO DE INSTITUICOES FEDERAI - NO DF,23106.016196/2022-95,"C. CUSTO: FMD    SEI:23106.016196/2022-95   PROT:110101097030101(1150,00)TRANSPORTE DE CARGA INTERNACIONAL - FRETE AÉREO INTERNACIONAL   MEMO.S.N/2022/FM/SECFM/PTL - 2022ND000660 - CONTRATO:081/2017",225,SERV. PESSOA JURÍDICA,Hashem Haizer Perosine,null,UNIVERSIDADE DE BRASÍLIA,null,1150.00,estimativo,605
RECURSOS DIR.ARRECADADOS(PROPRIOS)-FUB -,10000.00,FISCAL,PR,2022,22/02/2022,ARRECADACOES PROVENIENTES DO SIS,null,null,null,FUNCIONAMENTO DE INSTITUICOES FEDERAI - NO DF,23106.019227/2022-60,"C. CUSTO: SIS                          SEI:23106.019227/2022-60PAGAMENTO DE PASSAGEM  INTERNACIONAL   PROT:11010117030101(10000,00)MEMO.029/2022/IG/SIS                   2022ND000676 - CONTRATO:125/2018",224,PASSAGENS,Laisson Mvuama Pangoni Deconto,null,UNIVERSIDADE DE BRASÍLIA,null,10000.00,estimativo,605
RECURSOS ORDINÁRIOS,0.00,FISCAL,PR 28/2021 - UNB,2022,21/02/2022,MATRIZ HVET_,null,null,null,20RK - FUNCIONAMENTO DOS HOSPITAL VETERINARIOS,23106.019172/2022-98,"C.CUSTO:HVET -AT- LIRIA QUEIROZ LUZ HIRANO - PROT:1101010501{SM632/2022(6744,00)}MATERIAL DE CONSUMO-PEDIDO:632/2022 -2022ND000626 -PREG:28/2021MATERIAL DE LABORATORIAL - LUVA PROCEDIMENTO - DESCARTÁVEL - TAMANHO GMEMO.S.N/2022-FAV/HVET/HVETINHO - S.E.I 23106.019172/2022-98",216,MAT. CONSUMO,Cleirivania Goodwin Ramos,null,UNIVERSIDADE DE BRASÍLIA,null,6744.00,global,605
RECURSOS ORDINÁRIOS,1172.00,FISCAL,null,2022,21/02/2022,FUNCIONAMENTO GERAL,null,null,null,FUNCIONAMENTO DE INSTITUICOES FEDERAI - NO DF,23106.025219/2022-52,23106.025219/2022-52 prc,213,MAT. CONSUMO,Gilseu Hormung Luriko,null,UNIVERSIDADE DE BRASÍLIA,null,1172.00,global,605
PRÓPRIOS -  PREST.SERVICOS FUB/FUNDO,175.00,FISCAL,PR,2022,21/02/2022,CRÉDITOS DISTRIBUÍDOS PARA AS UNIDADES ADMINISTRATIVAS,null,null,null,FUNCIONAMENTO DE INSTITUICOES FEDERAI - NO DF,23106.135918/2021-29,"C. CUSTO: CEAD.     PROT:110124{SM3937/2021(175,00)}        SEI 23106.135918/2021-29.AQUISIÇÃO DE LIXEIRA.2022ND000657.             DESPACHO CEAD/CPF 7511345.",211,MAT. CONSUMO,Rubismar Duzzi,null,UNIVERSIDADE DE BRASÍLIA,null,175.00,global,605
PRÓPRIOS -  PREST.SERVICOS FUB/FUNDO,46.22,FISCAL,PR,2022,18/02/2022,CRÉDITOS DISTRIBUÍDOS PARA AS UNIDADES ADMINISTRATIVAS,null,null,null,FUNCIONAMENTO DE INSTITUICOES FEDERAI - NO DF,23106.016637/2022-59,"C. CUSTO: DAC                          SEI:23106.016637/2022-59 ATT: JONATAS MAIA DA COSTA             2022ND000647MEMO.025/2022/DAC/DEAC                 PROT:110109{SM395/2021(46,22)}MATERIAL DE CONSUMO - PEDIDO:00395/2022 -   PREG: 011/2021  MATERIAL DE  PROTEÇÃO E SEGURANÇA -  -FITA  ZEBRADA - PEDESTAL  ZEBRADO",210,MAT. CONSUMO,Cleanny Hergesell Fargnolli Evelise Gaviano,null,UNIVERSIDADE DE BRASÍLIA,null,46.22,global,605
PRÓPRIOS -  PREST.SERVICOS FUB/FUNDO,94.80,FISCAL,PR 11/2021 - UNB,2022,18/02/2022,CRÉDITOS DISTRIBUÍDOS PARA AS UNIDADES ADMINISTRATIVAS,null,null,null,FUNCIONAMENTO DE INSTITUICOES FEDERAI - NO DF,23106.016643/2022-14,"C. CUSTO: DAC SEI:23106.016643/2022-14ATT: JONATAS MAIA DA COSTA 2022ND000651MEMO.026/2022/DAC/DEAC PROT:110109(94,80)MATERIAL DE CONSUMO - PEDIDO:0000/2022 - PREG:011/2021MATERIAL DE LIMPEZA E CONSERVAÇÃO - ÁLCOOL EM GEL",208,MAT. CONSUMO,Felts Jadir Foratto,null,UNIVERSIDADE DE BRASÍLIA,null,94.80,global,605
RECURSOS DIRETAM.ARREC FUNDAÇÃO UNIV.BRASÍLIA,864.50,FISCAL,PR 28/2021 - UNB,2022,18/02/2022,CUSTOS INDIRETOS DAS UNIDADES - RECOMPOSICAO,null,null,null,FUNCIONAMENTO DE INSTITUICOES FEDERAI - NO DF,23106.131348/2021-06,"C. CUSTO: FACE. PROT:11010102{SM3790/2021(864,50)} SEI 23106.131348/2021-06.AQUISIÇÃO DE MATERIAIS PARA PROTEÇÃO CONTRA O VÍRUS COVID-19.2022ND000642.",200,MAT. CONSUMO,Zamian Fushimi Lafeta Fuzicava,null,UNIVERSIDADE DE BRASÍLIA,null,864.50,ordinário,605
RECURSOS DIRETAM.ARREC FUNDAÇÃO UNIV.BRASÍLIA,368.64,FISCAL,null,2022,18/02/2022,CUSTOS INDIRETOS DAS UNIDADES - RECOMPOSICAO,null,null,null,FUNCIONAMENTO DE INSTITUICOES FEDERAI - NO DF,23106.027075/2022-79,23106.027075/2022-79,199,MAT. CONSUMO,Shayenne Bonfain,null,UNIVERSIDADE DE BRASÍLIA,null,368.64,ordinário,605
RECURSOS DIRETAM.ARREC FUNDAÇÃO UNIV.BRASÍLIA,3780.00,FISCAL,null,2022,18/02/2022,CUSTOS INDIRETOS DAS UNIDADES - RECOMPOSICAO,null,null,null,FUNCIONAMENTO DE INSTITUICOES FEDERAI - NO DF,23106.131348/2021-06,"C. CUSTO: FACE. PROT:11010102{SM3793/2021(3780,00)} SEI 23106.131348/2021-06.AQUISIÇÃO DE MATERIAIS PARA PROTEÇÃO CONTRA O VÍRUS COVID-19.2022ND000642.",198,MAT. CONSUMO,Nespolo Jayantibhai de Aviz,null,UNIVERSIDADE DE BRASÍLIA,null,3780.00,ordinário,605
RECURSOS DIRETAM.ARREC FUNDAÇÃO UNIV.BRASÍLIA,2570.40,FISCAL,PR 28/2021 - FUB,2022,18/02/2022,CUSTOS INDIRETOS DAS UNIDADES - RECOMPOSICAO,null,null,null,FUNCIONAMENTO DE INSTITUICOES FEDERAI - NO DF,23106.131348/2021-06,"C. CUSTO: FACE. PROT:11010102{SM3784/2021(2570,40)} SEI 23106.131348/2021-06.AQUISIÇÃO DE MATERIAIS PARA PROTEÇÃO CONTRA O VÍRUS COVID-19.2022ND000642.",196,MAT. CONSUMO,Klenni Kosby Carvalhal,null,UNIVERSIDADE DE BRASÍLIA,null,2570.40,ordinário,605
RECURSOS DIRETAM.ARREC FUNDAÇÃO UNIV.BRASÍLIA,3099.40,FISCAL,null,2022,18/02/2022,CUSTOS INDIRETOS DAS UNIDADES - RECOMPOSICAO,null,null,null,FUNCIONAMENTO DE INSTITUICOES FEDERAI - NO DF,23106.036031/2022-30,23106.036031/2022-30,195,MAT. CONSUMO,Alcilei Abbadegouveia Bruniero Cebola,null,UNIVERSIDADE DE BRASÍLIA,null,3099.40,ordinário,605
RECURSOS DIRETAM.ARREC FUNDAÇÃO UNIV.BRASÍLIA,167.60,FISCAL,PR 28/2021 - FUB,2022,18/02/2022,CUSTOS INDIRETOS DAS UNIDADES - RECOMPOSICAO,null,null,null,FUNCIONAMENTO DE INSTITUICOES FEDERAI - NO DF,23106.131348/2021-06,"C. CUSTO: FACE. PROT:11010102{SM3788/2021(167,60)} SEI 23106.131348/2021-06.AQUISIÇÃO DE MATERIAIS DE PROTEÇÃO CONTRA O VÍRUS COVID-19.2022ND000642.",194,MAT. CONSUMO,Klenni Kosby Carvalhal,null,UNIVERSIDADE DE BRASÍLIA,null,167.60,ordinário,605
RECURSOS DIRETAM.ARREC FUNDAÇÃO UNIV.BRASÍLIA,2511.48,FISCAL,PR 28/2021 - FUB,2022,18/02/2022,CUSTOS INDIRETOS DAS UNIDADES - RECOMPOSICAO,null,null,null,FUNCIONAMENTO DE INSTITUICOES FEDERAI - NO DF,23106.131348/2021-06,"C. CUSTO: FACE. PROT:11010102{SM3780/2021(2511,48)} SEI 23106.131348/2021-06.AQUISIÇÃO DE MATERIAIS DE PROTEÇÃO CONTRA O VÍRUS COVID-19.2022ND000642.",193,MAT. CONSUMO,Nicanor Gasiglia Nasiri,null,UNIVERSIDADE DE BRASÍLIA,null,2511.48,ordinário,605
RECURSOS DIRETAM.ARREC FUNDAÇÃO UNIV.BRASÍLIA,729.19,FISCAL,PR,2022,18/02/2022,CUSTOS INDIRETOS DAS UNIDADES - RECOMPOSICAO,null,null,null,FUNCIONAMENTO DE INSTITUICOES FEDERAI - NO DF,23106.131348/2021-06,"C. CUSTO: FACE.    PROT:11010102{SM3789/2021(729,19)}        SEI 23106.131348/2021-06.AQUISIÇÃO DE MATERIAIS DE PROTEÇÃO CONTRA O VÍRUS COVID-19. 2022ND000642.",192,MAT. CONSUMO,Evanylton Shunk Katsuragama,null,UNIVERSIDADE DE BRASÍLIA,null,729.19,ordinário,605
RECURSOS DIRETAM.ARREC FUNDAÇÃO UNIV.BRASÍLIA,199.00,FISCAL,PR,2022,16/02/2022,CUSTOS INDIRETOS DAS UNIDADES - RECOMPOSICAO,null,null,null,FUNCIONAMENTO DE INSTITUICOES FEDERAI - NO DF,23106.016386/2022-11,"C. CUSTO: FEF.       PROT:11010108{SM558/2022(199,00)}       SEI 23106.016386/2022-11.AQUISIÇÃO DE PEDESTAIS.                    MEMO 022/2022/FEF/FINANCEIRO.2022ND000561.",186,MAT. CONSUMO,Cleanny Hergesell Fargnolli Evelise Gaviano,null,UNIVERSIDADE DE BRASÍLIA,null,199.00,ordinário,605
RECURSOS ORDINÁRIOS,141680.00,FISCAL,PR 301/2021 - FUB,2022,16/02/2022,COLETA RESIDUOS SOLIDOS SERVICOS SAUDE,null,null,null,FUNCIONAMENTO DE INSTITUICOES FEDERAI - NO DF,23106.016392/2022-60,"C. CUSTO: PRC SEI:23106.016392/2022-60ATT: CLEITON ALVES TORRES 2022ND000615 - PREG: 301/2021MEMO.002/2021/PRC/DIMAP/CZM PROT:110105(141680,00)SERVIÇOS DE TERCEIROS - PEDIDO:0000/2021 - CONTRATO: 606/2021SERVIÇO DE CONSERVAÇÃO E LIMPEZA - COLETA, TRANSPORTE, TRATAMENTO E DISPOSIÇÃO FINAL",182,SERV. PESSOA JURÍDICA,Sildésia Kito Banderia Salvatore,null,UNIVERSIDADE DE BRASÍLIA,null,141680.00,global,605
PRÓPRIOS -  PREST.SERVICOS FUB/FUNDO,6482.26,FISCAL,PR,2022,15/02/2022,MANUTENCAO DE VEICULOS LEVES E PESADOS DA FUB,null,null,null,FUNCIONAMENTO DE INSTITUICOES FEDERAI - NO DF,23106.110011/2021-57,"C.CUSTO PRC - MANUT.CORRETIVA E PREVENTIVA DE VEICULOS                   SEI:23106.110011/2021-57PAGAMENTO DE MATERIAL  DE VEICULO LEVES - MARCA VW                       PROT:110105(6482,26)MEMO.S.N/2018/PRC/DIMEQ/CMV   2022ND000564  - CONTRATO Nº 1017/2016      PREG:655/2015",180,MAT. CONSUMO,Eiter Ignaczuk Soleiro Havro,null,UNIVERSIDADE DE BRASÍLIA,null,6482.26,estimativo,605
PRÓPRIOS -  PREST.SERVICOS FUB/FUNDO,1771.96,FISCAL,PR,2022,15/02/2022,MANUTENCAO DE VEICULOS LEVES E PESADOS DA FUB,null,null,null,FUNCIONAMENTO DE INSTITUICOES FEDERAI - NO DF,23106.110011/2021-57,"C.CUSTO PRC - MANUT.CORRETIVA E PREVENTIVA DE VEICULOS                   SEI:23106.110011/2021-57PAGAMENTO DE MANUT.CONSERVAÇÃO DE VEICULO LEVES - MARCA VW               PROT:110105(1771,96)MEMO.S.N/2018/PRC/DIMEQ/CMV   2022ND000564  - CONTRATO Nº 1017/2016      PREG:655/2015",179,SERV. PESSOA JURÍDICA,Eiter Ignaczuk Soleiro Havro,null,UNIVERSIDADE DE BRASÍLIA,null,1771.96,estimativo,605
PRÓPRIOS -  PREST.SERVICOS FUB/FUNDO,110.34,FISCAL,PR 11/2021 - FUB,2022,11/02/2022,CRÉDITOS DISTRIBUÍDOS PARA AS UNIDADES ADMINISTRATIVAS,null,null,null,FUNCIONAMENTO DE INSTITUICOES FEDERAI - NO DF,23106.013056/2022-65,"C.CUSTO: DAC -AT- JONATAS MAIA DA COSTA - PROT:110109{SM342/2022(110,34)}MATERIAL DE CONSUMO-PEDIDO:342/2021 -2022ND000544 -PREG:11/2021MATERIAL DE HIGIENE E LIMPEZA - ÁLCOOL - ETÍLICO - GEL HIDRATADOMEMO.020/2022/DAC/DEAC - S.E.I 23106.013056/2022-65",172,MAT. CONSUMO,Nicanor Gasiglia Nasiri,null,UNIVERSIDADE DE BRASÍLIA,null,110.34,global,605
RECURSOS ORDINÁRIOS,5318.85,FISCAL,PR,2022,11/02/2022,SERVICO DE EMISSAO DE PASSAGENS E SEGURO VIAG,null,null,null,FUNCIONAMENTO DE INSTITUICOES FEDERAI - NO DF,23106.001734/2018-61,"C. CUSTO DAF PUBLICAÇÃO DO 5º TERMO ADITIVO AO CONTRATO 125/2018 VOETURPROT:110110(5318,85) UASG 2010572022ND000541  SEI: 23106.001734/2018-61",170,SERV. PESSOA JURÍDICA,Laisson Mvuama Pangoni Deconto,null,UNIVERSIDADE DE BRASÍLIA,null,5318.85,global,605
RECURSOS ORDINÁRIOS,0.00,FISCAL,PR 306/2021 - UNB,2022,11/02/2022,MATRIZ HVET_,null,null,null,20RK - FUNCIONAMENTO DOS HOSPITAL VETERINARIOS,23106.013918/2022-50,"C. CUSTO: HVET. PROT:1101010501{SM487/2022(239,20)} SEI 23106.013918/2022-50.AQUISIÇÃO DE PNEU PARA CARRINHO DE MÃO.2022ND000515.",169,MAT. CONSUMO,Borghetti Oitaven de Ataide,null,UNIVERSIDADE DE BRASÍLIA,null,239.20,ordinário,605
RECURSOS ORDINÁRIOS,727534.00,FISCAL,PR 30/2021 - UNB,2022,11/02/2022,PORTARIA - AGIL,null,null,null,FUNCIONAMENTO DE INSTITUICOES FEDERAI - NO DF,23106.047067/2021-68,"C. CUSTO: SGP.      PROT:11010123(727534,00)     SEI 23106.047067/2021-68.PRESTAÇÃO DE SERVIÇOS DE PORTARIA.      CONTRATO 001/2022.     PREGÃO 30/2021.2020ND000534.",167,LOC. MÃO-DE-OBRA,Torgo Labre Ticianeli,null,UNIVERSIDADE DE BRASÍLIA,null,727534.00,global,605
RECURSOS ORDINÁRIOS,0.00,FISCAL,PR 30/2021 - UNB,2022,11/02/2022,PORTARIA - AGIL,null,727534.00,null,FUNCIONAMENTO DE INSTITUICOES FEDERAI - NO DF,23106.047067/2021-68,"C. CUSTO: SGP.      PROT:11010123(727534,00)     SEI 23106.047067/2021-68.PRESTAÇÃO DE SERVIÇOS DE PORTARIA.      CONTRATO 001/2022.     PREGÃO 30/2021.2020ND000534.",164,LOC. MÃO-DE-OBRA,Torgo Labre Ticianeli,null,UNIVERSIDADE DE BRASÍLIA,null,727534.00,global,605
RECURSOS ORDINÁRIOS,0.00,FISCAL,PR 43/2021 - FUB,2022,10/02/2022,MATRIZ HVET_,null,null,null,20RK - FUNCIONAMENTO DOS HOSPITAL VETERINARIOS,23106.013912/2022-82,"C. CUSTO: HVET. PROT:1101010501{SM484/2022(38650,00)} SEI 23106.013912/2022-82.AQUISIÇÃO DE INSUMOS AGROPECUÁRIOS. DESPACHO FAV/HVET/HVETINHO 7707130.2022ND000495.",163,MAT. CONSUMO,Informação Anonimizada,null,UNIVERSIDADE DE BRASÍLIA,null,38650.00,ordinário,605
RECURSOS ORDINÁRIOS,0.00,FISCAL,PR 43/2021 - FUB,2022,10/02/2022,MATRIZ HVET_,null,null,null,20RK - FUNCIONAMENTO DOS HOSPITAL VETERINARIOS,23106.013912/2022-80,"C. CUSTO: HVET. PROT:1101010501{SM485/2022(16286,75)} SEI 23106.013912/2022-82.AQUISIÇÃO DE INSUMOS AGROPECUÁRIOS. DESPACHO FAV/HVET/HVETINHO 7707130.2022ND000495.",161,MAT. CONSUMO,Elienir Vanina Gandala Cachioni,null,UNIVERSIDADE DE BRASÍLIA,null,16286.75,ordinário,605
RECURSOS ORDINÁRIOS,62819.69,FISCAL,PR,2022,10/02/2022,PORTARIA - AGIL,null,null,null,FUNCIONAMENTO DE INSTITUICOES FEDERAI - NO DF,23106.009234/2016-13,"C. CUSTO SPI PROT:110147(62819,69)CELEBRAÇÃO DO 6 TERMO ADITIVO AO CONTRATO 002/2017 COM A EMPRESAÁGIL SERVIÇOS ESPECIAIS LTDA P/ A PRESTAÇÃO DE SERVIÇOS DE PORTARIA.SEI: 23106.009234/2016-13 2022ND000510",156,LOC. MÃO-DE-OBRA,Jakymiu Vilabuim Grésiano Baja,null,UNIVERSIDADE DE BRASÍLIA,null,62819.69,global,605
RECURSOS ORDINÁRIOS,200000.00,FISCAL,PR,2022,09/02/2022,FUNCIONAMENTO GERAL,null,null,null,FUNCIONAMENTO DE INSTITUICOES FEDERAI - NO DF,23106.010079/2022-18,"PAGAMENTO DE LICENÇA DE SOFTWARE PROT:110114(200000,00)ANTIVIRUS CORPORATIVO MULT. ENDPOINT PREGÃO 208/2021MEMO.S.N/2022/STI/DOS/CSI 2022ND000451",154,SERVIÇOS TIC,Baluz Koide Vilhardo,null,UNIVERSIDADE DE BRASÍLIA,null,200000.00,global,605
RECURSOS DIRETAM.ARREC FUNDAÇÃO UNIV.BRASÍLIA,100536.16,FISCAL,null,2022,08/02/2022,PROCESSOS SELETIVOS DA UNIVERSIDADE DE BRASÍLIA - UNB.,null,null,null,MANUTENCAO DE CONTRATO DE GESTAO COM  - NO DF,23106.098851/2020-53,"C. CUSTO: DEG. PROT:110106(100536,16) SEI 23106.098851/2020-53. SERVIÇOS DE SUBSÍDIOS DE APOIO NAS ÁREAS DE TI, LOGÍSTICA E EDITAIS. 2022ND000488.",139,SERV. PESSOA JURÍDICA,Creone Isikawa Beneli,null,UNIVERSIDADE DE BRASÍLIA,null,100536.16,global,605
PRÓPRIOS -  PREST.SERVICOS FUB/FUNDO,700.00,FISCAL,null,2022,04/04/2022,CRÉDITOS DISTRIBUÍDOS PARA AS UNIDADES ACADÊMICAS,null,null,null,FUNCIONAMENTO DE INSTITUICOES FEDERAI - NO DF,23106.042758/2022-56,23106.042758/2022-56,138,MAT. CONSUMO,Rubismar Duzzi,null,UNIVERSIDADE DE BRASÍLIA,null,700.00,estimativo,605
PRÓPRIOS -  PREST.SERVICOS FUB/FUNDO,1050.00,FISCAL,PR 18/2021 - UNB,2022,04/02/2022,CRÉDITOS DISTRIBUÍDOS PARA AS UNIDADES ACADÊMICAS,null,null,null,FUNCIONAMENTO DE INSTITUICOES FEDERAI - NO DF,23106.093248/2021-66,"C.CUSTO: FMD -AT- GUSTAVO ADOLFO SIERRA ROMERO - PROT:11010109{SM1848/2022(1050,00)}MATERIAL DE CONSUMO-PEDIDO:1848/2022 -2022ND000297 -PREG:018/2021MATERIAL DE LIMPEZA E HIGIENE - LIXEIRA REDONDA - ACIONAMENTO PEDAL - 00LMEMO.142/2021/FMD - S.E.I 23106.093248/2021-66",136,MAT. CONSUMO,Rubismar Duzzi,null,UNIVERSIDADE DE BRASÍLIA,null,1050.00,global,605
PRÓPRIOS -  PREST.SERVICOS FUB/FUNDO,3024.00,FISCAL,PR 28/2021 - UNB,2022,03/02/2022,CRÉDITOS DISTRIBUÍDOS PARA AS UNIDADES ACADÊMICAS,null,null,null,FUNCIONAMENTO DE INSTITUICOES FEDERAI - NO DF,23106.009684/2022-46,"C. CUSTO: FTD. PROT:11010111{SM307/2022(3024,00)} SEI 23106.009684/2022-46.AQUISIÇÃO DE TOTEM, IDENTIFICAÇÃO, ÁLCOOL.20222ND000433. DESPACHO FT/DIREÇÃO/SECRETARIA 7665112.",131,MAT. CONSUMO,Nespolo Jayantibhai de Aviz,null,UNIVERSIDADE DE BRASÍLIA,null,3024.00,global,605
PRÓPRIOS -  PREST.SERVICOS FUB/FUNDO,158.40,FISCAL,null,2022,03/02/2022,CRÉDITOS DISTRIBUÍDOS PARA AS UNIDADES ACADÊMICAS,null,null,null,FUNCIONAMENTO DE INSTITUICOES FEDERAI - NO DF,23106.027080/2022-81,23106.027080/2022-81,130,MAT. CONSUMO,Shayenne Bonfain,null,UNIVERSIDADE DE BRASÍLIA,null,158.40,ordinário,605
PRÓPRIOS -  PREST.SERVICOS FUB/FUNDO,836.00,FISCAL,DL 1297/2022 - FUB,2022,01/02/2022,CRÉDITOS DISTRIBUÍDOS PARA AS UNIDADES ADMINISTRATIVAS,null,null,null,FUNCIONAMENTO DE INSTITUICOES FEDERAI - NO DF,23106.129777/2021-13,"C.CUSTO: DAF -AT- ROZANA REIGOTA NAVES - PROT:110110(836,00)MATERIAL DE CONSUMO-PEDIDO:3638/2021 -2022ND000362 MATERIAL DE PROTEÇÃO E SEGURANÇA - ROLOS DE CORRENTE PLÁSTICAS.E.I 23106.129777/2021-13 DISP: 01297/2022.",122,MAT. CONSUMO,Ceregatti Perobell Toseano,null,UNIVERSIDADE DE BRASÍLIA,null,836.00,global,605
PRÓPRIOS -  PREST.SERVICOS FUB/FUNDO,288.00,FISCAL,null,2022,01/02/2022,CRÉDITOS DISTRIBUÍDOS PARA AS UNIDADES ACADÊMICAS,null,null,null,FUNCIONAMENTO DE INSTITUICOES FEDERAI - NO DF,23106.027077/2022-68,23106.027077/2022-68,121,MAT. CONSUMO,Shayenne Bonfain,null,UNIVERSIDADE DE BRASÍLIA,null,288.00,ordinário,605
RECURSOS ORDINÁRIOS,126223.96,FISCAL,PR,2022,31/01/2022,OPERADOR DE TRATOR,null,null,null,FUNCIONAMENTO DE INSTITUICOES FEDERAI - NO DF,23106.082126/2020-63,"C. CUSTO DTER PROT:11011007(126223,96)CONTRATAÇÃO DA EMPRESA RDJ ASSESSORIA E GESTÃO EMPRESARIAL.CONTRATO 1201/2022. (1/12). SERVIÇOS DE MÃO DE OBRA P/CONDUÇÃO DEVEÍCULOS DE REPRESENTAÇÃO SEI: 23106.082126/2020-63 2022ND000004",116,LOC. MÃO-DE-OBRA,Laidylaura Saade Dziedzic,null,UNIVERSIDADE DE BRASÍLIA,null,126223.96,global,605
RECURSOS ORDINÁRIOS,48000.00,FISCAL,PR 41/2019 - UNB,2022,28/01/2022,SEGURO PARA ALUNOS E ESTAGIARIOS EM GERAL,null,null,null,FUNCIONAMENTO DE INSTITUICOES FEDERAI - NO DF,23106.085902/2019-43,"C. CUSTO DTER. PROT:11011007(48000,00) 2 TERMO DE ADITAMENTO AO CONTRATO 24/2020DESPACHO DAF/DCO/CCO (5096678) FORNECIMENTO DE SERGURO OBRIGATÓRIO2022ND000005 SEI: 23106.085902/2019-43 PROC ORIGEM: 2019PR00041",112,SERV. PESSOA JURÍDICA,Minetti Fucasse Cavalet,null,UNIVERSIDADE DE BRASÍLIA,null,48000.00,global,605
PRÓPRIOS -  PREST.SERVICOS FUB/FUNDO,405.00,FISCAL,null,2022,27/01/2022,CRÉDITOS DISTRIBUÍDOS PARA AS UNIDADES ACADÊMICAS,null,null,null,FUNCIONAMENTO DE INSTITUICOES FEDERAI - NO DF,23106.093248/2021-66,"C. CUSTO FMD PROT:11010109(405,00)AQUISIÇÃO DE LIXEIRAS : PR 11/2021 - FUBSEI: 23106.093248/2021-66 2022ND000297",55,MAT. CONSUMO,Ronchi Kollross Cassanelli Ermelina,null,UNIVERSIDADE DE BRASÍLIA,null,405.00,ordinário,605
PRÓPRIOS -  PREST.SERVICOS FUB/FUNDO,8000.00,FISCAL,PR,2022,24/01/2022,CRÉDITOS DISTRIBUÍDOS PARA AS UNIDADES ACADÊMICAS,null,null,null,FUNCIONAMENTO DE INSTITUICOES FEDERAI - NO DF,23106.005475/2022-23,"C. CUSTO: ILD SEI: 23106.005475/2022-23PAGAMENTO DE PASSAGEM SERVIDOR NACIONAL PROT:11010119(8000,00)MEMORANDO 02 (7625347) 2022ND000186 - CONTRATO: 125/2018",47,PASSAGENS,Laisson Mvuama Pangoni Deconto,null,UNIVERSIDADE DE BRASÍLIA,null,8000.00,estimativo,605
UNB/ARRECADAÇÃO CESPE,30000.00,FISCAL,PR,2022,24/01/2022,DESPESAS ADMINISTRATIVAS DO CESPE,null,null,null,FUNCIONAMENTO DE INSTITUICOES FEDERAI - NO DF,23106.005612/2022-20,"C. CUSTO CESPE PROT:110122(30000,00)AQUISIÇÃO DE PASSAGENS AÉREAS NACIONAIS PARAREALIZAÇÃO DE EVENTOS DE RESPONSABILIDADE DO CESPEEM CUMPRIMENTO A DECISÕES JUDICIAIS. SEI 23106.005612/2022-20SEI: 23106.005612/2022-20 2022NC000001 CONT: 125/2018 UASG 201059 ITEM 10",46,PASSAGENS,Laisson Mvuama Pangoni Deconto,null,UNIVERSIDADE DE BRASÍLIA,null,30000.00,estimativo,605
RECURSOS ORDINÁRIOS,9290.00,FISCAL,null,2022,10/03/2022,RODOVIÁRIO EXECUTIVO,null,null,null,FUNCIONAMENTO DE INSTITUICOES FEDERAI - NO DF,23106.000890/2021-18,"C. CUSTO: PRC SEI:23106.000890/2021-18PAGAMENTO DE LOCACAO DE MEIOS DE TRANSPORTEÔNIBUS RODOVIÁRIO EXECUTIVO PROT:110105(9290,00)MEMO.S.N/2022/PRC/DIRAD/CTR 2022ND000180 - PREGÃO: 304/2021",44,PASSAGENS,Elaboré Sztajnbok Sebrenski E Campos,null,UNIVERSIDADE DE BRASÍLIA,null,9290.00,estimativo,605
RECURSOS ORDINÁRIOS,67953.60,FISCAL,PR 27/2021 - FUB,2022,07/02/2022,REPOSIÇÃO DE MATERIAL DO ALMOXARIFADO,null,null,null,FUNCIONAMENTO DE INSTITUICOES FEDERAI - NO DF,23106.071251/2021-29,23106.071251/2021-29,42,MAT. CONSUMO,Ortenicia Aspasio Sarres,null,UNIVERSIDADE DE BRASÍLIA,null,67953.60,ordinário,605
PRÓPRIOS -  PREST.SERVICOS FUB/FUNDO,13.50,FISCAL,PR 17/2020 - UNB,2022,20/01/2022,CRÉDITOS DISTRIBUÍDOS PARA AS UNIDADES ACADÊMICAS,null,null,null,FUNCIONAMENTO DE INSTITUICOES FEDERAI - NO DF,23106.139486/2021-25,AQUISIÇÃO DE ESCOVA LABORATÓRIO. PREGÃO 17/2020.,41,MAT. CONSUMO,Fanton Galm Fujiwara,null,UNIVERSIDADE DE BRASÍLIA,null,13.50,global,605
PRÓPRIOS -  PREST.SERVICOS FUB/FUNDO,52.50,FISCAL,null,2022,20/01/2022,CRÉDITOS DISTRIBUÍDOS PARA AS UNIDADES ACADÊMICAS,null,null,null,FUNCIONAMENTO DE INSTITUICOES FEDERAI - NO DF,23106.044537/2021-31,"C. CUSTO: FSD SEI: 23106.139486/2021-25 - PROT:1101011005(52,50)PAGAMENTO DE MATERIAL DE CONSUMO - ATT - ANGÉLICA AMORIM AMATOMATERIAL LABORATORIAL - ESCOVA LABORATÓRIO - FORMATO CILÍNDRICAMEMO.S.N/2022/FS/FAR PREGÃO: 17/2020 - PEDIDO:000/2022 - 2022ND000155",40,MAT. CONSUMO,Erdson Dominience Zander Gaeschlin,null,UNIVERSIDADE DE BRASÍLIA,null,52.50,global,605
PRÓPRIOS -  PREST.SERVICOS FUB/FUNDO,99.72,FISCAL,null,2022,12/01/2022,CRÉDITOS DISTRIBUÍDOS PARA AS UNIDADES ACADÊMICAS,null,null,null,FUNCIONAMENTO DE INSTITUICOES FEDERAI - NO DF,23106.139486/2021-25,"C. CUSTO: FSD SEI: 23106.139486/2021-25 - PROT:1101011005(99,72)PAGAMENTO DE MATERIAL DE CONSUMO - ATT - ANGÉLICA AMORIM AMATOMATERIAL QUÍMICO - ACETATO DE BÁRIOMEMO.S.N/2022/FS/FAR PREGÃO: 17/2020 - PEDIDO:000/2022 - 2022ND000155",38,MAT. CONSUMO,Martegani Mandes Aprígio Akimi Carollyne,null,UNIVERSIDADE DE BRASÍLIA,null,99.72,global,605
PRÓPRIOS -  PREST.SERVICOS FUB/FUNDO,19.80,FISCAL,PR 17/2020 - FUB,2022,20/01/2022,CRÉDITOS DISTRIBUÍDOS PARA AS UNIDADES ACADÊMICAS,null,null,null,FUNCIONAMENTO DE INSTITUICOES FEDERAI - NO DF,23106.139486/2021-25,"C.CUSTO: FSD -AT- ANGÉLICA AMORIM AMATO - PROT:1101011005{SM137/2022(19,80)}MATERIAL DE CONSUMO-PEDIDO:137/2022 -2022ND000155 -PREG:17/2020MATERIAL LABORATORIAL - LONGA - BORRACHA - 20 X40 MMMEMO.S.N/2022/FS/FAR - S.E.I 23106.139486/2021-25",35,MAT. CONSUMO,Erdson Dominience Zander Gaeschlin,null,UNIVERSIDADE DE BRASÍLIA,null,19.80,global,605
RECURSOS ORDINÁRIOS,100.00,FISCAL,null,2022,18/01/2022,PROCESSOS SELETIVOS DA UNIVERSIDADE DE BRASÍLIA - UNB.,null,null,null,FUNCIONAMENTO DE INSTITUICOES FEDERAI - NO DF,23106.106941/2021-14,"C.CUSTO : DEG S.E.I Nº : 23106.106941/2021-14DESPACHO Nº 7350962/2021/DEG/DIEG 2022ND000129 - DISP: 10694/2022ATT - DIEGO MADUREIRA DE OLIVEIRA - PROT:110106(100,00) - PUBLICAÇÃO DE CONTRATOSERV.DE TERCEIROS - SERV.DE SELEÇÃO E TREINAMENTO - PREST. DE SERV.TÉC. ESPECIALIZADOSPUBLIC. NO D.O.U DO CONT.A SER CELEBRADO ENTRE A UNB E O CEBRASPEORGANIZAÇÃO E REALIZAÇÃO DE PROCESSO SELET. DO VEST.DE LETRAS-LIBRAS 2022",28,SERV. PESSOA JURÍDICA,Creone Isikawa Beneli,null,UNIVERSIDADE DE BRASÍLIA,null,100.00,global,605
RECURSOS DIRETAM.ARREC FUNDAÇÃO UNIV.BRASÍLIA,100.00,FISCAL,null,2022,18/01/2022,PROCESSOS SELETIVOS DA UNIVERSIDADE DE BRASÍLIA - UNB.,null,null,null,FUNCIONAMENTO DE INSTITUICOES FEDERAI - NO DF,23106.126304/2021-56,"C.CUSTO : DEG S.E.I Nº : 23106.126304/2021-56 OFÍCIO.1252/2021/DGP/UNB 2022ND000128 - DISP: 12630/2022 ATT - MARIA DO SOCORRO MENDES - PROT:110106(100,00) - PUBLICAÇÃO DE CONTRATO SERV.DE TERCEIROS - SERV.DE SELEÇÃO E TREINAMENTO - PREST. DE SERV.TÉC. ESPECIALIZADOS PUBLIC. NO D.O.U DO CONTRATO A SER CELEBRADO ENTRE A UNB E O CEBRASPE PROC. SELETIVO P/ PROVIMENTO DE CONCURSO DA CARREIRA DE TÉC. ADM. EM EDUCAÇÃO",27,SERV. PESSOA JURÍDICA,Creone Isikawa Beneli,null,UNIVERSIDADE DE BRASÍLIA,null,100.00,global,605
RECEITA DA INDUSTRIA EDITORIA E GRAFICA/FUB -,5000.00,FISCAL,null,2022,20/04/2022,ARRECADACOES DA EDITORA UNB,null,null,null,FUNCIONAMENTO DE INSTITUICOES FEDERAI - NO DF,23106.043119/2022-16,"Diárias (pelo país) para funcionários da editora/unb, neste exercício.",10,DIÁRIAS,Informação Anonimizada,null,EDITORA UNIVERSIDADE DE BRASÍLIA,null,5000.00,estimativo,276
RECEITA DA INDUSTRIA EDITORIA E GRAFICA/FUB -,600.00,FISCAL,null,2022,11/04/2022,ARRECADACOES DA EDITORA UNB,null,null,null,FUNCIONAMENTO DE INSTITUICOES FEDERAI - NO DF,23106.021996/2022-28,"Anuidade para o Projeto Brazilian Publishers, relativo ao período de 2022.",8,SERV. PESSOA JURÍDICA,Informação Anonimizada,null,EDITORA UNIVERSIDADE DE BRASÍLIA,null,600.00,estimativo,276
RECEITA DA INDUSTRIA EDITORIA E GRAFICA/FUB -,12162.75,FISCAL,null,2022,08/03/2022,ARRECADACOES DA EDITORA UNB,null,null,null,FUNCIONAMENTO DE INSTITUICOES FEDERAI - NO DF,23106.021992/2022-40,"PRESTAÇÃO DE SERVIÇOS DE SUPORTE E MANUTENÇÃO DE 18 LICENÇAS DO DIREITO DE USO DO SISTEMA VERSA EDITORA E DO SOFTWARE VERSA SHOP - FERRAMENTA DE E-COMMERCE, JÁ ADQUIRIDOS PELA EDITORA UNB, POR MEIO DO INSTRUMENTO PARTICULAR POR PRAZO INDETERMINADO DE LICENCIAMENTO DE PROGRAMA DE COMPUTADOR.",7,SERVIÇOS TIC,Zarvos Lavelli Feital,null,EDITORA UNIVERSIDADE DE BRASÍLIA,10662.75,1500.00,estimativo,276
RECEITA DA INDUSTRIA EDITORIA E GRAFICA/FUB -,5592.00,FISCAL,null,2022,07/03/2022,ARRECADACOES DA EDITORA UNB,null,null,null,FUNCIONAMENTO DE INSTITUICOES FEDERAI - NO DF,23106.022104/2022-14,SERVIÇOS GRÁFICOS VISANDO REIMPRESSÃO DA OBRA: EMILY DICKINSON - POESIA COMPLETA - VOLUMA I.,6,SERV. PESSOA JURÍDICA,Informação Anonimizada,null,EDITORA UNIVERSIDADE DE BRASÍLIA,null,5592.00,ordinário,276
RECEITA DA INDUSTRIA EDITORIA E GRAFICA/FUB -,350.00,FISCAL,null,2022,04/03/2022,ARRECADACOES DA EDITORA UNB,null,null,null,FUNCIONAMENTO DE INSTITUICOES FEDERAI - NO DF,23106.021996/2022-28,"MENSALIDADE PARA O PROJETO BRAZILIAN PUBLISHERS, RELATIVO AO PERÍODO DE 2022.",5,SERV. PESSOA JURÍDICA,Informação Anonimizada,null,EDITORA UNIVERSIDADE DE BRASÍLIA,null,350.00,estimativo,276
RECEITA DA INDUSTRIA EDITORIA E GRAFICA/FUB -,2450.00,FISCAL,null,2022,23/02/2022,ARRECADACOES DA EDITORA UNB,null,null,null,FUNCIONAMENTO DE INSTITUICOES FEDERAI - NO DF,23106.132439/2021-51,FONTE DELL POWEREDG 750W D750E-S6 R530 R630 R730 R930 05RHVV,4,MAT. CONSUMO,Informação Anonimizada,null,EDITORA UNIVERSIDADE DE BRASÍLIA,null,2450.00,ordinário,276
RECEITA DA INDUSTRIA EDITORIA E GRAFICA/FUB -,20.00,FISCAL,null,2022,08/02/2022,ARRECADACOES DA EDITORA UNB,null,null,null,FUNCIONAMENTO DE INSTITUICOES FEDERAI - NO DF,23106.008375/2022-59,"DESPESAS COM TELEFONIA NA EDITORA/UNB - SETOR COMERCIAL SUL, NESTE EXERCÍCIO.",3,SERV. PESSOA JURÍDICA,Benan Eletherio Jandre,null,EDITORA UNIVERSIDADE DE BRASÍLIA,null,20.00,estimativo,276
RECEITA DA INDUSTRIA EDITORIA E GRAFICA/FUB -,2167.75,FISCAL,null,2022,07/02/2022,ARRECADACOES DA EDITORA UNB,null,null,null,FUNCIONAMENTO DE INSTITUICOES FEDERAI - NO DF,23106.008371/2022-71,"PRESTAÇÃO DE SERVIÇOS DE SUPORTE E MANUTENÇÃO DE 18 LICENÇAS DO DIREITO DE USO DO SISTEMA VERSA EDITORA E DO SOFTWARE VERSA SHOP - FERRAMENTA DE E-COMMERC E (LOJA NA INTERNET), JÁ ADQUIRIDOS PELA EDITORA UNB, POR MEIO DO INSTRUMENT O PARTICULAR POR PRAZO INDETERMINADO DE LICENCIAMENTO DE PROGRAMA DE COMPUTA DOR.",2,SERVIÇOS TIC,Zarvos Lavelli Feital,null,EDITORA UNIVERSIDADE DE BRASÍLIA,null,2167.75,estimativo,276
RECEITA DA INDUSTRIA EDITORIA E GRAFICA/FUB -,3672.00,FISCAL,null,2022,18/01/2022,ARRECADACOES DA EDITORA UNB,null,null,null,FUNCIONAMENTO DE INSTITUICOES FEDERAI - NO DF,23106.002378/2022-89,"Valor destinado cobrir despesas referente anuidade de 2022 da Editora UnB, junto à ABEU.",1,SERV. PESSOA JURÍDICA,Marat Luz Borda Valpassos,null,EDITORA UNIVERSIDADE DE BRASÍLIA,null,3672.00,ordinário,276
RECURSOS ORDINARIOS,34180.00,FISCAL,null,2021,07/06/2021,UG DAL ME,null,null,null,UG DAL/ME,23106.120829/2020-05,"SERVIDOR DELL R740 01X PROC XEON 4214 2X16GB 2X1.2TB 2X750W, INCLUI: PRO SUPORTE 3YR24X7, 4 HDS 2TB SATA, TRILHOS COM ORGANIZADOS DE CABOS está relacionada a necessidade de interface entre estes e os equipamentos que já compõem a infraestrutura computacional no Laboratório Latitude. GEPRO_TED_MP_DIPLA_GESTAO DE RISCO_2016",2020800034,EQUIP. MATERIAL PERMANENTE,Gersiane Castelão,null,CENTRO DE APOIO AO DESENV TECNOLOGICO,null,34180.00,ordinário,643
TÍTULOS DE RESPONSABILIDADE DO TESOURO OUTRAS A -,293.79,FISCAL,PR 57/2020 - PROAD/UFF,2021,11/01/2021,CRÉDITOS DISTRIBUÍDOS PARA AS UNIDADES ADMINISTRATIVAS,null,null,null,CORONAVIRUS (COVID-19) - REGRA DE OURO,23106.101742/2020-21,AQUSIÇÃO DE MATERIAIS PARA ENFRENTAMENTO DA COVID-19.,802558,MAT. CONSUMO,Adonias Milman Fauth Seye,null,UNIVERSIDADE DE BRASÍLIA,null,293.79,global,605
RECURSOS DIRETAM.ARREC FUNDAÇÃO UNIV.BRASÍLIA,14222.00,FISCAL,null,2021,03/12/2021,TAXA ADMINISTRATIVA DO CDT,null,null,null,FUNCIONAMENTO DE INSTITUICOES FEDERAI - NO DF,23106.123366/2021-14,AQUISIÇÃO DE MATERIAL PERMANENTE EM ATENDIMENTO AO PROJETO: PLANO DE DESENVOLVIMENTO INSTITUCIONAL DO CDT 2021,400016,EQUIP. MATERIAL PERMANENTE,Sfalcin Escalate Carvlho Wa Sueti,null,CENTRO DE APOIO AO DESENV TECNOLOGICO,null,14222.00,ordinário,643
RECURSOS DIRETAM.ARREC FUNDAÇÃO UNIV.BRASÍLIA,1455.98,FISCAL,null,2021,19/10/2021,TAXA ADMINISTRATIVA DO CDT,null,null,null,FUNCIONAMENTO DE INSTITUICOES FEDERAI - NO DF,23106.101351/2021-97,CONTRATAÇÃO DE LICENÇA DE ADOBE CORELDRAW GRAPHICS SUITE ESSENCIAL PARA O DESENVOLVIMENTO DAS AÇÕES DE MARKETING E DESIGNER DA NITCDT/CEDES. SEI: 23106.101351/2021-97,400012,SERVIÇOS TIC,Informação Anonimizada,null,CENTRO DE APOIO AO DESENV TECNOLOGICO,null,1455.98,ordinário,643
RECURSOS DIRETAM.ARREC FUNDAÇÃO UNIV.BRASÍLIA,1979.55,FISCAL,null,2021,19/10/2021,TAXA ADMINISTRATIVA DO CDT,null,null,null,FUNCIONAMENTO DE INSTITUICOES FEDERAI - NO DF,23106.101351/2021-97,CONTRATAÇÃO DE SOFTWARE ADOBE CREATIVE CLOUD ESSENCIAL PARA O DESENVOLVIMENTO DAS AÇÕES DEMARKETING E DESIGN DA NITCDT/CEDES. SEI: 23106.101351/2021-97,400011,SERVIÇOS TIC,Glauciania Leontina Vianini Cairis Tameln,null,CENTRO DE APOIO AO DESENV TECNOLOGICO,null,1979.55,ordinário,643
RECURSOS DIRETAM.ARREC FUNDAÇÃO UNIV.BRASÍLIA,7594.18,FISCAL,null,2021,13/10/2021,TAXA ADMINISTRATIVA DO CDT,null,null,null,FUNCIONAMENTO DE INSTITUICOES FEDERAI - NO DF,23106.107176/2021-41,AQUISIÇÃO DE MATERIAL PERMANENTE PARA ATENDER À DEMANDA DA COORDENAÇÃO DE EMPREENDEDORISMO E DESENVOLVIMENTO EMPRESARIAL E SOCIAL DA NITCDT. SEI: 23106.107176/2021-41,400010,EQUIP. MATERIAL PERMANENTE,Valênia Spino Ormelezi,null,CENTRO DE APOIO AO DESENV TECNOLOGICO,null,7594.18,ordinário,643
RECURSOS ORDINARIOS,21000.00,FISCAL,null,2021,21/06/2021,SEM PLANO INTERNO,null,null,null,GEPRO_TED_CEPESC_2017,23106.067171/2021-79,"AQUISIÇÃO DE MATERIAL DE INFORMATICA. 06 UNIDADES DE HD 3 TB, 08 UNIDADES DE HD DE 2 TB E 06 UNIDADES DE MEMORIA 16GB",400004,MAT. CONSUMO,Strauch Girondi Bou Duplat Ducilene,null,CENTRO DE APOIO AO DESENV TECNOLOGICO,null,21000.00,ordinário,643
ARRECADACAO CDT,28428.00,FISCAL,null,2021,22/04/2021,PROJETO TOLEDO BIGDATA,null,null,null,FUNCIONAMENTO DE INSTITUICOES FEDERAI - NO DF,23106.004642/2021-38,AQUISIÇÃO DE 3 NOTEBOOKS PROJETO GEPRO_LINFO_TOLEDO_BIGDATA_2019. 23106.004642/2021-38,400002,EQUIP. MATERIAL PERMANENTE,Gersiane Castelão,null,CENTRO DE APOIO AO DESENV TECNOLOGICO,null,28428.00,ordinário,643
RECURSOS ORDINÁRIOS,10580.00,FISCAL,null,2021,03/12/2021,FUNCIONAMENTO GERAL,null,null,null,FUNCIONAMENTO DE INSTITUICOES FEDERAI - NO DF,23106.115668/2021-19,"C. CUSTO DGP PROT:110134(10580,00)MEMORANDO 623 (7316841) QUISIÇÃO EVENTUAL DE PLACAS DE HOMENAGEM.SEI: 23106.115668/2021-19 2021ND004656",25341,MAT. CONSUMO,Informação Anonimizada,null,UNIVERSIDADE DE BRASÍLIA,null,10580.00,global,605
PRÓPRIOS -  PREST.SERVICOS FUB/FUNDO,3880.00,FISCAL,null,2021,13/10/2021,CRÉDITOS DISTRIBUÍDOS PARA AS UNIDADES ACADÊMICAS,null,null,null,FUNCIONAMENTO DE INSTITUICOES FEDERAI - NO DF,23106.109766/2021-17,"C.CUSTO:IDA//  HD EXTERNO 4TB//  REQ. 2712/2021MEMO Nº 100/2020/IDA// PROT:11010114(3880,00)",17541,EQUIP. MATERIAL PERMANENTE,Lohaynne Mészola Mirgalouy Andonios,null,UNIVERSIDADE DE BRASÍLIA,null,3880.00,global,605
PRÓPRIOS -  PREST.SERVICOS FUB/FUNDO,776.00,FISCAL,null,2021,20/09/2021,CRÉDITOS DISTRIBUÍDOS PARA AS UNIDADES ADMINISTRATIVAS,null,null,null,FUNCIONAMENTO DE INSTITUICOES FEDERAI - NO DF,23106.100829/2021-61,"C. CUSTO: CEAD                                  SEI:23106.100829/2021-61 ATT: FABRICIO JONATHAN PEREIRA             2021ND000000MEMO.S.N/2021/CEAD/CPF            PROT:110133{SM1894/2021(776,00)}MATERIAL DE PERMANENTE - PEDIDO:1894/2021 -   PREG:204/2021  EQUIPAMENTOS TIC - HD EXTERNO 4TB",15291,EQUIP. MATERIAL PERMANENTE,Lohaynne Mészola Mirgalouy Andonios,null,UNIVERSIDADE DE BRASÍLIA,null,776.00,global,605
TAXA DE ALUNO ESPECIAL -FUB,2464.00,FISCAL,PR 204/2021 - FUB,2021,16/09/2021,PROGRAMA DE POS-GRADUACAO EM DIREITO - FD,null,null,null,FUNCIONAMENTO DE INSTITUICOES FEDERAI - NO DF,23106.106750/2021-44,fdd,14021,EQUIP. MATERIAL PERMANENTE,Lohaynne Mészola Mirgalouy Andonios,null,UNIVERSIDADE DE BRASÍLIA,null,2464.00,global,605
PRÓPRIOS -  PREST.SERVICOS FUB/FUNDO,3104.00,FISCAL,null,2021,31/08/2021,CRÉDITOS DISTRIBUÍDOS PARA AS UNIDADES ACADÊMICAS,null,null,null,FUNCIONAMENTO DE INSTITUICOES FEDERAI - NO DF,23106.094507/2021-76,"C.CUSTO:FCI//AQUISIÇÃO DE HD EXTERNO//REQ.2160/2021SEI N.23106.094507/2021-76//PROT:110133(3104,00)",12561,EQUIP. MATERIAL PERMANENTE,Lohaynne Mészola Mirgalouy Andonios,null,UNIVERSIDADE DE BRASÍLIA,null,3104.00,estimativo,605
PRÓPRIOS -  PREST.SERVICOS FUB/FUNDO,1552.00,FISCAL,null,2021,23/08/2021,CRÉDITOS DISTRIBUÍDOS PARA AS UNIDADES ACADÊMICAS,null,null,null,FUNCIONAMENTO DE INSTITUICOES FEDERAI - NO DF,23106.092996/2021-21,"C.CUSTO:ICS AT- DANIEL SCHROETER - PROT:11010113{SM1832/2020(1552,00)}MATERIAL PERMANENTE - MATERIAL TIC - PEDIDO:1832/2021 - 2021ND000000HD EXTERNO - MEMO.163/2020-ICS/DAN/SEI:23106.092996/2021-21-PREG:204/2021",11841,EQUIP. MATERIAL PERMANENTE,Lohaynne Mészola Mirgalouy Andonios,null,UNIVERSIDADE DE BRASÍLIA,null,1552.00,global,605
RECURSOS DIRETAM.ARREC FUNDAÇÃO UNIV.BRASÍLIA,5000000.00,FISCAL,null,2021,04/05/2021,OBRA CONSTRUCAO EDIFICO FAV,null,null,null,FUNCIONAMENTO DE INSTITUICOES FEDERAI - NO DF,23106.019310/2017-71,"C. CUSTO: INFRA SEI:23106.019310/2017-71ATT: AUGUSTO CÉSAR OLIVEIRA DIAS 2021ND005582 - ID-CIPI - 5246.53-03MEMO.S.N/2021/INFRA PROT:110137(5000000,00) - 1º TERMO ADITIVOOBRAS EM ANDAMENTO - EDIFÍCIO DA FACULDADE - RDC Nº 05/2021EDIFÍCIO DA FACULDADE DE AGRONOMIA E MEDICINA VETERINÁRIA - FAV",3006,OBRAS E INSTALAÇÕES,Ping Maksemiv Pompermayer,null,UNIVERSIDADE DE BRASÍLIA,null,5000000.00,global,605
RECURSOS DIRETAM.ARREC FUNDAÇÃO UNIV.BRASÍLIA,29152.53,FISCAL,null,2021,07/04/2021,FUNCIONAMENTO GERAL,null,null,null,FUNCIONAMENTO DE INSTITUICOES FEDERAI - NO DF,23106.101055/2021-96,"C. CUSTO SIS PROT:11010117030101(29152,53)CELEBRAÇÃO DO CONTRATO DE PRESTAÇÃO DE SERVIÇOS N 520/2021COM A EMPRESA OPENCADD ADVANCED TECHNOLOGY COMÉRCIO ESERVIÇOS LTDA P/FORNECIMENTO DE LICENÇAS DO SOFTWARE MATLABE SUAS TOOLBOXES. SEI: 23106.101055/2021-96 2021ND005569",3005,SERVIÇOS TIC,Ednon Q Santana,null,UNIVERSIDADE DE BRASÍLIA,null,29152.53,ordinário,605
PRÓPRIOS -  PREST.SERVICOS FUB/FUNDO,474.57,FISCAL,null,2021,07/12/2021,CRÉDITOS DISTRIBUÍDOS PARA AS UNIDADES ADMINISTRATIVAS,null,null,null,FUNCIONAMENTO DE INSTITUICOES FEDERAI - NO DF,23106.137523/2021-61,"C. CUSTO: DPO SEI:23106.137523/2021-61ATT: DENISE IMBROISI 2021ND005564MEMO.074/2021/DPO/SEC PROT:110135(474,57)MATERIAL DE CONSUMO - PEDIDO:0000/2021 - REGÃO ELETRÔNICO SRP N. 305/2021SEMENTES - MUDAS DE PLANTAS - INSUMOS - VASO ORNAMENTAL, BOCA QUADRADA, EM MATERIAL",2999,MAT. CONSUMO,Informação Anonimizada,null,UNIVERSIDADE DE BRASÍLIA,null,474.57,global,605
PRÓPRIOS -  PREST.SERVICOS FUB/FUNDO,227.43,FISCAL,PR 305/2021 - FUB,2021,30/12/2021,CRÉDITOS DISTRIBUÍDOS PARA AS UNIDADES ADMINISTRATIVAS,null,null,null,FUNCIONAMENTO DE INSTITUICOES FEDERAI - NO DF,23106.137523/2021-61,"C. CUSTO: DPO SEI:23106.137523/2021-61ATT: DENISE IMBROISI 2021ND005564MEMO.074/2021/DPO/SEC PROT:110135(227,43)MATERIAL DE CONSUMO - PEDIDO:0000/2021 - REGÃO ELETRÔNICO SRP N. 305/2021SEMENTES - MUDAS DE PLANTAS - INSUMOS - SUPORTE EM MADEIRA COM RODÍZIOS PARA VASO ORNAMENTO",2998,MAT. CONSUMO,Rolembergue Nasserala dos Sacorro Calabretti,null,UNIVERSIDADE DE BRASÍLIA,null,227.43,global,605
RECURSOS DIRETAM.ARREC FUNDAÇÃO UNIV.BRASÍLIA,77213.55,FISCAL,PR 39/2021 - FUB,2021,29/12/2021,FUNCIONAMENTO GERAL,null,null,null,FUNCIONAMENTO DE INSTITUICOES FEDERAI - NO DF,23106.095902/2021-76,"C. CUSTO HVET PROT:1101010501(77213,55)MATERIAL DE CONSUMO. GÊNEROS ALIMENTÍCIOS PARAATENDIMENTO DA DIETA DOS ANIMAIS MANTIDOS PELOCENTRO DE PRIMATOLOGIA DO IB E PELO HOSPITAL VETERINÁRIO DA FAV.SEI: 23106.095902/2021-76 2021ND005502 PREGÃO: 39/2021",2991,MAT. CONSUMO,Dammiles Vaniede Serchiari S Lau,null,UNIVERSIDADE DE BRASÍLIA,null,77213.55,global,605
RECURSOS DIRETAM.ARREC FUNDAÇÃO UNIV.BRASÍLIA,960000.00,FISCAL,PR 206/2021 - FUB,2021,29/12/2021,SUPORTE DE TI,null,null,null,FUNCIONAMENTO DE INSTITUICOES FEDERAI - NO DF,23106.005383/2021-62,"C. CUSTO CPD PROT:110114(960000,00)AQUISIÇÃO DE NOVA SOLUÇÃO DE PROCESSAMENTO E SUPORTE.RENOVAÇÃO DE GARANTIA DE STORAGE NETAPP FAS 8200.SEI: 23106.005383/2021-62 2021ND005412",2989,SERVIÇOS TIC,Informação Anonimizada,null,UNIVERSIDADE DE BRASÍLIA,null,960000.00,ordinário,605
RECURSOS DIRETAM.ARREC FUNDAÇÃO UNIV.BRASÍLIA,3885000.00,FISCAL,PR 206/2021 - FUB,2021,29/12/2021,SUPORTE DE TI,null,null,null,FUNCIONAMENTO DE INSTITUICOES FEDERAI - NO DF,23106.005383/2021-62,"C. CUSTO CPD PROT:110114(3885000,00)AQUISIÇÃO DE NOVA SOLUÇÃO DE PROCESSAMENTO E SUPORTE.FORNECIMENTO DE CHASSI E SERVIDORES DE ALTA CAPACIDADE DE PROCESSAMENTO,AQUISIÇÃO, RENOVAÇÃO DE GARANTIA E EXPANSÃO DOS STORAGESSEI: 23106.005383/2021-62 2021ND005411",2988,EQUIP. MATERIAL PERMANENTE,Morrison Calloni Gumieiro,null,UNIVERSIDADE DE BRASÍLIA,null,3885000.00,ordinário,605
RENDIMENTO DE DISPONIBILIDADE DO TESOURO NACIONAL,4310627.92,FISCAL,RDC,2021,28/12/2021,OBRA DE CONSTRUÇÃO DE ESPAÇO DE PESQUISA PRIMEIRA INFÂNCIA,null,null,null,EMENDA DE BANCADA 71080004,23106.108451/2021-44,"C. CUSTO INFRA PROT:110137(4310627,92)CONTRATAÇÃO DE EMPRESA PARA EXECUÇÃODA OBRA ESPAÇO PARA PESQUISA EM PRIMEIRA INFÂNCIASEI: 23106.108451/2021-44 2021ND005514 RDC: 06/2021",2981,OBRAS E INSTALAÇÕES,Vilmo Conson Principe Juki,null,UNIVERSIDADE DE BRASÍLIA,null,4310627.92,global,605
RENDIMENTO DE DISPONIBILIDADE DO TESOURO NACIONAL,3007970.98,FISCAL,RDC,2021,28/12/2021,OBRA DE CONSTRUÇÃO DA CRECHE DA UNB,null,null,null,EMENDA DE BANCADA 71080004,23106.108428/2021-50,"C. CUSTO INFRA PROT:110137(3007970,98)CONTRATAÇÃO DE EMPRESA PARA EXECUÇÃODA OBRA DE CONSTRUÇÃO DA CRECHE DA UNBSEI: 23106.108428/2021-50 2021ND005511 RDC 03/2021",2980,OBRAS E INSTALAÇÕES,Kareline Leonhardt Ameixeiro Pongelupi,null,UNIVERSIDADE DE BRASÍLIA,null,3007970.98,global,605
RECURSOS DIRETAM.ARREC FUNDAÇÃO UNIV.BRASÍLIA,510.00,FISCAL,null,2021,28/12/2021,FUNCIONAMENTO GERAL,null,76703.55,null,FUNCIONAMENTO DE INSTITUICOES FEDERAI - NO DF,23106.095902/2021-76,"C. CUSTO HVET PROT:1101010501(77213,55)MATERIAL DE CONSUMO. GÊNEROS ALIMENTÍCIOS PARAATENDIMENTO DA DIETA DOS ANIMAIS MANTIDOS PELOCENTRO DE PRIMATOLOGIA DO IB E PELO HOSPITAL VETERINÁRIO DA FAV.SEI: 23106.095902/2021-76 2021ND005502 PREGÃO: 39/2021",2978,MAT. CONSUMO,Dammiles Vaniede Serchiari S Lau,null,UNIVERSIDADE DE BRASÍLIA,null,77213.55,global,605
PRÓPRIOS -  PREST.SERVICOS FUB/FUNDO,200.00,FISCAL,null,2021,28/12/2021,CRÉDITOS DISTRIBUÍDOS PARA AS UNIDADES ADMINISTRATIVAS,null,null,null,FUNCIONAMENTO DE INSTITUICOES FEDERAI - NO DF,23106.012238/2022-19,23106.012238/2022-19,2970,MAT. CONSUMO,Sbeiti Loize,null,UNIVERSIDADE DE BRASÍLIA,null,200.00,ordinário,605
C.I UNIDADES DIVERSAS,3920.00,FISCAL,PR 24/2021 - FUB,2021,27/12/2021,CUSTOS INDIRETOS UNIDADE CAPTADORA,null,null,null,FUNCIONAMENTO DE INSTITUICOES FEDERAI - NO DF,23106.122943/2021-42,"C. CUSTO: CEAM SEI:23106.122943/2021-42ATT: VIVIANE DE MELO RESENDE 2021ND005494MEMO.013/2021/CEAM PROT:110125{SM3673/2021(3920,00)}MATERIAL DE PERMANENTE - PEDIDO:3673/2021 - PREG:024/2021EQUIP.DE PROT.SEG. E SOCORRO - TOTEM - TERMOMETRO DIGITAL",2959,EQUIP. MATERIAL PERMANENTE,Diorgenis Margy Hoscher,null,UNIVERSIDADE DE BRASÍLIA,null,3920.00,global,605
RECURSOS DIRETAM.ARREC FUNDAÇÃO UNIV.BRASÍLIA,14910.00,FISCAL,PR,2021,27/12/2021,FUNCIONAMENTO GERAL,null,null,null,FUNCIONAMENTO DE INSTITUICOES FEDERAI - NO DF,23106.134441/2021-64,"C.CUSTO:BCE// AQUISIÇÃO DE CARRINHOS DE TRANSPORTE DE LIVROS//  MEMORANDO Nº 78/2021/BCE2021ND005486// REQ.3938/2021// PROT:110113(14910,00)",2958,EQUIP. MATERIAL PERMANENTE,Marsilio Queblas P Coelho Langhorst,null,UNIVERSIDADE DE BRASÍLIA,null,14910.00,global,605
RECURSOS DIRETAM.ARREC FUNDAÇÃO UNIV.BRASÍLIA,132154.19,FISCAL,RDC,2021,24/12/2021,OBRA DE REFORMA DAS PISTAS DE ATLETISMO NO CENTRO OLÍMPICO,null,null,null,FUNCIONAMENTO DE INSTITUICOES FEDERAI - NO DF,23106.109852/2017-35,"C. CUSTO: INFRA                                                    SEI:23106.109852/2017-35ATT: AUGUSTO CÉSAR OLIVEIRA DIAS           2021ND005410  - ID-CIPI - 5406.53-89MEMO.S.N/2021/INFRA                  PROT:110137(132154,19)   -  4º TERMO ADITIVOOBRAS EM ANDAMENTO - CONSTRUÇÃO PISTA DE ATLETISMO -   CONTRATO:1119/2019REFORMA DA PISTA DE ATLETISMO OFICIAL PARA COMPETIÇÕES (PISTA 01) E DA PISTA DE TREINAMENTO (PISTA 02)",2946,OBRAS E INSTALAÇÕES,Peterclever Borgahrdt,null,UNIVERSIDADE DE BRASÍLIA,null,132154.19,global,605
RECURSOS DIRETAM.ARREC FUNDAÇÃO UNIV.BRASÍLIA,0.40,FISCAL,PR,2021,24/12/2021,ALMOXARIFADO E TRANSPORTE MOVEIS E MATERIAIS,null,null,null,FUNCIONAMENTO DE INSTITUICOES FEDERAI - NO DF,23106.134481/2021-14,"C. CUSTO DTER.      PROT:11011007(0,40)         SEI 23106.134481/2021-14    SERVIÇOS DE ALMOXARIFADO E TRANSP DE MOVEIS DE MATERIAIS.  CONTRATO 167/2017 2021ND005429.        PREGÃO: 34/2017.",2944,LOC. MÃO-DE-OBRA,Jakymiu Vilabuim Grésiano Baja,null,UNIVERSIDADE DE BRASÍLIA,null,0.40,global,605
RECURSOS DIRETAM.ARREC FUNDAÇÃO UNIV.BRASÍLIA,2402538.17,FISCAL,PR,2021,24/12/2021,LIMPEZA E CONSERVACAO,null,null,null,FUNCIONAMENTO DE INSTITUICOES FEDERAI - NO DF,23106.134466/2021-68,"C. CUSTO DTER PROT:11011007(655220,99)RCA (LIMPEZA E CONSERVAÇÃO) - CONTRATO 200/20152021ND005425 SEI: 23106.055421/2021-28",2942,LOC. MÃO-DE-OBRA,Noweihi Cadina Luaemar Marulli Camião,null,UNIVERSIDADE DE BRASÍLIA,1747317.18,655220.99,global,605
RECURSOS DIRETAM.ARREC FUNDAÇÃO UNIV.BRASÍLIA,49500.00,FISCAL,PR,2021,23/12/2021,"SISTEMA DE SEGURANÇA ELETRÔNICA, EQUIPAMENTOS E ETC",null,null,null,FUNCIONAMENTO DE INSTITUICOES FEDERAI - NO DF,23106.019599/2021-13,"C. CUSTO PRC PROT:11010502 REQ: 3833/2021COMPRA DE -CÂMERA TIPO BULLET E DISCO RÍGIDO PARA VIGILÂNCIA (HD)SEI: 23106.019599/2021-13  2021ND005413",2937,EQUIP. MATERIAL PERMANENTE,Informação Anonimizada,null,UNIVERSIDADE DE BRASÍLIA,null,49500.00,ordinário,605
RECURSOS DIRETAM.ARREC FUNDAÇÃO UNIV.BRASÍLIA,6400.00,FISCAL,PR,2021,23/12/2021,"SISTEMA DE SEGURANÇA ELETRÔNICA, EQUIPAMENTOS E ETC",null,null,null,FUNCIONAMENTO DE INSTITUICOES FEDERAI - NO DF,23106.019599/2021-13,"C. CUSTO PRC PROT:11010505(6400,00) REQ: 3971/2021COMPRA DE MESA CONTROLADORASEI: 23106.019599/2021-13  2021ND005413",2936,EQUIP. MATERIAL PERMANENTE,Informação Anonimizada,null,UNIVERSIDADE DE BRASÍLIA,null,6400.00,ordinário,605
RECURSOS DIRETAM.ARREC FUNDAÇÃO UNIV.BRASÍLIA,22966.90,FISCAL,PR,2021,23/12/2021,"SISTEMA DE SEGURANÇA ELETRÔNICA, EQUIPAMENTOS E ETC",null,null,null,FUNCIONAMENTO DE INSTITUICOES FEDERAI - NO DF,23106.019599/2021-13,"C. CUSTO PRC PROT:11010505(22966,90) REQ: 3970/2021COMPRA DE SWITCH POE 48 PORTASSEI: 23106.019599/2021-13  2021ND005413",2935,EQUIP. MATERIAL PERMANENTE,Buás Baqueti Dittz Lugato Cautela,null,UNIVERSIDADE DE BRASÍLIA,null,22966.90,ordinário,605
RECURSOS DIRETAM.ARREC FUNDAÇÃO UNIV.BRASÍLIA,101990.42,FISCAL,PR,2021,23/12/2021,FUNCIONAMENTO GERAL,null,null,null,FUNCIONAMENTO DE INSTITUICOES FEDERAI - NO DF,23106.056674/2021-19,"C. CUSTO: BCE SEI: 23106.056674/2021-19AQUISIÇÃO DE 346 LIVROS ESTRANGEIROSATA N. 908/2021, PREGÃO 502/2021DESPACHO BCE / ADM / COM (7501896) PROT:110113(101990,42)PREGÃO: 502/2021 - 2021ND005418",2934,EQUIP. MATERIAL PERMANENTE,Informação Anonimizada,null,UNIVERSIDADE DE BRASÍLIA,null,101990.42,global,605
RECURSOS DIRETAM.ARREC FUNDAÇÃO UNIV.BRASÍLIA,623689.00,FISCAL,PR,2021,22/12/2021,OPERADOR DE TRATOR,null,null,null,FUNCIONAMENTO DE INSTITUICOES FEDERAI - NO DF,23106.133395/2021-86,"C. CUSTO DTER CONTRATO 025/2016. SERVIÇOS MOTORISTA PROT:11011007(623689,00)PRESTAÇÃO CONTINUADA DE SERVIRÇOS DE MOTORISTA E OPERADOR DE TRATORDESPESAS DE MANUTENÇÃO E FUNCIONAMENTO DA UNB.2021ND005386. SEI: 23106.133395/2021-86. PROC ORIGEM: 2015PR00055",2921,LOC. MÃO-DE-OBRA,Jakymiu Vilabuim Grésiano Baja,null,UNIVERSIDADE DE BRASÍLIA,null,623689.00,global,605
RECURSOS DIR.ARRECADADOS(PROPRIOS)-FUB -,289.08,FISCAL,PR,2021,21/12/2021,CENTRO DE ATENDIMENTO E ESTUDOS PSICOLOG-CAEP,null,null,null,FUNCIONAMENTO DE INSTITUICOES FEDERAI - NO DF,23106.135211/2021-12,"C.CUSTO:CAEP// AQUISIÇÃO DE MATERIAIS COMBATE A COVID-19//  MEMO N.67/2021/IP/CAEPSEI N.23106.135211/2021-12//  2021ND005285//  PROT:11010120(289,08)",2918,MAT. CONSUMO,Klenni Kosby Carvalhal,null,UNIVERSIDADE DE BRASÍLIA,null,289.08,global,605
RECURSOS DIRETAM.ARREC FUNDAÇÃO UNIV.BRASÍLIA,29150.00,FISCAL,PR,2021,21/12/2021,FUNCIONAMENTO GERAL,null,null,null,FUNCIONAMENTO DE INSTITUICOES FEDERAI - NO DF,23106.138160/2021-81,"C.CUSTO:ALMOX//  AGUA MINERAL SEM GAS// REQ.3963/20212021ND005375//  PROT:1101100601(29150,00)//  OFÍCIO Nº 23/2021/DAF / DGM / ALM",2917,MAT. CONSUMO,Denver Odakara Fieldler,null,UNIVERSIDADE DE BRASÍLIA,null,29150.00,global,605
PRÓPRIOS -  PREST.SERVICOS FUB/FUNDO,18.20,FISCAL,PR,2021,21/12/2021,CRÉDITOS DISTRIBUÍDOS PARA AS UNIDADES ACADÊMICAS,null,null,null,FUNCIONAMENTO DE INSTITUICOES FEDERAI - NO DF,23106.131847/2021-95,"C. CUSTO ICE PROT:11010115(18,20)MEMORANDO 81 (7465770) MATERIAL DE CONSUMO. COVID-19SEI: 23106.131847/2021-95 2021ND005352  PR 28/2021 - FUB",2913,MAT. CONSUMO,Zamian Fushimi Lafeta Fuzicava,null,UNIVERSIDADE DE BRASÍLIA,null,18.20,global,605
PRÓPRIOS -  PREST.SERVICOS FUB/FUNDO,350.00,FISCAL,PR,2021,20/12/2021,CRÉDITOS DISTRIBUÍDOS PARA AS UNIDADES ADMINISTRATIVAS,null,null,null,FUNCIONAMENTO DE INSTITUICOES FEDERAI - NO DF,23106.100824/2021-39,"C.CUSTO:CEAD// AQUISIÇÃO DE LIXEIRA REDONDA SUPORTE// REQ.1915/20212021ND005346// PROT:110124(350,00)// SEI N.23106.100824/2021-39",2910,MAT. CONSUMO,Rubismar Duzzi,null,UNIVERSIDADE DE BRASÍLIA,null,350.00,global,605
PRÓPRIOS -  PREST.SERVICOS FUB/FUNDO,418.58,FISCAL,PR 28/2021 - FUB,2021,20/12/2021,CRÉDITOS DISTRIBUÍDOS PARA AS UNIDADES ACADÊMICAS,null,null,null,FUNCIONAMENTO DE INSTITUICOES FEDERAI - NO DF,23106.054493/2021-58,"C.CUSTO:IDA//  AQUISIÇÃO DE ALCOOL ETILICO GEL HIDRATADO//REQ. 3739SEI N.23106.131663/2021-25// 2021ND005347//  PROT:11010114(418,58)",2908,MAT. CONSUMO,Nicanor Gasiglia Nasiri,null,UNIVERSIDADE DE BRASÍLIA,null,418.58,ordinário,605
PRÓPRIOS -  PREST.SERVICOS FUB/FUNDO,350.00,FISCAL,PR,2021,20/12/2021,CRÉDITOS DISTRIBUÍDOS PARA AS UNIDADES ADMINISTRATIVAS,null,null,null,FUNCIONAMENTO DE INSTITUICOES FEDERAI - NO DF,23106.100824/2021-39,"C.CUSTO:CEAD// AQUISIÇÃO DE LIXEIRA REDONDA SUPORTE// REQ.1882/20212021ND005346// PROT:110124(350,00)//  SEI N.23106.100824/2021-39",2907,MAT. CONSUMO,Rubismar Duzzi,null,UNIVERSIDADE DE BRASÍLIA,null,350.00,global,605
PRÓPRIOS -  PREST.SERVICOS FUB/FUNDO,83.72,FISCAL,PR 28/2021 - FUB,2021,20/12/2021,CRÉDITOS DISTRIBUÍDOS PARA AS UNIDADES ACADÊMICAS,null,null,null,FUNCIONAMENTO DE INSTITUICOES FEDERAI - NO DF,23106.054493/2021-58,"C.CUSTO:ICS//  AQUISIÇÃO DE MATERIAIS DE PROTEÇÃO CONTRA O COVID-19// MEMO N.052/2021/ICS2021ND004893//  PROT:11010113(83,72)//  REQ.3738",2905,MAT. CONSUMO,Nicanor Gasiglia Nasiri,null,UNIVERSIDADE DE BRASÍLIA,null,83.72,ordinário,605
PRÓPRIOS -  PREST.SERVICOS FUB/FUNDO,91.08,FISCAL,PR 28/2021 - FUB,2021,20/12/2021,CRÉDITOS DISTRIBUÍDOS PARA AS UNIDADES ACADÊMICAS,null,null,null,FUNCIONAMENTO DE INSTITUICOES FEDERAI - NO DF,23106.054493/2021-58,"C.CUSTO:ICS//  AQUISIÇÃO DE MATERIAIS DE PROTEÇÃO CONTRA O COVID-19// MEMO N.052/2021/ICS2021ND004893//  PROT:11010113(91,08)//  REQ.3741",2904,MAT. CONSUMO,Klenni Kosby Carvalhal,null,UNIVERSIDADE DE BRASÍLIA,null,91.08,ordinário,605
PRÓPRIOS -  PREST.SERVICOS FUB/FUNDO,21.88,FISCAL,PR,2021,20/12/2021,CRÉDITOS DISTRIBUÍDOS PARA AS UNIDADES ACADÊMICAS,null,null,null,FUNCIONAMENTO DE INSTITUICOES FEDERAI - NO DF,23106.131667/2021-11,"C.CUSTO:ICS//  AQUISIÇÃO DE MATERIAIS DE PROTEÇÃO CONTRA O COVID-19// MEMO N.052/2021/ICS2021ND004893//  PROT:11010113(21,88)//",2903,MAT. CONSUMO,Klenni Kosby Carvalhal,null,UNIVERSIDADE DE BRASÍLIA,null,21.88,global,605
RECURSOS DIRETAM.ARREC FUNDAÇÃO UNIV.BRASÍLIA,774992.50,FISCAL,RDC,2021,17/12/2021,OBRA DE CONSTRUÇÃO DO INSTITUTO DE ARTES,null,4225565.03,null,FUNCIONAMENTO DE INSTITUICOES FEDERAI - NO DF,23106.047470/2021-97,"C. CUSTO INFRA PROT:110137(4991834,00)OBRA EDIFÍCIO DO INSTITUTO DE ARTES - IDASEI: 23106.047470/2021-97 2021ND005315 RDC 4/2021",2902,OBRAS E INSTALAÇÕES,Informação Anonimizada,null,UNIVERSIDADE DE BRASÍLIA,8723.53,4991834.00,global,605
RECURSOS DIR.ARRECADADOS(PROPRIOS)-FUB -,111.75,FISCAL,PR 28/2021 - FUB,2021,17/12/2021,CENTRO DE ATENDIMENTO E ESTUDOS PSICOLOG-CAEP,null,null,null,FUNCIONAMENTO DE INSTITUICOES FEDERAI - NO DF,23106.054493/2021-58,"C. CUSTO: IPD.      PROT:11010120{SM3868/2021(111,75)}     SEI 23106.132725/2021-16.AQUISIÇÃO DE LUVAS DESCARTÁVEIS.2021ND005308.      MEMO 63/2021/IP/CAEP.",2899,MAT. CONSUMO,Alcilei Abbadegouveia Bruniero Cebola,null,UNIVERSIDADE DE BRASÍLIA,null,111.75,ordinário,605
RENDIMENTO DE DISPONIBILIDADE DO TESOURO NACIONAL,0.00,FISCAL,RDC,2021,17/12/2021,OBRA DE CONSTRUÇÃO DE ESPAÇO DE PESQUISA PRIMEIRA INFÂNCIA,null,4310627.92,null,EMENDA DE BANCADA 71080004,23106.108451/2021-44,"C. CUSTO INFRA PROT:110137(4310627,92)CONTRATAÇÃO DE EMPRESA PARA EXECUÇÃODA OBRA ESPAÇO PARA PESQUISA EM PRIMEIRA INFÂNCIASEI: 23106.108451/2021-44 2021ND005311 RDC: 06/2021",2898,OBRAS E INSTALAÇÕES,Vilmo Conson Principe Juki,null,UNIVERSIDADE DE BRASÍLIA,null,4310627.92,global,605
RENDIMENTO DE DISPONIBILIDADE DO TESOURO NACIONAL,0.00,FISCAL,RDC,2021,17/12/2021,OBRA DE CONSTRUÇÃO DA CRECHE DA UNB,null,3007970.98,null,EMENDA DE BANCADA 71080004,23106.108428/2021-50,"C. CUSTO INFRA PROT:110137(3007970,98)CONTRATAÇÃO DE EMPRESA PARA EXECUÇÃODA OBRA DE CONSTRUÇÃO DA CRECHE DA UNBSEI: 23106.108428/2021-50 2021ND005310 RDC 03/2021",2897,OBRAS E INSTALAÇÕES,Kareline Leonhardt Ameixeiro Pongelupi,null,UNIVERSIDADE DE BRASÍLIA,null,3007970.98,global,605
RECURSOS DIRETAM.ARREC FUNDAÇÃO UNIV.BRASÍLIA,41777.94,FISCAL,PR,2021,17/12/2021,SERV TEC ESPEC MANUT DE GRUPO GERADORES UNID,null,null,null,FUNCIONAMENTO DE INSTITUICOES FEDERAI - NO DF,23106.023215/2017-72,"C.CUSTO: PRC - PROT:110105(41777,94)  CONTRATO 664/2018 COM A EMPRESA EFL SILVA MANUTENÇÃO DE NO-BREAKS E GERADORES-ME. 2021ND005305// SEI: 23106.023215/2017-72//",2896,SERV. PESSOA JURÍDICA,Marclise Asano Kovalick Rich Goggin,null,UNIVERSIDADE DE BRASÍLIA,null,41777.94,global,605
PRÓPRIOS -  PREST.SERVICOS FUB/FUNDO,179.84,FISCAL,PR 28/2021 - FUB,2021,17/12/2021,CRÉDITOS DISTRIBUÍDOS PARA AS UNIDADES ACADÊMICAS,null,null,null,FUNCIONAMENTO DE INSTITUICOES FEDERAI - NO DF,23106.054493/2021-58,23106.003506/2022-10,2895,MAT. CONSUMO,Cleirivania Goodwin Ramos,null,UNIVERSIDADE DE BRASÍLIA,null,179.84,global,605
RECURSOS DIRETAM.ARREC FUNDAÇÃO UNIV.BRASÍLIA,2.99,FISCAL,null,2021,01/11/2021,TAXIGOV (MOTORISTA),null,null,null,FUNCIONAMENTO DE INSTITUICOES FEDERAI - NO DF,23106.010532/2020-24,"C. CUSTO DTER. PROT:11011007(2,99) (UASG 201057) TAXIGOV SEGUNDO TERMO ADITIVO AO CONTRATO 36/2020 EMPRESA VIP SERVICE LOCADORA E SERV 2021ND005304 SEI: 23106.010532/2020-24 PROC ORIGEM: 05000012019",2893,PASSAGENS,Merhy Takada Emile,null,UNIVERSIDADE DE BRASÍLIA,null,2.99,ordinário,605
PRÓPRIOS -  PREST.SERVICOS FUB/FUNDO,91.08,FISCAL,PR 28/2021 - FUB,2021,16/12/2021,CRÉDITOS DISTRIBUÍDOS PARA AS UNIDADES ACADÊMICAS,null,null,null,FUNCIONAMENTO DE INSTITUICOES FEDERAI - NO DF,23106.054493/2021-58,23106.003060/2022-15,2892,MAT. CONSUMO,Klenni Kosby Carvalhal,null,UNIVERSIDADE DE BRASÍLIA,null,91.08,global,605
PRÓPRIOS -  PREST.SERVICOS FUB/FUNDO,62400.00,FISCAL,PR 206/2020 - UNB,2021,16/12/2021,CRÉDITOS DISTRIBUÍDOS PARA AS UNIDADES ACADÊMICAS,null,null,null,FUNCIONAMENTO DE INSTITUICOES FEDERAI - NO DF,23106.128043/2021-17,"C. CUSTO: FUP SEI:23106.128043/2021-17ATT: REINALDO JOSÉ DE MIRANDA 2021ND005298MEMO.S.N/2021/FUP/GCF PROT:110129{SM3340/2021(62400,00)}MATERIAL DE PERMANENTE - PEDIDO:3340/2021 - PREG:206/2020EQUIPAMENTOS TIC - MICROCOMPUTADOR TIPO PADRÃO",2890,EQUIP. MATERIAL PERMANENTE,Hohlenwerger Jacunda Mezzalira Escott Alodji,null,UNIVERSIDADE DE BRASÍLIA,null,62400.00,global,605
RECURSOS DIRETAM.ARREC FUNDAÇÃO UNIV.BRASÍLIA,200.00,FISCAL,PR,2021,16/12/2021,TAXIGOV (MOTORISTA),null,null,null,FUNCIONAMENTO DE INSTITUICOES FEDERAI - NO DF,23106.125904/2021-05,"C.CUSTO:DTER// PRESTAÇÃO DE SERV DE TRANSPORTE TERRESTRE (TAXIGOV) CONTRATO N.036/2020// PGTO NF 5601 E FATURA 1256MEMO Nº 121/2021/PRC / DIMEQ / CTR//PROT:11011007(24,17)//  2021ND005008",2888,PASSAGENS,Merhy Takada Emile,null,UNIVERSIDADE DE BRASÍLIA,175.83,24.17,global,605
PRÓPRIOS -  PREST.SERVICOS FUB/FUNDO,607.20,FISCAL,PR 28/2021 - FUB,2021,16/12/2021,CRÉDITOS DISTRIBUÍDOS PARA AS UNIDADES ACADÊMICAS,null,null,null,FUNCIONAMENTO DE INSTITUICOES FEDERAI - NO DF,23106.054493/2021-58,"C. CUSTO: IFG.       PROT:11010116{SM3902/2021(607,20)}    SEI 23106.131434/2021-19.AQUISIÇÃO DE ÁLCOOL ETÍLICO.2021ND005275.       OFÍCIO 010/2021/IF/SEC/COMPRAS.",2887,MAT. CONSUMO,Klenni Kosby Carvalhal,null,UNIVERSIDADE DE BRASÍLIA,null,607.20,ordinário,605
PRÓPRIOS -  PREST.SERVICOS FUB/FUNDO,29.70,FISCAL,PR 28/2021 - FUB,2021,16/12/2021,CRÉDITOS DISTRIBUÍDOS PARA AS UNIDADES ACADÊMICAS,null,null,null,FUNCIONAMENTO DE INSTITUICOES FEDERAI - NO DF,23106.054493/2021-58,"C. CUSTO: IE.       PROT:11010115{SM3773/2021(29,70)}    SEI 23106.131880/2021-15.AQUISIÇÃO DE MÁSCARA DESCARTÁVEL.2021ND005280.       MEMO 84/2021/IE/MAT.",2886,MAT. CONSUMO,Klenni Kosby Carvalhal,null,UNIVERSIDADE DE BRASÍLIA,null,29.70,ordinário,605
PRÓPRIOS -  PREST.SERVICOS FUB/FUNDO,504.00,FISCAL,PR 28/2021 - FUB,2021,16/12/2021,CRÉDITOS DISTRIBUÍDOS PARA AS UNIDADES ACADÊMICAS,null,null,null,FUNCIONAMENTO DE INSTITUICOES FEDERAI - NO DF,23106.054493/2021-58,"C.CUSTO:IE//  AQUISIÇÃO DE  TOTEM IDENTIFICAÇÃO// REQ.3768 PROT:11010115(504,00)//  2021ND005287",2885,MAT. CONSUMO,Nespolo Jayantibhai de Aviz,null,UNIVERSIDADE DE BRASÍLIA,null,504.00,ordinário,605
PRÓPRIOS -  PREST.SERVICOS FUB/FUNDO,607.20,FISCAL,PR 28/2021 - FUB,2021,16/12/2021,CRÉDITOS DISTRIBUÍDOS PARA AS UNIDADES ACADÊMICAS,null,null,null,FUNCIONAMENTO DE INSTITUICOES FEDERAI - NO DF,23106.054493/2021-58,"C.CUSTO:IFD//  AQUISIÇÃO DE ALCOOL ETILICO HIDRATADO 70%// REQ.3723/2021PROT:11010116(607,20)//  2021ND005286",2884,MAT. CONSUMO,Klenni Kosby Carvalhal,null,UNIVERSIDADE DE BRASÍLIA,null,607.20,ordinário,605
PRÓPRIOS -  PREST.SERVICOS FUB/FUNDO,52.64,FISCAL,PR 11/2021 - UNB,2021,16/12/2021,CRÉDITOS DISTRIBUÍDOS PARA AS UNIDADES ACADÊMICAS,null,null,null,FUNCIONAMENTO DE INSTITUICOES FEDERAI - NO DF,23106.133057/2021-44,"C.CUSTO:FDD -AT- DANIELA MARQUES DE MORAES - PROT:11010106{SM3761/2021(52,64)}MATERIAL DE CONSUMO-PEDIDO:3761/2021 -2021ND005293 -PREG:11/2021MATERIAL DE PROTEÇÃO E SEGURANÇA - FITA ADESIVA - FITA ZEBRADA - PEDESTAL ZEBRADOMEMO.S.N/2021/FD/FDD/FIN - S.E.I 23106.133057/2021-44",2880,MAT. CONSUMO,Cleanny Hergesell Fargnolli Evelise Gaviano,null,UNIVERSIDADE DE BRASÍLIA,null,52.64,global,605
PRÓPRIOS -  PREST.SERVICOS FUB/FUNDO,0.00,FISCAL,PR,2021,16/12/2021,CRÉDITOS DISTRIBUÍDOS PARA AS UNIDADES ACADÊMICAS,null,37.50,null,FUNCIONAMENTO DE INSTITUICOES FEDERAI - NO DF,23106.134749/2021-18,"C.CUSTO:IPD//  AQUISIÇÃO DE DESINFETANTE LIQUIDO// REQ. 3885PROT:11010120(37,50)//  2021ND005278",2879,MAT. CONSUMO,Rapp Sforcini Emerenciano,null,UNIVERSIDADE DE BRASÍLIA,null,37.50,global,605
PRÓPRIOS -  PREST.SERVICOS FUB/FUNDO,1260.62,FISCAL,PR,2021,16/12/2021,CRÉDITOS DISTRIBUÍDOS PARA AS UNIDADES ACADÊMICAS,null,null,null,FUNCIONAMENTO DE INSTITUICOES FEDERAI - NO DF,23106.134749/2021-18,"C.CUSTO:IPD//   AQUISIÇÃO DE MATERIAL DE LIMPEZA// REQ.3889PROT:11010120(1260,61)// 2021ND005278",2877,MAT. CONSUMO,Soprani Meloquero Nisa Babilon Waldo,null,UNIVERSIDADE DE BRASÍLIA,null,1260.62,global,605
PRÓPRIOS -  PREST.SERVICOS FUB/FUNDO,4803.24,FISCAL,PR 42/2020 - FUB,2021,16/12/2021,CRÉDITOS DISTRIBUÍDOS PARA AS UNIDADES ACADÊMICAS,null,null,null,FUNCIONAMENTO DE INSTITUICOES FEDERAI - NO DF,23106.044808/2020-78,"C.CUSTO:IPD//   AQUISIÇÃO DE MASCARA CIRURGICA DESCARTAVEL// REQ.3888PROT:11010120(4803,24)// 2021ND005278",2875,MAT. CONSUMO,Abnadab Huare Daron Nakama Agi,null,UNIVERSIDADE DE BRASÍLIA,null,4803.24,ordinário,605
PRÓPRIOS -  PREST.SERVICOS FUB/FUNDO,4803.24,FISCAL,PR 42/2020 - FUB,2021,16/12/2021,CRÉDITOS DISTRIBUÍDOS PARA AS UNIDADES ACADÊMICAS,null,null,null,FUNCIONAMENTO DE INSTITUICOES FEDERAI - NO DF,23106.044808/2020-78,"C.CUSTO:IPD//   AQUISIÇÃO DE MASCARA CIRURGICA DESCARTAVEL// REQ.3887PROT:11010120(4803,24)// 2021ND005278//  PROT:11010120(4803,24)",2874,MAT. CONSUMO,Abnadab Huare Daron Nakama Agi,null,UNIVERSIDADE DE BRASÍLIA,null,4803.24,ordinário,605
PRÓPRIOS -  PREST.SERVICOS FUB/FUNDO,192.00,FISCAL,PR 42/2020 - FUB,2021,16/12/2021,CRÉDITOS DISTRIBUÍDOS PARA AS UNIDADES ACADÊMICAS,null,null,null,FUNCIONAMENTO DE INSTITUICOES FEDERAI - NO DF,23106.044808/2020-78,"C.CUSTO:IPD//   AQUISIÇÃO DE PAPEL TOALHA INTERFOLHADO// REQ.3884PROT:11010120(192,00)// 2021ND005278//  PROT:11010120(192,00)",2873,MAT. CONSUMO,Larindo Helbourn Hug Ganassin Scislewski,null,UNIVERSIDADE DE BRASÍLIA,null,192.00,ordinário,605
PRÓPRIOS -  PREST.SERVICOS FUB/FUNDO,21.10,FISCAL,PR 28/2021 - FUB,2021,16/12/2021,CRÉDITOS DISTRIBUÍDOS PARA AS UNIDADES ACADÊMICAS,null,null,null,FUNCIONAMENTO DE INSTITUICOES FEDERAI - NO DF,23106.054493/2021-58,"C.CUSTO:IREL//  AQUISIÇÃO DE PAPEL TOALHA INTERFOLHAS// REQ.3914/2021SEI N.23106.135123/2021-11// 2021ND005279//  PROT:11010125(21,10)",2872,MAT. CONSUMO,Evanylton Shunk Katsuragama,null,UNIVERSIDADE DE BRASÍLIA,null,21.10,ordinário,605
PRÓPRIOS -  PREST.SERVICOS FUB/FUNDO,504.00,FISCAL,PR 28/2021 - FUB,2021,16/12/2021,CRÉDITOS DISTRIBUÍDOS PARA AS UNIDADES ACADÊMICAS,null,null,null,FUNCIONAMENTO DE INSTITUICOES FEDERAI - NO DF,23106.054493/2021-58,"C.CUSTO:IREL//  AQUISIÇÃO DE TOTEM IDENTIFICAÇÃO / REQ.3913/2021SEI N.23106.135123/2021-11//  2021ND005279// PROT:11010125(504,00)",2871,MAT. CONSUMO,Nespolo Jayantibhai de Aviz,null,UNIVERSIDADE DE BRASÍLIA,null,504.00,ordinário,605
PRÓPRIOS -  PREST.SERVICOS FUB/FUNDO,53.25,FISCAL,PR 28/2021 - FUB,2021,16/12/2021,CRÉDITOS DISTRIBUÍDOS PARA AS UNIDADES ACADÊMICAS,null,null,null,FUNCIONAMENTO DE INSTITUICOES FEDERAI - NO DF,23106.054493/2021-58,"C.CUSTO:IREL//  AQUISIÇÃO DE ALCOOL ETILICO LIQUIDO 70%/ REQ.3912/2021SEI N.23106.135123/2021-11//  2021ND005279// PROT:11010125(53,25)",2870,MAT. CONSUMO,Nicanor Gasiglia Nasiri,null,UNIVERSIDADE DE BRASÍLIA,null,53.25,ordinário,605
PRÓPRIOS -  PREST.SERVICOS FUB/FUNDO,208.00,FISCAL,PR 28/2021 - FUB,2021,16/12/2021,CRÉDITOS DISTRIBUÍDOS PARA AS UNIDADES ACADÊMICAS,null,null,null,FUNCIONAMENTO DE INSTITUICOES FEDERAI - NO DF,23106.054493/2021-58,"C.CUSTO:IREL//  AQUISIÇÃO DE MASCARA MULTIUSO N95// REQ.3911/2021SEI N.23106.135123/2021-11//  2021ND005279// PROT:11010125(208,00)",2869,MAT. CONSUMO,Kaligina Becegatto Herr Manhoni,null,UNIVERSIDADE DE BRASÍLIA,null,208.00,ordinário,605
PRÓPRIOS -  PREST.SERVICOS FUB/FUNDO,208.00,FISCAL,null,2021,07/12/2021,CRÉDITOS DISTRIBUÍDOS PARA AS UNIDADES ACADÊMICAS,null,null,null,FUNCIONAMENTO DE INSTITUICOES FEDERAI - NO DF,23106.005266/2022-80,23106.005266/2022-80,2868,MAT. CONSUMO,Kaligina Becegatto Herr Manhoni,null,UNIVERSIDADE DE BRASÍLIA,null,208.00,global,605
PRÓPRIOS -  PREST.SERVICOS FUB/FUNDO,194.40,FISCAL,null,2021,16/12/2021,CRÉDITOS DISTRIBUÍDOS PARA AS UNIDADES ACADÊMICAS,null,null,null,FUNCIONAMENTO DE INSTITUICOES FEDERAI - NO DF,23106.007219/2022-71,23106.007219/2022-71,2867,MAT. CONSUMO,Shayenne Bonfain,null,UNIVERSIDADE DE BRASÍLIA,null,194.40,global,605
PRÓPRIOS -  PREST.SERVICOS FUB/FUNDO,289.80,FISCAL,null,2021,16/12/2021,CRÉDITOS DISTRIBUÍDOS PARA AS UNIDADES ACADÊMICAS,null,null,null,FUNCIONAMENTO DE INSTITUICOES FEDERAI - NO DF,23106.010848/2022-88,23106.010848/2022-88,2866,MAT. CONSUMO,Klenni Kosby Carvalhal,null,UNIVERSIDADE DE BRASÍLIA,null,289.80,global,605
RECURSOS DIRETAM.ARREC FUNDAÇÃO UNIV.BRASÍLIA,5676277.71,FISCAL,RDC,2021,10/12/2021,OBRA DE CONSTRUÇÃO DO INSTITUTO DE ARTES,null,62400.01,null,FUNCIONAMENTO DE INSTITUICOES FEDERAI - NO DF,23106.047470/2021-97,"C. CUSTO INFRA PROT:110137(5738677,72)OBRA  EDIFÍCIO DO INSTITUTO DE ARTES - IDASEI: 23106.047470/2021-97 2021ND005252 RDC 4/2021",2862,OBRAS E INSTALAÇÕES,Informação Anonimizada,null,UNIVERSIDADE DE BRASÍLIA,null,5738677.72,global,605
RENDIMENTO DE DISPONIBILIDADE DO TESOURO NACIONAL,3500000.10,FISCAL,RDC,2021,10/12/2021,OBRA DE CONSTRUÇÃO DO INSTITUTO DE ARTES,null,7018598.90,null,EMENDA DE BANCADA 71080004,23106.047470/2021-97,"C. CUSTO INFRA PROT:110137(10518599,00)OBRA  EDIFÍCIO DO INSTITUTO DE ARTES - IDASEI: 23106.047470/2021-97 2021ND005253 RDC 4/2021",2861,OBRAS E INSTALAÇÕES,Informação Anonimizada,null,UNIVERSIDADE DE BRASÍLIA,null,10518599.00,global,605
RENDIMENTO DE DISPONIBILIDADE DO TESOURO NACIONAL,0.00,FISCAL,RDC,2021,10/12/2021,OBRA DE CONSTRUÇÃO DO INSTITUTO DE ARTES,null,300000.00,null,EMENDA DE BANCADA 71080004,23106.047470/2021-97,"C. CUSTO INFRA PROT:110137(300000,00)OBRA  EDIFÍCIO DO INSTITUTO DE ARTES - IDASEI: 23106.047470/2021-97 2021ND005254 RDC 4/2021",2860,OBRAS E INSTALAÇÕES,Informação Anonimizada,null,UNIVERSIDADE DE BRASÍLIA,null,300000.00,global,605
PRÓPRIOS -  PREST.SERVICOS FUB/FUNDO,270.00,FISCAL,PR 11/2021 - FUB,2021,10/12/2021,CRÉDITOS DISTRIBUÍDOS PARA AS UNIDADES ACADÊMICAS,null,null,null,FUNCIONAMENTO DE INSTITUICOES FEDERAI - NO DF,23106.134741/2021-43,"C. CUSTO IPD PROT:11010120(270,00) REQ: 3896/2021MEMORANDO 435 (7497092) AQUISIÇÃO DE 06(SEIS) LIXEIRAS PLÁSTICASSEI: 23106.134741/2021-43 2021ND005234",2846,MAT. CONSUMO,Ronchi Kollross Cassanelli Ermelina,null,UNIVERSIDADE DE BRASÍLIA,null,270.00,ordinário,605
PRÓPRIOS -  PREST.SERVICOS FUB/FUNDO,126.00,FISCAL,null,2021,10/12/2021,CRÉDITOS DISTRIBUÍDOS PARA AS UNIDADES ACADÊMICAS,null,null,null,FUNCIONAMENTO DE INSTITUICOES FEDERAI - NO DF,23106.009049/2022-69,23106.009049/2022-69,2845,MAT. CONSUMO,Assani Zocolotto,null,UNIVERSIDADE DE BRASÍLIA,null,126.00,global,605
PRÓPRIOS -  PREST.SERVICOS FUB/FUNDO,316.38,FISCAL,PR,2021,10/12/2021,CRÉDITOS DISTRIBUÍDOS PARA AS UNIDADES ADMINISTRATIVAS,null,null,null,FUNCIONAMENTO DE INSTITUICOES FEDERAI - NO DF,23106.129894/2021-79,"C.CUSTO:DAF//  AQUISIÇÃO DE VASO ORNAMENTAL// OFÍCIO 044/2021 (7454876)PROT:110110(316,38)//  2021ND004819",2844,MAT. CONSUMO,Informação Anonimizada,null,UNIVERSIDADE DE BRASÍLIA,null,316.38,ordinário,605
RECURSOS DIRETAM.ARREC FUNDAÇÃO UNIV.BRASÍLIA,148800.00,FISCAL,PR,2021,10/12/2021,SERVIÇOS DE GERENCIAMENTO DE FROTA,null,null,null,FUNCIONAMENTO DE INSTITUICOES FEDERAI - NO DF,23106.105351/2018-61,"C. CUSTO: PRC.    PROT:110105(148800,00)      SEI 23106.105351/2018-61.CONTRATAÇÃO DE SERVIÇOS DE GERENCIAMENTO DE FROTA.2021ND005188.       DESPACHO PRC 7439571.",2841,SERV. PESSOA JURÍDICA,Dowsley Aburto Deléseri Cont Abeid,null,UNIVERSIDADE DE BRASÍLIA,null,148800.00,global,605
RECURSOS DIRETAM.ARREC FUNDAÇÃO UNIV.BRASÍLIA,205800.00,FISCAL,PR,2021,10/12/2021,AQUISIÇÃO DE INSUMOS PARA PISTA DE ATLETISMO,null,null,null,FUNCIONAMENTO DE INSTITUICOES FEDERAI - NO DF,23106.103173/2019-14,"C.CUSTO:FEF//   FRETE AEREO INTERNACIONAL//  SEI N.23106.103173/2019-14PROT:11010108(205800,00)//  2021ND005185",2838,SERV. PESSOA JURÍDICA,Hashem Haizer Perosine,null,UNIVERSIDADE DE BRASÍLIA,null,205800.00,estimativo,605
PRÓPRIOS -  PREST.SERVICOS FUB/FUNDO,10400.00,FISCAL,PR 206/2020 - UNB,2021,10/12/2021,CRÉDITOS DISTRIBUÍDOS PARA AS UNIDADES ACADÊMICAS,null,null,null,FUNCIONAMENTO DE INSTITUICOES FEDERAI - NO DF,23106.131974/2021-94,"C. CUSTO: FAC SEI:23106.131974/2021-94ATT: EDIELTON PAULO VIEIRA ARAÚJO 2021ND000000DESPACHO Nº 7501654/2021/FAC PROT:11010103{SM3934/2021(10400,00)}MATERIAL DE PERMANENTE - PEDIDO:3934/2021 - PREG:206/2020EQUIPAMENTOS TIC - MICROCOMPUTADOR TIPO PADRÃO",2833,EQUIP. MATERIAL PERMANENTE,Hohlenwerger Jacunda Mezzalira Escott Alodji,null,UNIVERSIDADE DE BRASÍLIA,null,10400.00,global,605
PRÓPRIOS -  PREST.SERVICOS FUB/FUNDO,32373.22,FISCAL,null,2021,10/12/2021,CRÉDITOS DISTRIBUÍDOS PARA AS UNIDADES ACADÊMICAS,null,null,null,FUNCIONAMENTO DE INSTITUICOES FEDERAI - NO DF,23106.037011/2021-03,"C. CUSTO FACE PROT:11010102(32373,22) CONTRATAÇÃO DE EMPRESA ESPECIALIZADA NA PRESTAÇÃO DE SERVIÇOS DE CONTEÚDO ECONÔMICO-FINANCEIRO. EMPRESA:ECONOMATICA SOFTWARE DE APOIO A INVESTIDORES LTDA. SEI: 23106.037011/2021-03 2021ND004007",2819,SERV. PESSOA JURÍDICA,Strobel Segantim Debertolis,null,UNIVERSIDADE DE BRASÍLIA,null,32373.22,global,605
PRÓPRIOS -  PREST.SERVICOS FUB/FUNDO,532.46,FISCAL,PR 28/2021 - FUB,2021,10/12/2021,CRÉDITOS DISTRIBUÍDOS PARA AS UNIDADES ACADÊMICAS,null,null,null,FUNCIONAMENTO DE INSTITUICOES FEDERAI - NO DF,23106.054493/2021-58,"C.CUSTO:IDA//  ALCOOL ETILICO EM GEL 70% , HIDRATADO, REFIL// REQ.3893/2021PROT:11010114(532,46)// 2021ND005148",2818,MAT. CONSUMO,Nicanor Gasiglia Nasiri,null,UNIVERSIDADE DE BRASÍLIA,null,532.46,ordinário,605
PRÓPRIOS -  PREST.SERVICOS FUB/FUNDO,837.16,FISCAL,PR 28/2021 - FUB,2021,10/12/2021,CRÉDITOS DISTRIBUÍDOS PARA AS UNIDADES ACADÊMICAS,null,null,null,FUNCIONAMENTO DE INSTITUICOES FEDERAI - NO DF,23106.054493/2021-58,"C.CUSTO:IDA//  ALCOOL ETILICO EM GEL 70% , HIDRATADO, REFIL// REQ.3892/2021PROT:11010114(837,16)// 2021ND005148",2816,MAT. CONSUMO,Nicanor Gasiglia Nasiri,null,UNIVERSIDADE DE BRASÍLIA,null,837.16,ordinário,605
PRÓPRIOS -  PREST.SERVICOS FUB/FUNDO,4570.00,FISCAL,PR 10/2021 - FUB,2021,10/12/2021,CRÉDITOS DISTRIBUÍDOS PARA AS UNIDADES ACADÊMICAS,null,null,null,FUNCIONAMENTO DE INSTITUICOES FEDERAI - NO DF,23106.116899/2020-51,"C.CUSTO:ICS// AQUISIÇÃO DE AR CONDICIONADO SPLIT 12.000 BTU// REQ.3555/2021PROT:11010113(4570,00)//MEMORANDO 051 (6931787)",2815,EQUIP. MATERIAL PERMANENTE,Dellatorre de Gonzaga Cesso,null,UNIVERSIDADE DE BRASÍLIA,null,4570.00,ordinário,605
PRÓPRIOS -  PREST.SERVICOS FUB/FUNDO,625.62,FISCAL,PR 11/2021 - FUB,2021,10/12/2021,CRÉDITOS DISTRIBUÍDOS PARA AS UNIDADES ADMINISTRATIVAS,null,null,null,FUNCIONAMENTO DE INSTITUICOES FEDERAI - NO DF,23106.004528/2021-16,"C.CUSTO:DAC//  AQUISIÇÃO DE ITENS PARA SINALIZAÇÃO PROTEÇÃO CONTRA O COVID-19// DESPACHO DAC / DASU (7431791)2021ND005140//  PROT:110109(625,62)// REQ.3823",2814,MAT. CONSUMO,Cleanny Hergesell Fargnolli Evelise Gaviano,null,UNIVERSIDADE DE BRASÍLIA,null,625.62,ordinário,605
PRÓPRIOS -  PREST.SERVICOS FUB/FUNDO,86.02,FISCAL,PR 11/2021 - FUB,2021,10/12/2021,CRÉDITOS DISTRIBUÍDOS PARA AS UNIDADES ADMINISTRATIVAS,null,null,null,FUNCIONAMENTO DE INSTITUICOES FEDERAI - NO DF,23106.004528/2021-16,"C.CUSTO:DAC//  AQUISIÇÃO DE MATERIAL PARA SINALIZAÇÃO // REQ.3822PROT:110109(1180,20)//  2021ND005140",2813,MAT. CONSUMO,Xaris Pereiradaslva Rosemeire Lészeris Inauhiny,null,UNIVERSIDADE DE BRASÍLIA,null,86.02,ordinário,605
PRÓPRIOS -  PREST.SERVICOS FUB/FUNDO,253.20,FISCAL,PR 28/2021 - FUB,2021,10/12/2021,CRÉDITOS DISTRIBUÍDOS PARA AS UNIDADES ACADÊMICAS,null,null,null,FUNCIONAMENTO DE INSTITUICOES FEDERAI - NO DF,23106.134346/2021-61,"C. CUSTO FMD PROT:11010109(253,20) REQ: 3845/2021MEMORANDO 194 (7492208) AQUISIÇÃO DE MATERIAIS DE PROTEÇÃO CONTRA A COVIDSEI: 23106.134346/2021-61 2021ND005150 PR: 28/2021",2811,MAT. CONSUMO,Evanylton Shunk Katsuragama,null,UNIVERSIDADE DE BRASÍLIA,null,253.20,global,605
PRÓPRIOS -  PREST.SERVICOS FUB/FUNDO,9183.50,FISCAL,PR 28/2021 - FUB,2021,10/12/2021,CRÉDITOS DISTRIBUÍDOS PARA AS UNIDADES ACADÊMICAS,null,null,null,FUNCIONAMENTO DE INSTITUICOES FEDERAI - NO DF,23106.054493/2021-58,23106.003119/2022-75,2810,MAT. CONSUMO,Klenni Kosby Carvalhal,null,UNIVERSIDADE DE BRASÍLIA,null,9183.50,global,605
PRÓPRIOS -  PREST.SERVICOS FUB/FUNDO,2160.00,FISCAL,null,2021,09/12/2021,CRÉDITOS DISTRIBUÍDOS PARA AS UNIDADES ACADÊMICAS,null,null,null,FUNCIONAMENTO DE INSTITUICOES FEDERAI - NO DF,23106.001002/2022-57,v23106.001002/2022-57,2809,MAT. CONSUMO,Shayenne Bonfain,null,UNIVERSIDADE DE BRASÍLIA,null,2160.00,global,605
PRÓPRIOS -  PREST.SERVICOS FUB/FUNDO,2520.00,FISCAL,PR 28/2021 - UNB,2021,10/12/2021,CRÉDITOS DISTRIBUÍDOS PARA AS UNIDADES ACADÊMICAS,null,null,null,FUNCIONAMENTO DE INSTITUICOES FEDERAI - NO DF,23106.134346/2021-61,"C. CUSTO FMD PROT:11010109(2520,00) REQ: 3841/2021MEMORANDO 194 (7492208) AQUISIÇÃO DE MATERIAIS DE PROTEÇÃO CONTRA A COVIDSEI: 23106.134346/2021-61 2021ND005150 PR: 28/2021",2808,MAT. CONSUMO,Nespolo Jayantibhai de Aviz,null,UNIVERSIDADE DE BRASÍLIA,null,2520.00,global,605
PRÓPRIOS -  PREST.SERVICOS FUB/FUNDO,12264.00,FISCAL,null,2021,09/12/2021,CRÉDITOS DISTRIBUÍDOS PARA AS UNIDADES ACADÊMICAS,null,null,null,FUNCIONAMENTO DE INSTITUICOES FEDERAI - NO DF,23106.000989/2022-92,23106.000989/2022-92,2807,MAT. CONSUMO,Cleirivania Goodwin Ramos,null,UNIVERSIDADE DE BRASÍLIA,null,12264.00,global,605
PRÓPRIOS -  PREST.SERVICOS FUB/FUNDO,1487.19,FISCAL,null,2021,09/12/2021,CRÉDITOS DISTRIBUÍDOS PARA AS UNIDADES ACADÊMICAS,null,null,null,FUNCIONAMENTO DE INSTITUICOES FEDERAI - NO DF,23106.046217/2022-05,23106.046217/2022-05,2806,MAT. CONSUMO,Nicanor Gasiglia Nasiri,null,UNIVERSIDADE DE BRASÍLIA,null,1487.19,global,605
PRÓPRIOS -  PREST.SERVICOS FUB/FUNDO,270.00,FISCAL,PR 11/2021 - FUB,2021,10/12/2021,CRÉDITOS DISTRIBUÍDOS PARA AS UNIDADES ADMINISTRATIVAS,null,null,null,FUNCIONAMENTO DE INSTITUICOES FEDERAI - NO DF,23106.134743/2021-32,"C. CUSTO CER PROT:110136(270,00) REQ: 3896/2021DESPACHO CER (7497128) AQUISIÇÃO DE LIXEIRAS PLÁSTICASSEI: 23106.134743/2021-32 2021ND005143",2803,MAT. CONSUMO,Ronchi Kollross Cassanelli Ermelina,null,UNIVERSIDADE DE BRASÍLIA,null,270.00,ordinário,605
PRÓPRIOS -  PREST.SERVICOS FUB/FUNDO,5733.00,FISCAL,PR 206/2020 - FUB,2021,10/12/2021,CRÉDITOS DISTRIBUÍDOS PARA AS UNIDADES ADMINISTRATIVAS,null,null,null,FUNCIONAMENTO DE INSTITUICOES FEDERAI - NO DF,23106.102135/2020-88,"C.CUSTO:CER// AQUISIÇÃO DE MICROCOMPUTADOR TIPO PADRAO// REQ.3907/2021DESPACHO CER (7493962)//  2021ND005138//  PROT:110136(5733,00)",2801,EQUIPAMENTOS E MATERIAL PERMANENTE,Berg Valdemar Callovi ésevedo Heicheberg,null,UNIVERSIDADE DE BRASÍLIA,null,5733.00,ordinário,605
PRÓPRIOS -  PREST.SERVICOS FUB/FUNDO,9980.00,FISCAL,PR 206/2020 - FUB,2021,10/12/2021,CRÉDITOS DISTRIBUÍDOS PARA AS UNIDADES ADMINISTRATIVAS,null,null,null,FUNCIONAMENTO DE INSTITUICOES FEDERAI - NO DF,23106.102135/2020-88,"C.CUSTO:CER//  AQUISIÇÃO DE NOTEBOOK TIPO PADRAO// REQ.3906/2021DESPACHO CER (7493962)// PROT:110136(9980,00)",2799,EQUIPAMENTOS E MATERIAL PERMANENTE,Katyllen Cruciol Shigematsu,null,UNIVERSIDADE DE BRASÍLIA,null,9980.00,ordinário,605
PRÓPRIOS -  PREST.SERVICOS FUB/FUNDO,4914.48,FISCAL,PR,2021,10/12/2021,MANUTENCAO DE VEICULOS LEVES E PESADOS DA FUB,null,null,null,FUNCIONAMENTO DE INSTITUICOES FEDERAI - NO DF,23106.122935/2021-04,"C.CUSTO:PRC//  FORNECIMENTO DE PEÇAS MANUTENÇÃO VEICULOS LEVES VW// MEMO N.122/2021/PRC/DIMEQ/CMW2021ND005131//  PROT:110105(4914,48)",2798,MAT. CONSUMO,Eiter Ignaczuk Soleiro Havro,null,UNIVERSIDADE DE BRASÍLIA,null,4914.48,global,605
PRÓPRIOS -  PREST.SERVICOS FUB/FUNDO,1503.43,FISCAL,PR,2021,10/12/2021,MANUTENCAO DE VEICULOS LEVES E PESADOS DA FUB,null,null,null,FUNCIONAMENTO DE INSTITUICOES FEDERAI - NO DF,23106.122935/2021-04,"C.CUSTO:PRC//  SERVIÇO DE MANUTENÇÃO VEICULOS LEVES VW// MEMO N.122/2021/PRC/DIMEQ/CMW2021ND005131//  PROT:110105(1503,43)",2797,SERV. PESSOA JURÍDICA,Eiter Ignaczuk Soleiro Havro,null,UNIVERSIDADE DE BRASÍLIA,null,1503.43,global,605
PRÓPRIOS -  PREST.SERVICOS FUB/FUNDO,1440.00,FISCAL,PR 28/2021 - FUB,2021,10/12/2021,CRÉDITOS DISTRIBUÍDOS PARA AS UNIDADES ACADÊMICAS,null,null,null,FUNCIONAMENTO DE INSTITUICOES FEDERAI - NO DF,23106.054493/2021-58,"C.CUSTO:IDA//  AQUISIÇÃO DE MASCARA MULTIUSO N95// MEMO N.30/2021/IDA/DIN2021ND005126//  PROT:11010114(1440,00)//  REQ.3779/2021",2794,MAT. CONSUMO,Shayenne Bonfain,null,UNIVERSIDADE DE BRASÍLIA,null,1440.00,ordinário,605
PRÓPRIOS -  PREST.SERVICOS FUB/FUNDO,806.10,FISCAL,PR,2021,10/12/2021,CRÉDITOS DISTRIBUÍDOS PARA AS UNIDADES ACADÊMICAS,null,null,null,FUNCIONAMENTO DE INSTITUICOES FEDERAI - NO DF,23106.133263/2021-54,"C.CUSTO:IDA//  AQUISIÇÃO DE ITENS DE SINALIZAÇÃO E ISOLAMENTO//MEMO Nº 30/2021/IDA / DINPROT:11010114(806,10)// 2021ND005124",2792,MAT. CONSUMO,Cleanny Hergesell Fargnolli Evelise Gaviano,null,UNIVERSIDADE DE BRASÍLIA,null,806.10,global,605
PRÓPRIOS -  PREST.SERVICOS FUB/FUNDO,24550.00,FISCAL,null,2021,09/12/2021,CRÉDITOS DISTRIBUÍDOS PARA AS UNIDADES ACADÊMICAS,null,null,null,FUNCIONAMENTO DE INSTITUICOES FEDERAI - NO DF,23106.103725/2021-17,"C. CUSTO FAU PROT:11010104(24550,00)ESTAÇÃO TOTAL TOPOGRÁFICA UASG 160157 PREGÃO 2/2021SEI: 23106.103725/2021-17 DEMONSTRATIVO (7473138).",2785,EQUIP. MATERIAL PERMANENTE,Leris észolin,null,UNIVERSIDADE DE BRASÍLIA,null,24550.00,ordinário,605
PRÓPRIOS -  PREST.SERVICOS FUB/FUNDO,910.00,FISCAL,PR,2021,09/12/2021,CRÉDITOS DISTRIBUÍDOS PARA AS UNIDADES ACADÊMICAS,null,null,null,FUNCIONAMENTO DE INSTITUICOES FEDERAI - NO DF,23106.132816/2021-51,"C.CUSTO:FSD// AQUISIÇÃO DE MATERIAL HOSPITALAR// DESPACHO FS (7475843) PROT:11010110(900,00)// 2021ND005100// REQ. 3853",2779,MAT. CONSUMO,Zamian Fushimi Lafeta Fuzicava,null,UNIVERSIDADE DE BRASÍLIA,null,910.00,estimativo,605
PRÓPRIOS -  PREST.SERVICOS FUB/FUNDO,638.95,FISCAL,PR 28/2021 - FUB,2021,09/12/2021,CRÉDITOS DISTRIBUÍDOS PARA AS UNIDADES ACADÊMICAS,null,null,null,FUNCIONAMENTO DE INSTITUICOES FEDERAI - NO DF,23106.054493/2021-58,"C.CUSTO:FSD// AQUISIÇÃO DE MATERIAL HOSPITALAR// DESPACHO FS (7475843) PROT:11010110(638,95)// 2021ND005100// REQ. 3852",2778,MAT. CONSUMO,Nicanor Gasiglia Nasiri,null,UNIVERSIDADE DE BRASÍLIA,null,638.95,ordinário,605
PRÓPRIOS -  PREST.SERVICOS FUB/FUNDO,2160.00,FISCAL,PR 28/2021 - FUB,2021,09/12/2021,CRÉDITOS DISTRIBUÍDOS PARA AS UNIDADES ACADÊMICAS,null,null,null,FUNCIONAMENTO DE INSTITUICOES FEDERAI - NO DF,23106.054493/2021-58,"C.CUSTO:FSD// AQUISIÇÃO DE MATERIAL HOSPITALAR// DESPACHO FS (7475843) PROT:11010110(2160,00)// 2021ND005100// REQ. 3851",2777,MAT. CONSUMO,Shayenne Bonfain,null,UNIVERSIDADE DE BRASÍLIA,null,2160.00,ordinário,605
PRÓPRIOS -  PREST.SERVICOS FUB/FUNDO,2329.00,FISCAL,PR 28/2021 - FUB,2021,09/12/2021,CRÉDITOS DISTRIBUÍDOS PARA AS UNIDADES ACADÊMICAS,null,null,null,FUNCIONAMENTO DE INSTITUICOES FEDERAI - NO DF,23106.054493/2021-58,"C.CUSTO:FSD//  AQUISIÇÃO DE MATERIAL HOSPITALAR// DESPACHO FS (7475843)PROT:11010110(2329,00)// 2021ND005100// REQ. 3850",2776,MAT. CONSUMO,Klenni Kosby Carvalhal,null,UNIVERSIDADE DE BRASÍLIA,null,2329.00,ordinário,605
PRÓPRIOS -  PREST.SERVICOS FUB/FUNDO,1778.40,FISCAL,PR 28/2021 - FUB,2021,09/12/2021,CRÉDITOS DISTRIBUÍDOS PARA AS UNIDADES ACADÊMICAS,null,null,null,FUNCIONAMENTO DE INSTITUICOES FEDERAI - NO DF,23106.054493/2021-58,"C.CUSTO:FSD//  AQUISIÇÃO DE MATERIAL HOSPITALAR// DESPACHO FS (7475843)PROT:11010110(1778,40)// 2021ND005100// REQ. 3849",2775,MAT. CONSUMO,Cleirivania Goodwin Ramos,null,UNIVERSIDADE DE BRASÍLIA,null,1778.40,ordinário,605
PRÓPRIOS -  PREST.SERVICOS FUB/FUNDO,60.72,FISCAL,PR 28/2021 - FUB,2021,09/12/2021,CRÉDITOS DISTRIBUÍDOS PARA AS UNIDADES ADMINISTRATIVAS,null,null,null,FUNCIONAMENTO DE INSTITUICOES FEDERAI - NO DF,23106.054493/2021-58,"C. CUSTO: CEAD.     PROT:110124{SM3710(60,72)}      SEI 23106.131632/2021-74.AQUISIÇÃO DE MATERIAIS DE PROTEÇÃO CONTRA O VÍRUS COVID-19.2021ND005102.       DESPACHO CEAD/CPF 7463477.",2774,MAT. CONSUMO,Klenni Kosby Carvalhal,null,UNIVERSIDADE DE BRASÍLIA,null,60.72,ordinário,605
PRÓPRIOS -  PREST.SERVICOS FUB/FUNDO,29.70,FISCAL,PR 28/2021 - FUB,2021,09/12/2021,CRÉDITOS DISTRIBUÍDOS PARA AS UNIDADES ADMINISTRATIVAS,null,null,null,FUNCIONAMENTO DE INSTITUICOES FEDERAI - NO DF,23106.054493/2021-58,"C. CUSTO: CEAD.     PROT:110124{SM3711/2021(29,70)}      SEI 23106.131632/2021-74.AQUISIÇÃO DE MATERIAIS DE PROTEÇÃO CONTRA O VÍRUS COVID-19.2021ND005102.       DESPACHO CEAD/CPF 7463477.",2773,MAT. CONSUMO,Klenni Kosby Carvalhal,null,UNIVERSIDADE DE BRASÍLIA,null,29.70,ordinário,605
PRÓPRIOS -  PREST.SERVICOS FUB/FUNDO,14.00,FISCAL,PR 28/2021 - FUB,2021,09/12/2021,CRÉDITOS DISTRIBUÍDOS PARA AS UNIDADES ADMINISTRATIVAS,null,null,null,FUNCIONAMENTO DE INSTITUICOES FEDERAI - NO DF,23106.054493/2021-58,"C. CUSTO: CEAD.     PROT:110124{SM3717/2021(14,00)}      SEI 23106.131632/2021-74.AQUISIÇÃO DE MATERIAIS DE PROTEÇÃO CONTRA O VÍRUS COVID-19.2021ND005102.       DESPACHO CEAD/CPF 7463477.",2771,MAT. CONSUMO,Evanylton Shunk Katsuragama,null,UNIVERSIDADE DE BRASÍLIA,null,14.00,ordinário,605
PRÓPRIOS -  PREST.SERVICOS FUB/FUNDO,21.10,FISCAL,PR 28/2021 - FUB,2021,09/12/2021,CRÉDITOS DISTRIBUÍDOS PARA AS UNIDADES ADMINISTRATIVAS,null,null,null,FUNCIONAMENTO DE INSTITUICOES FEDERAI - NO DF,23106.054493/2021-58,"C. CUSTO: CEAD.     PROT:110124{SM3716/2021(21,10)}      SEI 23106.131632/2021-74.AQUISIÇÃO DE MATERIAIS DE PROTEÇÃO CONTRA O VÍRUS COVID-19.2021ND005102.       DESPACHO CEAD/CPF 7463477.",2770,MAT. CONSUMO,Evanylton Shunk Katsuragama,null,UNIVERSIDADE DE BRASÍLIA,null,21.10,ordinário,605
PRÓPRIOS -  PREST.SERVICOS FUB/FUNDO,21.98,FISCAL,PR 28/2021 - FUB,2021,09/12/2021,CRÉDITOS DISTRIBUÍDOS PARA AS UNIDADES ADMINISTRATIVAS,null,null,null,FUNCIONAMENTO DE INSTITUICOES FEDERAI - NO DF,23106.054493/2021-58,"C. CUSTO: CEAD.     PROT:110124{SM3715/2021(21,98)}      SEI 23106.131632/2021-74.AQUISIÇÃO DE MATERIAIS DE PROTEÇÃO CONTRA O VÍRUS COVID-19.2021ND005102.       DESPACHO CEAD/CPF 7463477.",2769,MAT. CONSUMO,Cleirivania Goodwin Ramos,null,UNIVERSIDADE DE BRASÍLIA,null,21.98,ordinário,605
PRÓPRIOS -  PREST.SERVICOS FUB/FUNDO,22.48,FISCAL,PR 28/2021 - FUB,2021,09/12/2021,CRÉDITOS DISTRIBUÍDOS PARA AS UNIDADES ADMINISTRATIVAS,null,null,null,FUNCIONAMENTO DE INSTITUICOES FEDERAI - NO DF,23106.054493/2021-58,"C. CUSTO: CEAD.     PROT:110124{SM3714/2021(22,48)}      SEI 23106.131632/2021-74.AQUISIÇÃO DE MATERIAIS DE PROTEÇÃO CONTRA O VÍRUS COVID-19.2021ND005102.       DESPACHO CEAD/CPF 7463477.",2768,MAT. CONSUMO,Cleirivania Goodwin Ramos,null,UNIVERSIDADE DE BRASÍLIA,null,22.48,ordinário,605
PRÓPRIOS -  PREST.SERVICOS FUB/FUNDO,2300.00,FISCAL,PR 28/2021 - FUB,2021,09/12/2021,CRÉDITOS DISTRIBUÍDOS PARA AS UNIDADES ACADÊMICAS,null,null,null,FUNCIONAMENTO DE INSTITUICOES FEDERAI - NO DF,23106.054493/2021-58,"C.CUSTO:FCS//  AQUISIÇÃO DE ITENS HOSPITALAR// DESPACHO FS (7475843)PROT:11010110(10261,80)//  SEI N.23106.132816/2021-51// 2021ND005100// REQ.3848",2767,MAT. CONSUMO,Ronchi Kollross Cassanelli Ermelina,null,UNIVERSIDADE DE BRASÍLIA,null,2300.00,ordinário,605
